Body Name,Body,Date,Department,Beneficiary,Summary of Purpose (SeRCOP),Amount SUM,Merchant Code,Transaction Number,Supplier ID
Sandwell Metropolitan Borough Council,http://www.sandwell.gov.uk/info/200202/performance_and_spending/1079/payments_over_500,01-Dec-2023,Adults Social Care Capital,PR PROPERTY MAINTENANCE,Adults Social Care Capital,5200.40,Deferred Charges/Grant Payments,2324_P09_CR00001,33836
Sandwell Metropolitan Borough Council,http://www.sandwell.gov.uk/info/200202/performance_and_spending/1079/payments_over_500,01-Dec-2023,Adults Social Care Capital,PR PROPERTY MAINTENANCE,Adults Social Care Capital,5398.09,Deferred Charges/Grant Payments,2324_P09_CR00002,33836
Sandwell Metropolitan Borough Council,http://www.sandwell.gov.uk/info/200202/performance_and_spending/1079/payments_over_500,01-Dec-2023,Adults Social Care Capital,PR PROPERTY MAINTENANCE,Adults Social Care Capital,5674.63,Deferred Charges/Grant Payments,2324_P09_CR00003,33836
Sandwell Metropolitan Borough Council,http://www.sandwell.gov.uk/info/200202/performance_and_spending/1079/payments_over_500,01-Dec-2023,Adults Social Care Capital,PR PROPERTY MAINTENANCE,Adults Social Care Capital,5708.35,Deferred Charges/Grant Payments,2324_P09_CR00004,33836
Sandwell Metropolitan Borough Council,http://www.sandwell.gov.uk/info/200202/performance_and_spending/1079/payments_over_500,01-Dec-2023,Adults Social Care Capital,PR PROPERTY MAINTENANCE,Adults Social Care Capital,5726.73,Deferred Charges/Grant Payments,2324_P09_CR00005,33836
Sandwell Metropolitan Borough Council,http://www.sandwell.gov.uk/info/200202/performance_and_spending/1079/payments_over_500,01-Dec-2023,Adults Social Care Capital,PR PROPERTY MAINTENANCE,Adults Social Care Capital,5766.49,Deferred Charges/Grant Payments,2324_P09_CR00006,33836
Sandwell Metropolitan Borough Council,http://www.sandwell.gov.uk/info/200202/performance_and_spending/1079/payments_over_500,01-Dec-2023,Adults Social Care Capital,PR PROPERTY MAINTENANCE,Adults Social Care Capital,6200.59,Deferred Charges/Grant Payments,2324_P09_CR00007,33836
Sandwell Metropolitan Borough Council,http://www.sandwell.gov.uk/info/200202/performance_and_spending/1079/payments_over_500,01-Dec-2023,Adults Social Care Capital,PR PROPERTY MAINTENANCE,Adults Social Care Capital,6519.00,Deferred Charges/Grant Payments,2324_P09_CR00008,33836
Sandwell Metropolitan Borough Council,http://www.sandwell.gov.uk/info/200202/performance_and_spending/1079/payments_over_500,01-Dec-2023,Adults Social Care Capital,PR PROPERTY MAINTENANCE,Adults Social Care Capital,6672.79,Deferred Charges/Grant Payments,2324_P09_CR00009,33836
Sandwell Metropolitan Borough Council,http://www.sandwell.gov.uk/info/200202/performance_and_spending/1079/payments_over_500,01-Dec-2023,Adults Social Care Capital,PR PROPERTY MAINTENANCE,Adults Social Care Capital,6780.39,Deferred Charges/Grant Payments,2324_P09_CR00010,33836
Sandwell Metropolitan Borough Council,http://www.sandwell.gov.uk/info/200202/performance_and_spending/1079/payments_over_500,01-Dec-2023,Adults Social Care Capital,PR PROPERTY MAINTENANCE,Adults Social Care Capital,7002.54,Deferred Charges/Grant Payments,2324_P09_CR00011,33836
Sandwell Metropolitan Borough Council,http://www.sandwell.gov.uk/info/200202/performance_and_spending/1079/payments_over_500,01-Dec-2023,Adults Social Care Capital,PR PROPERTY MAINTENANCE,Adults Social Care Capital,7639.46,Deferred Charges/Grant Payments,2324_P09_CR00012,33836
Sandwell Metropolitan Borough Council,http://www.sandwell.gov.uk/info/200202/performance_and_spending/1079/payments_over_500,01-Dec-2023,Adults Social Care Capital,PR PROPERTY MAINTENANCE,Adults Social Care Capital,11105.97,Deferred Charges/Grant Payments,2324_P09_CR00013,33836
Sandwell Metropolitan Borough Council,http://www.sandwell.gov.uk/info/200202/performance_and_spending/1079/payments_over_500,01-Dec-2023,Adults Social Care Capital,PR PROPERTY MAINTENANCE,Adults Social Care Capital,11224.34,Deferred Charges/Grant Payments,2324_P09_CR00014,33836
Sandwell Metropolitan Borough Council,http://www.sandwell.gov.uk/info/200202/performance_and_spending/1079/payments_over_500,01-Dec-2023,Adults Social Care Capital,DESIGN SYNTAX LIMITED,Adults Social Care Capital,5424.00,Deferred Charges/Grant Payments,2324_P09_CR00015,106226
Sandwell Metropolitan Borough Council,http://www.sandwell.gov.uk/info/200202/performance_and_spending/1079/payments_over_500,08-Dec-2023,Adults Social Care Capital,DESIGN SYNTAX LIMITED,Adults Social Care Capital,22600.00,Deferred Charges/Grant Payments,2324_P09_CR00016,106226
Sandwell Metropolitan Borough Council,http://www.sandwell.gov.uk/info/200202/performance_and_spending/1079/payments_over_500,06-Dec-2023,Adults Social Care Capital,HOME DESIGN,Adults Social Care Capital,8213.10,Deferred Charges/Grant Payments,2324_P09_CR00017,141847
Sandwell Metropolitan Borough Council,http://www.sandwell.gov.uk/info/200202/performance_and_spending/1079/payments_over_500,06-Dec-2023,Adults Social Care Capital,HOME DESIGN,Adults Social Care Capital,12662.84,Deferred Charges/Grant Payments,2324_P09_CR00018,141847
Sandwell Metropolitan Borough Council,http://www.sandwell.gov.uk/info/200202/performance_and_spending/1079/payments_over_500,01-Dec-2023,Adults Social Care Capital,HOME DESIGN,Adults Social Care Capital,13107.65,Deferred Charges/Grant Payments,2324_P09_CR00019,141847
Sandwell Metropolitan Borough Council,http://www.sandwell.gov.uk/info/200202/performance_and_spending/1079/payments_over_500,01-Dec-2023,Adults Social Care Capital,JOHN GILLESPIE CONTRACTORS LTD,Adults Social Care Capital,3135.94,Deferred Charges/Grant Payments,2324_P09_CR00020,82566
Sandwell Metropolitan Borough Council,http://www.sandwell.gov.uk/info/200202/performance_and_spending/1079/payments_over_500,01-Dec-2023,Adults Social Care Capital,JOHN GILLESPIE CONTRACTORS LTD,Adults Social Care Capital,10208.19,Deferred Charges/Grant Payments,2324_P09_CR00021,82566
Sandwell Metropolitan Borough Council,http://www.sandwell.gov.uk/info/200202/performance_and_spending/1079/payments_over_500,01-Dec-2023,Adults Social Care Capital,TDF DESIGN LIMITED,Adults Social Care Capital,750.00,Deferred Charges/Grant Payments,2324_P09_CR00022,10320
Sandwell Metropolitan Borough Council,http://www.sandwell.gov.uk/info/200202/performance_and_spending/1079/payments_over_500,12-Dec-2023,Adults Social Care Capital,TDF DESIGN LIMITED,Adults Social Care Capital,2200.00,Deferred Charges/Grant Payments,2324_P09_CR00023,10320
Sandwell Metropolitan Borough Council,http://www.sandwell.gov.uk/info/200202/performance_and_spending/1079/payments_over_500,12-Dec-2023,Adults Social Care Capital,TDF DESIGN LIMITED,Adults Social Care Capital,10500.00,Deferred Charges/Grant Payments,2324_P09_CR00024,10320
Sandwell Metropolitan Borough Council,http://www.sandwell.gov.uk/info/200202/performance_and_spending/1079/payments_over_500,14-Dec-2023,Adults Social Care Capital,LIFT & ENGINEERING SERVICES LTD,Adults Social Care Capital,550.31,"CIP - New Construction,Conversion, Enhancement & Reno",2324_P09_CR00025,77003962
Sandwell Metropolitan Borough Council,http://www.sandwell.gov.uk/info/200202/performance_and_spending/1079/payments_over_500,20-Dec-2023,Adults Social Care Capital,LIFT & ENGINEERING SERVICES LTD,Adults Social Care Capital,9363.20,"CIP - New Construction,Conversion, Enhancement & Reno",2324_P09_CR00026,77003962
Sandwell Metropolitan Borough Council,http://www.sandwell.gov.uk/info/200202/performance_and_spending/1079/payments_over_500,19-Dec-2023,Childrens Services,REDACTED PERSONAL DATA,Childrens Services,655.64,Direct Payments - Traditional,2324_P09_CR00027,REDACTED PERSONAL DATA
Sandwell Metropolitan Borough Council,http://www.sandwell.gov.uk/info/200202/performance_and_spending/1079/payments_over_500,01-Dec-2023,Childrens Services,AMP BIOMASS FUEL LTD T/A AMP CLEAN ENERGY,Childrens Services,2930.53,Ingestre Hall Arts Centre.Energy,2324_P09_CR00028,128761
Sandwell Metropolitan Borough Council,http://www.sandwell.gov.uk/info/200202/performance_and_spending/1079/payments_over_500,01-Dec-2023,Childrens Services,AMP BIOMASS FUEL LTD T/A AMP CLEAN ENERGY,Childrens Services,3030.48,Ingestre Hall Arts Centre.Energy,2324_P09_CR00029,128761
Sandwell Metropolitan Borough Council,http://www.sandwell.gov.uk/info/200202/performance_and_spending/1079/payments_over_500,01-Dec-2023,Childrens Services,AVANTI GAS LIMITED,Childrens Services,2059.03,Gas,2324_P09_CR00030,60069
Sandwell Metropolitan Borough Council,http://www.sandwell.gov.uk/info/200202/performance_and_spending/1079/payments_over_500,01-Dec-2023,Childrens Services,BCH PROPERTY LIMITED,Childrens Services,625.05,Rents,2324_P09_CR00031,01011861
Sandwell Metropolitan Borough Council,http://www.sandwell.gov.uk/info/200202/performance_and_spending/1079/payments_over_500,01-Dec-2023,Childrens Services,BCH PROPERTY LIMITED,Childrens Services,933.52,Rents,2324_P09_CR00032,01011861
Sandwell Metropolitan Borough Council,http://www.sandwell.gov.uk/info/200202/performance_and_spending/1079/payments_over_500,01-Dec-2023,Childrens Services,BCH PROPERTY LIMITED,Childrens Services,1166.76,Rents,2324_P09_CR00033,01011861
Sandwell Metropolitan Borough Council,http://www.sandwell.gov.uk/info/200202/performance_and_spending/1079/payments_over_500,01-Dec-2023,Childrens Services,BCH PROPERTY LIMITED,Childrens Services,1283.52,Rents,2324_P09_CR00034,01011861
Sandwell Metropolitan Borough Council,http://www.sandwell.gov.uk/info/200202/performance_and_spending/1079/payments_over_500,01-Dec-2023,Childrens Services,BCH PROPERTY LIMITED,Childrens Services,1283.52,Rents,2324_P09_CR00035,01011861
Sandwell Metropolitan Borough Council,http://www.sandwell.gov.uk/info/200202/performance_and_spending/1079/payments_over_500,01-Dec-2023,Childrens Services,BCH PROPERTY LIMITED,Childrens Services,1283.52,Rents,2324_P09_CR00036,01011861
Sandwell Metropolitan Borough Council,http://www.sandwell.gov.uk/info/200202/performance_and_spending/1079/payments_over_500,01-Dec-2023,Childrens Services,BCH PROPERTY LIMITED,Childrens Services,1283.52,Rents,2324_P09_CR00037,01011861
Sandwell Metropolitan Borough Council,http://www.sandwell.gov.uk/info/200202/performance_and_spending/1079/payments_over_500,01-Dec-2023,Childrens Services,BCH PROPERTY LIMITED,Childrens Services,1283.52,Rents,2324_P09_CR00038,01011861
Sandwell Metropolitan Borough Council,http://www.sandwell.gov.uk/info/200202/performance_and_spending/1079/payments_over_500,01-Dec-2023,Childrens Services,BCH PROPERTY LIMITED,Childrens Services,1283.52,Rents,2324_P09_CR00039,01011861
Sandwell Metropolitan Borough Council,http://www.sandwell.gov.uk/info/200202/performance_and_spending/1079/payments_over_500,01-Dec-2023,Childrens Services,BCH PROPERTY LIMITED,Childrens Services,1568.00,Rents,2324_P09_CR00040,01011861
Sandwell Metropolitan Borough Council,http://www.sandwell.gov.uk/info/200202/performance_and_spending/1079/payments_over_500,01-Dec-2023,Childrens Services,BIDFOOD,Childrens Services,550.09,Catering Provisions,2324_P09_CR00041,164984
Sandwell Metropolitan Borough Council,http://www.sandwell.gov.uk/info/200202/performance_and_spending/1079/payments_over_500,01-Dec-2023,Childrens Services,BIDFOOD,Childrens Services,565.54,Catering Provisions,2324_P09_CR00042,164984
Sandwell Metropolitan Borough Council,http://www.sandwell.gov.uk/info/200202/performance_and_spending/1079/payments_over_500,05-Dec-2023,Childrens Services,CHRISTIAN EDUCATION & RE TODAY SERVICES,Childrens Services,2740.00,Externally Purchased Professional Services ,2324_P09_CR00043,15016
Sandwell Metropolitan Borough Council,http://www.sandwell.gov.uk/info/200202/performance_and_spending/1079/payments_over_500,01-Dec-2023,Childrens Services,CHUBB FIRE & SECURITY LIMITED t/a CHUBB ELECTRONIC SECURITY,Childrens Services,876.36,Security,2324_P09_CR00044,81343
Sandwell Metropolitan Borough Council,http://www.sandwell.gov.uk/info/200202/performance_and_spending/1079/payments_over_500,01-Dec-2023,Childrens Services,COMMUNITIES IN SYNC,Childrens Services,10525.35,Grants,2324_P09_CR00045,137123
Sandwell Metropolitan Borough Council,http://www.sandwell.gov.uk/info/200202/performance_and_spending/1079/payments_over_500,01-Dec-2023,Childrens Services,CUSTODIAN GROUP LTD,Childrens Services,630.00,Rents,2324_P09_CR00046,151637
Sandwell Metropolitan Borough Council,http://www.sandwell.gov.uk/info/200202/performance_and_spending/1079/payments_over_500,01-Dec-2023,Childrens Services,CUSTODIAN GROUP LTD,Childrens Services,630.00,Rents,2324_P09_CR00047,151637
Sandwell Metropolitan Borough Council,http://www.sandwell.gov.uk/info/200202/performance_and_spending/1079/payments_over_500,01-Dec-2023,Childrens Services,CUSTODIAN GROUP LTD,Childrens Services,630.00,Rents,2324_P09_CR00048,151637
Sandwell Metropolitan Borough Council,http://www.sandwell.gov.uk/info/200202/performance_and_spending/1079/payments_over_500,01-Dec-2023,Childrens Services,CUSTODIAN GROUP LTD,Childrens Services,630.00,Rents,2324_P09_CR00049,151637
Sandwell Metropolitan Borough Council,http://www.sandwell.gov.uk/info/200202/performance_and_spending/1079/payments_over_500,01-Dec-2023,Childrens Services,CUSTODIAN GROUP LTD,Childrens Services,630.00,Rents,2324_P09_CR00050,151637
Sandwell Metropolitan Borough Council,http://www.sandwell.gov.uk/info/200202/performance_and_spending/1079/payments_over_500,07-Dec-2023,Childrens Services,CUSTODIAN GROUP LTD,Childrens Services,630.00,Rents,2324_P09_CR00051,151637
Sandwell Metropolitan Borough Council,http://www.sandwell.gov.uk/info/200202/performance_and_spending/1079/payments_over_500,01-Dec-2023,Childrens Services,DEBORAH UDAKIS CONSULTANCY LTD,Childrens Services,643.20,Externally Purchased Professional Services ,2324_P09_CR00052,139858
Sandwell Metropolitan Borough Council,http://www.sandwell.gov.uk/info/200202/performance_and_spending/1079/payments_over_500,01-Dec-2023,Childrens Services,DROACH TRAVEL LTD,Childrens Services,77779.43,Public Transport,2324_P09_CR00053,06002707
Sandwell Metropolitan Borough Council,http://www.sandwell.gov.uk/info/200202/performance_and_spending/1079/payments_over_500,01-Dec-2023,Childrens Services,GREEN DESTINATIONS LTD,Childrens Services,101131.44,Public Transport,2324_P09_CR00054,109275
Sandwell Metropolitan Borough Council,http://www.sandwell.gov.uk/info/200202/performance_and_spending/1079/payments_over_500,01-Dec-2023,Childrens Services,GREEN DESTINATIONS LTD,Childrens Services,136664.51,Public Transport,2324_P09_CR00055,109275
Sandwell Metropolitan Borough Council,http://www.sandwell.gov.uk/info/200202/performance_and_spending/1079/payments_over_500,01-Dec-2023,Childrens Services,INGESTRE ORANGERY AND GARDENS,Childrens Services,650.00,Materials & Consumables,2324_P09_CR00056,127331
Sandwell Metropolitan Borough Council,http://www.sandwell.gov.uk/info/200202/performance_and_spending/1079/payments_over_500,01-Dec-2023,Childrens Services,LOCAL EDUCATION AND DEVELOPMENT,Childrens Services,1486.26,Discretionary Awards,2324_P09_CR00057,148259
Sandwell Metropolitan Borough Council,http://www.sandwell.gov.uk/info/200202/performance_and_spending/1079/payments_over_500,01-Dec-2023,Childrens Services,MAJOR COACHWAYS LIMITED,Childrens Services,900.00,Equipment & Furniture ,2324_P09_CR00058,06003722
Sandwell Metropolitan Borough Council,http://www.sandwell.gov.uk/info/200202/performance_and_spending/1079/payments_over_500,01-Dec-2023,Childrens Services,NORTH SMETHWICK DEVELOPMENT TRUST,Childrens Services,550.00,Hire of Facilities,2324_P09_CR00059,01346623
Sandwell Metropolitan Borough Council,http://www.sandwell.gov.uk/info/200202/performance_and_spending/1079/payments_over_500,01-Dec-2023,Childrens Services,ONE 4 YOU SERVICES LTD,Childrens Services,15775.68,Public Transport,2324_P09_CR00060,81204
Sandwell Metropolitan Borough Council,http://www.sandwell.gov.uk/info/200202/performance_and_spending/1079/payments_over_500,01-Dec-2023,Childrens Services,ONE 4 YOU SERVICES LTD,Childrens Services,212715.15,Public Transport,2324_P09_CR00061,81204
Sandwell Metropolitan Borough Council,http://www.sandwell.gov.uk/info/200202/performance_and_spending/1079/payments_over_500,01-Dec-2023,Childrens Services,ONE 4 YOU SERVICES LTD,Childrens Services,213809.88,Public Transport,2324_P09_CR00062,81204
Sandwell Metropolitan Borough Council,http://www.sandwell.gov.uk/info/200202/performance_and_spending/1079/payments_over_500,01-Dec-2023,Childrens Services,QUALITY EDUCATION SOLUTIONS LIMITED,Childrens Services,1116.81,Externally Purchased Professional Services ,2324_P09_CR00063,70602
Sandwell Metropolitan Borough Council,http://www.sandwell.gov.uk/info/200202/performance_and_spending/1079/payments_over_500,01-Dec-2023,Childrens Services,SANDWELL CHILDREN'S TRUST,Childrens Services,5705769.23,Other Establishments,2324_P09_CR00064,133302
Sandwell Metropolitan Borough Council,http://www.sandwell.gov.uk/info/200202/performance_and_spending/1079/payments_over_500,18-Dec-2023,Childrens Services,SANDWELL CHILDREN'S TRUST,Childrens Services,5705769.23,Other Establishments,2324_P09_CR00065,133302
Sandwell Metropolitan Borough Council,http://www.sandwell.gov.uk/info/200202/performance_and_spending/1079/payments_over_500,01-Dec-2023,Childrens Services,SANDWELL CONSORTIUM CIC,Childrens Services,84007.00,Grants,2324_P09_CR00066,104616
Sandwell Metropolitan Borough Council,http://www.sandwell.gov.uk/info/200202/performance_and_spending/1079/payments_over_500,01-Dec-2023,Childrens Services,SANDWELL DEAF COMMUNITY ASSOCIATION,Childrens Services,704.00,Bi-Lingual Translation Services,2324_P09_CR00067,3138
Sandwell Metropolitan Borough Council,http://www.sandwell.gov.uk/info/200202/performance_and_spending/1079/payments_over_500,01-Dec-2023,Childrens Services,SANDWELL PARENTS FOR DISABLED CHILDREN,Childrens Services,6000.00,Grant Payments,2324_P09_CR00068,70991
Sandwell Metropolitan Borough Council,http://www.sandwell.gov.uk/info/200202/performance_and_spending/1079/payments_over_500,05-Dec-2023,Childrens Services,SIPS EDUCATION LTD,Childrens Services,13375.00,Externally Purchased Professional Services ,2324_P09_CR00069,110784
Sandwell Metropolitan Borough Council,http://www.sandwell.gov.uk/info/200202/performance_and_spending/1079/payments_over_500,01-Dec-2023,Childrens Services,SSE ENERGY SUPPLY LIMITED,Childrens Services,6429.19,Electricity,2324_P09_CR00070,116134
Sandwell Metropolitan Borough Council,http://www.sandwell.gov.uk/info/200202/performance_and_spending/1079/payments_over_500,08-Dec-2023,Childrens Services,TECHNICAL OUTDOOR SOLUTIONS,Childrens Services,996.75,Equipment & Furniture ,2324_P09_CR00071,122844
Sandwell Metropolitan Borough Council,http://www.sandwell.gov.uk/info/200202/performance_and_spending/1079/payments_over_500,01-Dec-2023,Childrens Services,THIS IS FOCUS LTD,Childrens Services,850.00,ICT ,2324_P09_CR00072,121794
Sandwell Metropolitan Borough Council,http://www.sandwell.gov.uk/info/200202/performance_and_spending/1079/payments_over_500,01-Dec-2023,Childrens Services,TOPPS MANAGEMENT & SUPPORT SERVICES LTD,Childrens Services,4642.82,Discretionary Awards,2324_P09_CR00073,68846
Sandwell Metropolitan Borough Council,http://www.sandwell.gov.uk/info/200202/performance_and_spending/1079/payments_over_500,01-Dec-2023,Childrens Services,TOTALENERGIES GAS & POWER LTD,Childrens Services,1576.08,Electricity,2324_P09_CR00074,107605
Sandwell Metropolitan Borough Council,http://www.sandwell.gov.uk/info/200202/performance_and_spending/1079/payments_over_500,01-Dec-2023,Childrens Services,TOTALENERGIES GAS & POWER LTD,Childrens Services,2300.66,Electricity,2324_P09_CR00075,107605
Sandwell Metropolitan Borough Council,http://www.sandwell.gov.uk/info/200202/performance_and_spending/1079/payments_over_500,01-Dec-2023,Childrens Services,TRIPLE P UK LTD,Childrens Services,6806.71,Externally Purchased Professional Services ,2324_P09_CR00076,83730
Sandwell Metropolitan Borough Council,http://www.sandwell.gov.uk/info/200202/performance_and_spending/1079/payments_over_500,01-Dec-2023,Childrens Services,WEST MIDLANDS SUPPORT HOMES LTD,Childrens Services,560.00,Rents,2324_P09_CR00077,167338
Sandwell Metropolitan Borough Council,http://www.sandwell.gov.uk/info/200202/performance_and_spending/1079/payments_over_500,01-Dec-2023,Childrens Services,WEST MIDLANDS SUPPORT HOMES LTD,Childrens Services,560.00,Rents,2324_P09_CR00078,167338
Sandwell Metropolitan Borough Council,http://www.sandwell.gov.uk/info/200202/performance_and_spending/1079/payments_over_500,01-Dec-2023,Childrens Services,WEST MIDLANDS SUPPORT HOMES LTD,Childrens Services,560.00,Rents,2324_P09_CR00079,167338
Sandwell Metropolitan Borough Council,http://www.sandwell.gov.uk/info/200202/performance_and_spending/1079/payments_over_500,01-Dec-2023,Childrens Services,WEST MIDLANDS SUPPORT HOMES LTD,Childrens Services,560.00,Rents,2324_P09_CR00080,167338
Sandwell Metropolitan Borough Council,http://www.sandwell.gov.uk/info/200202/performance_and_spending/1079/payments_over_500,01-Dec-2023,Childrens Services,WEST MIDLANDS SUPPORT HOMES LTD,Childrens Services,560.00,Rents,2324_P09_CR00081,167338
Sandwell Metropolitan Borough Council,http://www.sandwell.gov.uk/info/200202/performance_and_spending/1079/payments_over_500,01-Dec-2023,Childrens Services,WEST MIDLANDS SUPPORT HOMES LTD,Childrens Services,560.00,Rents,2324_P09_CR00082,167338
Sandwell Metropolitan Borough Council,http://www.sandwell.gov.uk/info/200202/performance_and_spending/1079/payments_over_500,01-Dec-2023,Childrens Services,WEST MIDLANDS SUPPORT HOMES LTD,Childrens Services,560.00,Rents,2324_P09_CR00083,167338
Sandwell Metropolitan Borough Council,http://www.sandwell.gov.uk/info/200202/performance_and_spending/1079/payments_over_500,01-Dec-2023,Childrens Services,WEST MIDLANDS SUPPORT HOMES LTD,Childrens Services,560.00,Rents,2324_P09_CR00084,167338
Sandwell Metropolitan Borough Council,http://www.sandwell.gov.uk/info/200202/performance_and_spending/1079/payments_over_500,01-Dec-2023,Childrens Services,WEST MIDLANDS SUPPORT HOMES LTD,Childrens Services,560.00,Rents,2324_P09_CR00085,167338
Sandwell Metropolitan Borough Council,http://www.sandwell.gov.uk/info/200202/performance_and_spending/1079/payments_over_500,11-Dec-2023,Childrens Services,REDACTED PERSONAL DATA,Childrens Services,545.45,External Contract Hire,2324_P09_CR00086,REDACTED PERSONAL DATA
Sandwell Metropolitan Borough Council,http://www.sandwell.gov.uk/info/200202/performance_and_spending/1079/payments_over_500,11-Dec-2023,Childrens Services,REDACTED PERSONAL DATA,Childrens Services,545.45,External Contract Hire,2324_P09_CR00087,REDACTED PERSONAL DATA
Sandwell Metropolitan Borough Council,http://www.sandwell.gov.uk/info/200202/performance_and_spending/1079/payments_over_500,11-Dec-2023,Childrens Services,REDACTED PERSONAL DATA,Childrens Services,545.45,External Contract Hire,2324_P09_CR00088,REDACTED PERSONAL DATA
Sandwell Metropolitan Borough Council,http://www.sandwell.gov.uk/info/200202/performance_and_spending/1079/payments_over_500,11-Dec-2023,Childrens Services,REDACTED PERSONAL DATA,Childrens Services,727.28,External Contract Hire,2324_P09_CR00089,REDACTED PERSONAL DATA
Sandwell Metropolitan Borough Council,http://www.sandwell.gov.uk/info/200202/performance_and_spending/1079/payments_over_500,11-Dec-2023,Childrens Services,REDACTED PERSONAL DATA,Childrens Services,545.45,External Contract Hire,2324_P09_CR00090,REDACTED PERSONAL DATA
Sandwell Metropolitan Borough Council,http://www.sandwell.gov.uk/info/200202/performance_and_spending/1079/payments_over_500,11-Dec-2023,Childrens Services,REDACTED PERSONAL DATA,Childrens Services,545.45,External Contract Hire,2324_P09_CR00091,REDACTED PERSONAL DATA
Sandwell Metropolitan Borough Council,http://www.sandwell.gov.uk/info/200202/performance_and_spending/1079/payments_over_500,11-Dec-2023,Childrens Services,REDACTED PERSONAL DATA,Childrens Services,545.45,External Contract Hire,2324_P09_CR00092,REDACTED PERSONAL DATA
Sandwell Metropolitan Borough Council,http://www.sandwell.gov.uk/info/200202/performance_and_spending/1079/payments_over_500,11-Dec-2023,Childrens Services,REDACTED PERSONAL DATA,Childrens Services,1090.90,External Contract Hire,2324_P09_CR00093,REDACTED PERSONAL DATA
Sandwell Metropolitan Borough Council,http://www.sandwell.gov.uk/info/200202/performance_and_spending/1079/payments_over_500,11-Dec-2023,Childrens Services,REDACTED PERSONAL DATA,Childrens Services,545.45,External Contract Hire,2324_P09_CR00094,REDACTED PERSONAL DATA
Sandwell Metropolitan Borough Council,http://www.sandwell.gov.uk/info/200202/performance_and_spending/1079/payments_over_500,11-Dec-2023,Childrens Services,REDACTED PERSONAL DATA,Childrens Services,727.27,External Contract Hire,2324_P09_CR00095,REDACTED PERSONAL DATA
Sandwell Metropolitan Borough Council,http://www.sandwell.gov.uk/info/200202/performance_and_spending/1079/payments_over_500,11-Dec-2023,Childrens Services,REDACTED PERSONAL DATA,Childrens Services,727.27,External Contract Hire,2324_P09_CR00096,REDACTED PERSONAL DATA
Sandwell Metropolitan Borough Council,http://www.sandwell.gov.uk/info/200202/performance_and_spending/1079/payments_over_500,11-Dec-2023,Childrens Services,REDACTED PERSONAL DATA,Childrens Services,545.45,External Contract Hire,2324_P09_CR00097,REDACTED PERSONAL DATA
Sandwell Metropolitan Borough Council,http://www.sandwell.gov.uk/info/200202/performance_and_spending/1079/payments_over_500,11-Dec-2023,Childrens Services,REDACTED PERSONAL DATA,Childrens Services,545.45,External Contract Hire,2324_P09_CR00098,REDACTED PERSONAL DATA
Sandwell Metropolitan Borough Council,http://www.sandwell.gov.uk/info/200202/performance_and_spending/1079/payments_over_500,11-Dec-2023,Childrens Services,REDACTED PERSONAL DATA,Childrens Services,727.27,External Contract Hire,2324_P09_CR00099,REDACTED PERSONAL DATA
Sandwell Metropolitan Borough Council,http://www.sandwell.gov.uk/info/200202/performance_and_spending/1079/payments_over_500,11-Dec-2023,Childrens Services,REDACTED PERSONAL DATA,Childrens Services,545.45,External Contract Hire,2324_P09_CR00100,REDACTED PERSONAL DATA
Sandwell Metropolitan Borough Council,http://www.sandwell.gov.uk/info/200202/performance_and_spending/1079/payments_over_500,11-Dec-2023,Childrens Services,REDACTED PERSONAL DATA,Childrens Services,545.45,External Contract Hire,2324_P09_CR00101,REDACTED PERSONAL DATA
Sandwell Metropolitan Borough Council,http://www.sandwell.gov.uk/info/200202/performance_and_spending/1079/payments_over_500,11-Dec-2023,Childrens Services,REDACTED PERSONAL DATA,Childrens Services,545.45,External Contract Hire,2324_P09_CR00102,REDACTED PERSONAL DATA
Sandwell Metropolitan Borough Council,http://www.sandwell.gov.uk/info/200202/performance_and_spending/1079/payments_over_500,11-Dec-2023,Childrens Services,REDACTED PERSONAL DATA,Childrens Services,545.45,External Contract Hire,2324_P09_CR00103,REDACTED PERSONAL DATA
Sandwell Metropolitan Borough Council,http://www.sandwell.gov.uk/info/200202/performance_and_spending/1079/payments_over_500,11-Dec-2023,Childrens Services,REDACTED PERSONAL DATA,Childrens Services,727.28,External Contract Hire,2324_P09_CR00104,REDACTED PERSONAL DATA
Sandwell Metropolitan Borough Council,http://www.sandwell.gov.uk/info/200202/performance_and_spending/1079/payments_over_500,11-Dec-2023,Childrens Services,REDACTED PERSONAL DATA,Childrens Services,545.45,External Contract Hire,2324_P09_CR00105,REDACTED PERSONAL DATA
Sandwell Metropolitan Borough Council,http://www.sandwell.gov.uk/info/200202/performance_and_spending/1079/payments_over_500,05-Dec-2023,Childrens Services,REDACTED PERSONAL DATA,Childrens Services,506.88,External Contract Hire,2324_P09_CR00106,REDACTED PERSONAL DATA
Sandwell Metropolitan Borough Council,http://www.sandwell.gov.uk/info/200202/performance_and_spending/1079/payments_over_500,11-Dec-2023,Childrens Services,REDACTED PERSONAL DATA,Childrens Services,727.27,External Contract Hire,2324_P09_CR00107,REDACTED PERSONAL DATA
Sandwell Metropolitan Borough Council,http://www.sandwell.gov.uk/info/200202/performance_and_spending/1079/payments_over_500,11-Dec-2023,Childrens Services,REDACTED PERSONAL DATA,Childrens Services,727.27,External Contract Hire,2324_P09_CR00108,REDACTED PERSONAL DATA
Sandwell Metropolitan Borough Council,http://www.sandwell.gov.uk/info/200202/performance_and_spending/1079/payments_over_500,11-Dec-2023,Childrens Services,REDACTED PERSONAL DATA,Childrens Services,545.45,External Contract Hire,2324_P09_CR00109,REDACTED PERSONAL DATA
Sandwell Metropolitan Borough Council,http://www.sandwell.gov.uk/info/200202/performance_and_spending/1079/payments_over_500,11-Dec-2023,Childrens Services,REDACTED PERSONAL DATA,Childrens Services,545.45,External Contract Hire,2324_P09_CR00110,REDACTED PERSONAL DATA
Sandwell Metropolitan Borough Council,http://www.sandwell.gov.uk/info/200202/performance_and_spending/1079/payments_over_500,11-Dec-2023,Childrens Services,REDACTED PERSONAL DATA,Childrens Services,545.45,External Contract Hire,2324_P09_CR00111,REDACTED PERSONAL DATA
Sandwell Metropolitan Borough Council,http://www.sandwell.gov.uk/info/200202/performance_and_spending/1079/payments_over_500,11-Dec-2023,Childrens Services,REDACTED PERSONAL DATA,Childrens Services,727.27,External Contract Hire,2324_P09_CR00112,REDACTED PERSONAL DATA
Sandwell Metropolitan Borough Council,http://www.sandwell.gov.uk/info/200202/performance_and_spending/1079/payments_over_500,11-Dec-2023,Childrens Services,REDACTED PERSONAL DATA,Childrens Services,545.45,External Contract Hire,2324_P09_CR00113,REDACTED PERSONAL DATA
Sandwell Metropolitan Borough Council,http://www.sandwell.gov.uk/info/200202/performance_and_spending/1079/payments_over_500,13-Dec-2023,Childrens Services,CREATIVE ACTIVE LIVES CIC,Childrens Services,8200.00,Grant Payments,2324_P09_CR00114,138641
Sandwell Metropolitan Borough Council,http://www.sandwell.gov.uk/info/200202/performance_and_spending/1079/payments_over_500,01-Dec-2023,Childrens Services,EARLS GYMNASTICS CLUB,Childrens Services,4600.00,Grant Payments,2324_P09_CR00115,96950
Sandwell Metropolitan Borough Council,http://www.sandwell.gov.uk/info/200202/performance_and_spending/1079/payments_over_500,01-Dec-2023,Childrens Services,ELP SPORTS LTD,Childrens Services,4489.00,Grant Payments,2324_P09_CR00116,165615
Sandwell Metropolitan Borough Council,http://www.sandwell.gov.uk/info/200202/performance_and_spending/1079/payments_over_500,01-Dec-2023,Childrens Services,P&E SPORTS REDDITCH LTD,Childrens Services,3578.00,Grant Payments,2324_P09_CR00117,163643
Sandwell Metropolitan Borough Council,http://www.sandwell.gov.uk/info/200202/performance_and_spending/1079/payments_over_500,01-Dec-2023,Childrens Services,RB SPORTS ACTIVITIES LTD,Childrens Services,2670.00,Grant Payments,2324_P09_CR00118,126163
Sandwell Metropolitan Borough Council,http://www.sandwell.gov.uk/info/200202/performance_and_spending/1079/payments_over_500,01-Dec-2023,Childrens Services,SANDWELL YOUNG CARERS,Childrens Services,5100.00,Grant Payments,2324_P09_CR00119,08482635
Sandwell Metropolitan Borough Council,http://www.sandwell.gov.uk/info/200202/performance_and_spending/1079/payments_over_500,13-Dec-2023,Childrens Services,TIBBINGTON TENANTS & RESIDENTS ASSOCIATION,Childrens Services,500.00,Grant Payments,2324_P09_CR00120,89706
Sandwell Metropolitan Borough Council,http://www.sandwell.gov.uk/info/200202/performance_and_spending/1079/payments_over_500,01-Dec-2023,Childrens Services,TIBBINGTON TENANTS & RESIDENTS ASSOCIATION,Childrens Services,3162.00,Grant Payments,2324_P09_CR00121,89706
Sandwell Metropolitan Borough Council,http://www.sandwell.gov.uk/info/200202/performance_and_spending/1079/payments_over_500,01-Dec-2023,Childrens Services Capital,BLOOM PROCUREMENT SERVICES LTD,Childrens Services Capital,56566.16,"CIP - New Construction,Conversion, Enhancement & Reno",2324_P09_CR00122,141813
Sandwell Metropolitan Borough Council,http://www.sandwell.gov.uk/info/200202/performance_and_spending/1079/payments_over_500,01-Dec-2023,Childrens Services Capital,ORMISTON ACADEMIES TRUST,Childrens Services Capital,97130.90,"CIP - New Construction,Conversion, Enhancement & Reno",2324_P09_CR00123,119064
Sandwell Metropolitan Borough Council,http://www.sandwell.gov.uk/info/200202/performance_and_spending/1079/payments_over_500,19-Dec-2023,Childrens Services Capital,SEDDON CONSTRUCTION LIMITED,Childrens Services Capital,24769.04,"CIP - New Construction,Conversion, Enhancement & Reno",2324_P09_CR00124,132999
Sandwell Metropolitan Borough Council,http://www.sandwell.gov.uk/info/200202/performance_and_spending/1079/payments_over_500,08-Dec-2023,Childrens Services Capital,SEDDON CONSTRUCTION LIMITED,Childrens Services Capital,217004.16,"CIP - New Construction,Conversion, Enhancement & Reno",2324_P09_CR00125,132999
Sandwell Metropolitan Borough Council,http://www.sandwell.gov.uk/info/200202/performance_and_spending/1079/payments_over_500,01-Dec-2023,Childrens Services Capital,SHIRELAND LEARNING LTD,Childrens Services Capital,80000.00,"CIP - New Construction,Conversion, Enhancement & Reno",2324_P09_CR00126,71222
Sandwell Metropolitan Borough Council,http://www.sandwell.gov.uk/info/200202/performance_and_spending/1079/payments_over_500,01-Dec-2023,Corporate Management,TILE HILL INTERIM & EXECUTIVE LTD,Corporate Management,10950.00,Advertising & Publicity,2324_P09_CR00127,167439
Sandwell Metropolitan Borough Council,http://www.sandwell.gov.uk/info/200202/performance_and_spending/1079/payments_over_500,01-Dec-2023,Corporate Management,TILE HILL INTERIM & EXECUTIVE LTD,Corporate Management,20850.00,Advertising & Publicity,2324_P09_CR00128,167439
Sandwell Metropolitan Borough Council,http://www.sandwell.gov.uk/info/200202/performance_and_spending/1079/payments_over_500,01-Dec-2023,Corporate Management,WEST MIDLANDS EMPLOYERS,Corporate Management,1222.00,Externally Purchased Professional Services ,2324_P09_CR00129,01587505
Sandwell Metropolitan Borough Council,http://www.sandwell.gov.uk/info/200202/performance_and_spending/1079/payments_over_500,01-Dec-2023,FINANCE (Inc SIU),AMIN HAQUE LTD CLIENT,Assistant Chief Executive (Excl SIU),1771.00,Insurance,2324_P09_CR00130,164603
Sandwell Metropolitan Borough Council,http://www.sandwell.gov.uk/info/200202/performance_and_spending/1079/payments_over_500,05-Dec-2023,FINANCE (Inc SIU),BOND TURNER,Assistant Chief Executive (Excl SIU),2750.00,Insurance,2324_P09_CR00131,152400
Sandwell Metropolitan Borough Council,http://www.sandwell.gov.uk/info/200202/performance_and_spending/1079/payments_over_500,04-Dec-2023,FINANCE (Inc SIU),BOND TURNER,Assistant Chief Executive (Excl SIU),11000.00,Insurance,2324_P09_CR00132,152400
Sandwell Metropolitan Borough Council,http://www.sandwell.gov.uk/info/200202/performance_and_spending/1079/payments_over_500,05-Dec-2023,FINANCE (Inc SIU),BROWNE JACOBSON LLP,Assistant Chief Executive (Excl SIU),643.70,Externally Purchased Professional Services ,2324_P09_CR00133,109574
Sandwell Metropolitan Borough Council,http://www.sandwell.gov.uk/info/200202/performance_and_spending/1079/payments_over_500,05-Dec-2023,FINANCE (Inc SIU),BROWNE JACOBSON LLP,Assistant Chief Executive (Excl SIU),851.40,Externally Purchased Professional Services ,2324_P09_CR00134,109574
Sandwell Metropolitan Borough Council,http://www.sandwell.gov.uk/info/200202/performance_and_spending/1079/payments_over_500,13-Dec-2023,FINANCE (Inc SIU),BROWNE JACOBSON LLP,Assistant Chief Executive (Excl SIU),1371.80,Externally Purchased Professional Services ,2324_P09_CR00135,109574
Sandwell Metropolitan Borough Council,http://www.sandwell.gov.uk/info/200202/performance_and_spending/1079/payments_over_500,05-Dec-2023,FINANCE (Inc SIU),BROWNE JACOBSON LLP,Assistant Chief Executive (Excl SIU),1609.30,Externally Purchased Professional Services ,2324_P09_CR00136,109574
Sandwell Metropolitan Borough Council,http://www.sandwell.gov.uk/info/200202/performance_and_spending/1079/payments_over_500,18-Dec-2023,FINANCE (Inc SIU),BROWNE JACOBSON LLP,Assistant Chief Executive (Excl SIU),3220.00,Externally Purchased Professional Services ,2324_P09_CR00137,109574
Sandwell Metropolitan Borough Council,http://www.sandwell.gov.uk/info/200202/performance_and_spending/1079/payments_over_500,08-Dec-2023,FINANCE (Inc SIU),BROWNE JACOBSON LLP,Assistant Chief Executive (Excl SIU),5943.00,Externally Purchased Professional Services ,2324_P09_CR00138,109574
Sandwell Metropolitan Borough Council,http://www.sandwell.gov.uk/info/200202/performance_and_spending/1079/payments_over_500,14-Dec-2023,FINANCE (Inc SIU),BROWNE JACOBSON LLP,Assistant Chief Executive (Excl SIU),6612.20,Externally Purchased Professional Services ,2324_P09_CR00139,109574
Sandwell Metropolitan Borough Council,http://www.sandwell.gov.uk/info/200202/performance_and_spending/1079/payments_over_500,08-Dec-2023,FINANCE (Inc SIU),COBLEYS LLP,Assistant Chief Executive (Excl SIU),7500.00,Insurance,2324_P09_CR00140,110381
Sandwell Metropolitan Borough Council,http://www.sandwell.gov.uk/info/200202/performance_and_spending/1079/payments_over_500,14-Dec-2023,FINANCE (Inc SIU),DRISCOLL KINGSTON SOLICITORS,Assistant Chief Executive (Excl SIU),530.73,Insurance,2324_P09_CR00141,140883
Sandwell Metropolitan Borough Council,http://www.sandwell.gov.uk/info/200202/performance_and_spending/1079/payments_over_500,12-Dec-2023,FINANCE (Inc SIU),DRISCOLL KINGSTON SOLICITORS,Assistant Chief Executive (Excl SIU),1000.00,Insurance,2324_P09_CR00142,140883
Sandwell Metropolitan Borough Council,http://www.sandwell.gov.uk/info/200202/performance_and_spending/1079/payments_over_500,01-Dec-2023,FINANCE (Inc SIU),DWP,Assistant Chief Executive (Excl SIU),744.00,Insurance,2324_P09_CR00143,01753867
Sandwell Metropolitan Borough Council,http://www.sandwell.gov.uk/info/200202/performance_and_spending/1079/payments_over_500,11-Dec-2023,FINANCE (Inc SIU),DWP,Assistant Chief Executive (Excl SIU),967.00,Insurance,2324_P09_CR00144,01753867
Sandwell Metropolitan Borough Council,http://www.sandwell.gov.uk/info/200202/performance_and_spending/1079/payments_over_500,14-Dec-2023,FINANCE (Inc SIU),FIRST DISPUTE MANAGEMENT,Assistant Chief Executive (Excl SIU),7000.00,Insurance,2324_P09_CR00145,167316
Sandwell Metropolitan Borough Council,http://www.sandwell.gov.uk/info/200202/performance_and_spending/1079/payments_over_500,01-Dec-2023,FINANCE (Inc SIU),GOWING LAW SOLICITORS,Assistant Chief Executive (Excl SIU),6000.00,Insurance,2324_P09_CR00146,163069
Sandwell Metropolitan Borough Council,http://www.sandwell.gov.uk/info/200202/performance_and_spending/1079/payments_over_500,01-Dec-2023,FINANCE (Inc SIU),HODGE JONES & ALLEN LLP,Assistant Chief Executive (Excl SIU),4648.20,Insurance,2324_P09_CR00147,165216
Sandwell Metropolitan Borough Council,http://www.sandwell.gov.uk/info/200202/performance_and_spending/1079/payments_over_500,01-Dec-2023,FINANCE (Inc SIU),HODGE JONES & ALLEN LLP,Assistant Chief Executive (Excl SIU),10585.00,Insurance,2324_P09_CR00148,165216
Sandwell Metropolitan Borough Council,http://www.sandwell.gov.uk/info/200202/performance_and_spending/1079/payments_over_500,18-Dec-2023,FINANCE (Inc SIU),LAW TOGETHER,Assistant Chief Executive (Excl SIU),4500.00,Insurance,2324_P09_CR00149,161203
Sandwell Metropolitan Borough Council,http://www.sandwell.gov.uk/info/200202/performance_and_spending/1079/payments_over_500,18-Dec-2023,FINANCE (Inc SIU),LAW TOGETHER,Assistant Chief Executive (Excl SIU),5351.00,Insurance,2324_P09_CR00150,161203
Sandwell Metropolitan Borough Council,http://www.sandwell.gov.uk/info/200202/performance_and_spending/1079/payments_over_500,30-Nov-2023,FINANCE (Inc SIU),LV (LIVEPOOL VICTORIA),Assistant Chief Executive (Excl SIU),2502.20,Insurance,2324_P09_CR00151,164318
Sandwell Metropolitan Borough Council,http://www.sandwell.gov.uk/info/200202/performance_and_spending/1079/payments_over_500,14-Dec-2023,FINANCE (Inc SIU),MJV & CO SOLICITORS LTD T/A MJV SOLICITORS,Assistant Chief Executive (Excl SIU),5097.11,Insurance,2324_P09_CR00152,147969
Sandwell Metropolitan Borough Council,http://www.sandwell.gov.uk/info/200202/performance_and_spending/1079/payments_over_500,01-Dec-2023,FINANCE (Inc SIU),ROBERT BINGHAM LTD,Assistant Chief Executive (Excl SIU),750.00,Insurance,2324_P09_CR00153,164179
Sandwell Metropolitan Borough Council,http://www.sandwell.gov.uk/info/200202/performance_and_spending/1079/payments_over_500,01-Dec-2023,FINANCE (Inc SIU),REDACTED PERSONAL DATA,Assistant Chief Executive (Excl SIU),750.00,Insurance,2324_P09_CR00154,REDACTED PERSONAL DATA
Sandwell Metropolitan Borough Council,http://www.sandwell.gov.uk/info/200202/performance_and_spending/1079/payments_over_500,08-Dec-2023,FINANCE (Inc SIU),SEDGWICK INTERNATIONAL UK,Assistant Chief Executive (Excl SIU),775.00,Externally Purchased Professional Services ,2324_P09_CR00155,136510
Sandwell Metropolitan Borough Council,http://www.sandwell.gov.uk/info/200202/performance_and_spending/1079/payments_over_500,07-Dec-2023,FINANCE (Inc SIU),REDACTED PERSONAL DATA,Assistant Chief Executive (Excl SIU),1050.00,Insurance,2324_P09_CR00156,REDACTED PERSONAL DATA
Sandwell Metropolitan Borough Council,http://www.sandwell.gov.uk/info/200202/performance_and_spending/1079/payments_over_500,18-Dec-2023,FINANCE (Inc SIU),TRAVELERS INSURANCE CO LTD,Assistant Chief Executive (Excl SIU),12825.89,Insurance,2324_P09_CR00157,78541
Sandwell Metropolitan Borough Council,http://www.sandwell.gov.uk/info/200202/performance_and_spending/1079/payments_over_500,01-Dec-2023,FINANCE (Inc SIU),VERITAS SOLICITORS,Assistant Chief Executive (Excl SIU),970.00,Insurance,2324_P09_CR00158,163336
Sandwell Metropolitan Borough Council,http://www.sandwell.gov.uk/info/200202/performance_and_spending/1079/payments_over_500,07-Dec-2023,FINANCE (Inc SIU),AMBIENT PEOPLE LTD,Assistant Chief Executive (Excl SIU),3450.00,Agency Staff,2324_P09_CR00159,165446
Sandwell Metropolitan Borough Council,http://www.sandwell.gov.uk/info/200202/performance_and_spending/1079/payments_over_500,07-Dec-2023,FINANCE (Inc SIU),AMBIENT PEOPLE LTD,Assistant Chief Executive (Excl SIU),3450.00,Agency Staff,2324_P09_CR00160,165446
Sandwell Metropolitan Borough Council,http://www.sandwell.gov.uk/info/200202/performance_and_spending/1079/payments_over_500,07-Dec-2023,FINANCE (Inc SIU),ASCENDANT SOLUTIONS LIMITED,Assistant Chief Executive (Excl SIU),8500.00,Grant Payments,2324_P09_CR00161,150134
Sandwell Metropolitan Borough Council,http://www.sandwell.gov.uk/info/200202/performance_and_spending/1079/payments_over_500,01-Dec-2023,FINANCE (Inc SIU),EKAL SOLUTIONS LIMITED,Assistant Chief Executive (Excl SIU),2925.00,Agency Staff,2324_P09_CR00162,166571
Sandwell Metropolitan Borough Council,http://www.sandwell.gov.uk/info/200202/performance_and_spending/1079/payments_over_500,01-Dec-2023,FINANCE (Inc SIU),GATENBYSANDERSON LTD,Assistant Chief Executive (Excl SIU),26565.00,Agency Staff,2324_P09_CR00163,50038
Sandwell Metropolitan Borough Council,http://www.sandwell.gov.uk/info/200202/performance_and_spending/1079/payments_over_500,01-Dec-2023,FINANCE (Inc SIU),HEMISPHERE WEST EUROPE LTD,Assistant Chief Executive (Excl SIU),1800.00,Licences,2324_P09_CR00164,147383
Sandwell Metropolitan Borough Council,http://www.sandwell.gov.uk/info/200202/performance_and_spending/1079/payments_over_500,01-Dec-2023,FINANCE (Inc SIU),MACILDOWIE ASSOCIATES LTD,Assistant Chief Executive (Excl SIU),2632.50,Agency Staff,2324_P09_CR00165,164797
Sandwell Metropolitan Borough Council,http://www.sandwell.gov.uk/info/200202/performance_and_spending/1079/payments_over_500,01-Dec-2023,FINANCE (Inc SIU),MACILDOWIE ASSOCIATES LTD,Assistant Chief Executive (Excl SIU),3510.00,Agency Staff,2324_P09_CR00166,164797
Sandwell Metropolitan Borough Council,http://www.sandwell.gov.uk/info/200202/performance_and_spending/1079/payments_over_500,01-Dec-2023,FINANCE (Inc SIU),MACILDOWIE ASSOCIATES LTD,Assistant Chief Executive (Excl SIU),3510.00,Agency Staff,2324_P09_CR00167,164797
Sandwell Metropolitan Borough Council,http://www.sandwell.gov.uk/info/200202/performance_and_spending/1079/payments_over_500,01-Dec-2023,FINANCE (Inc SIU),MACILDOWIE ASSOCIATES LTD,Assistant Chief Executive (Excl SIU),3510.00,Agency Staff,2324_P09_CR00168,164797
Sandwell Metropolitan Borough Council,http://www.sandwell.gov.uk/info/200202/performance_and_spending/1079/payments_over_500,01-Dec-2023,FINANCE (Inc SIU),MACILDOWIE ASSOCIATES LTD,Assistant Chief Executive (Excl SIU),4212.00,Agency Staff,2324_P09_CR00169,164797
Sandwell Metropolitan Borough Council,http://www.sandwell.gov.uk/info/200202/performance_and_spending/1079/payments_over_500,01-Dec-2023,FINANCE (Inc SIU),WOLVERHAMPTON CITY COUNCIL ,Assistant Chief Executive (Excl SIU),153750.00,Pensions,2324_P09_CR00170,120965
Sandwell Metropolitan Borough Council,http://www.sandwell.gov.uk/info/200202/performance_and_spending/1079/payments_over_500,20-Dec-2023,FINANCE (Inc SIU),WOLVERHAMPTON CITY COUNCIL ,Assistant Chief Executive (Excl SIU),153750.00,Pensions,2324_P09_CR00171,120965
Sandwell Metropolitan Borough Council,http://www.sandwell.gov.uk/info/200202/performance_and_spending/1079/payments_over_500,15-Dec-2023,FINANCE (Inc SIU),ZURICH MUNICIPAL ,Assistant Chief Executive (Excl SIU),1812013.11,Insurance,2324_P09_CR00172,120965
Sandwell Metropolitan Borough Council,http://www.sandwell.gov.uk/info/200202/performance_and_spending/1079/payments_over_500,04-Dec-2023,FINANCE (Inc SIU),NEC SOFTWARE SOLUTIONS UK LTD,Assistant Chief Executive (Excl SIU),532.51,Private Contractors,2324_P09_CR00173,56043
Sandwell Metropolitan Borough Council,http://www.sandwell.gov.uk/info/200202/performance_and_spending/1079/payments_over_500,01-Dec-2023,FINANCE (Inc SIU),NEC SOFTWARE SOLUTIONS UK LTD,Assistant Chief Executive (Excl SIU),5400.00,Externally Purchased Professional Services ,2324_P09_CR00174,56043
Sandwell Metropolitan Borough Council,http://www.sandwell.gov.uk/info/200202/performance_and_spending/1079/payments_over_500,01-Dec-2023,FINANCE (Inc SIU),PAYPOINT PLC,Assistant Chief Executive (Excl SIU),1645.35,Fuel ,2324_P09_CR00175,112333
Sandwell Metropolitan Borough Council,http://www.sandwell.gov.uk/info/200202/performance_and_spending/1079/payments_over_500,01-Dec-2023,FINANCE (Inc SIU),PAYPOINT PLC,Assistant Chief Executive (Excl SIU),1670.35,Fuel ,2324_P09_CR00176,112333
Sandwell Metropolitan Borough Council,http://www.sandwell.gov.uk/info/200202/performance_and_spending/1079/payments_over_500,05-Dec-2023,FINANCE (Inc SIU),PAYPOINT PLC,Assistant Chief Executive (Excl SIU),2190.85,Fuel ,2324_P09_CR00177,112333
Sandwell Metropolitan Borough Council,http://www.sandwell.gov.uk/info/200202/performance_and_spending/1079/payments_over_500,01-Dec-2023,FINANCE (Inc SIU),PROVISION  HOUSE,Assistant Chief Executive (Excl SIU),14523.00,Equipment & Furniture ,2324_P09_CR00178,71090
Sandwell Metropolitan Borough Council,http://www.sandwell.gov.uk/info/200202/performance_and_spending/1079/payments_over_500,07-Dec-2023,FINANCE (Inc SIU),SOCITM ADVISORY LTD,Assistant Chief Executive (Excl SIU),40527.00,Externally Purchased Professional Services ,2324_P09_CR00179,162370
Sandwell Metropolitan Borough Council,http://www.sandwell.gov.uk/info/200202/performance_and_spending/1079/payments_over_500,01-Dec-2023,FINANCE (Inc SIU),THE OYSTER PARTNERSHIP LTD,Assistant Chief Executive (Excl SIU),2800.00,Agency Staff,2324_P09_CR00180,148917
Sandwell Metropolitan Borough Council,http://www.sandwell.gov.uk/info/200202/performance_and_spending/1079/payments_over_500,01-Dec-2023,FINANCE (Inc SIU),ZURICH INSURANCE PLC,Assistant Chief Executive (Excl SIU),15000.00,Insurance,2324_P09_CR00181,01749452
Sandwell Metropolitan Borough Council,http://www.sandwell.gov.uk/info/200202/performance_and_spending/1079/payments_over_500,08-Dec-2023,FINANCE (Inc SIU),ABBEY INFANT SCHOOL ,Assistant Chief Executive (Excl SIU),2045.00,Schools Support Services,2324_P09_CR00182,60959
Sandwell Metropolitan Borough Council,http://www.sandwell.gov.uk/info/200202/performance_and_spending/1079/payments_over_500,08-Dec-2023,FINANCE (Inc SIU),ABBEY JUNIOR SCHOOL  ,Assistant Chief Executive (Excl SIU),4315.00,Schools Support Services,2324_P09_CR00183,60961
Sandwell Metropolitan Borough Council,http://www.sandwell.gov.uk/info/200202/performance_and_spending/1079/payments_over_500,08-Dec-2023,FINANCE (Inc SIU),ALBERT PRITCHARD INFANT SCHOOL,Assistant Chief Executive (Excl SIU),3430.00,Schools Support Services,2324_P09_CR00184,60962
Sandwell Metropolitan Borough Council,http://www.sandwell.gov.uk/info/200202/performance_and_spending/1079/payments_over_500,08-Dec-2023,FINANCE (Inc SIU),ALL SAINTS CE PRIMARY SCHOOL ,Assistant Chief Executive (Excl SIU),5640.00,Schools Support Services,2324_P09_CR00185,60964
Sandwell Metropolitan Borough Council,http://www.sandwell.gov.uk/info/200202/performance_and_spending/1079/payments_over_500,08-Dec-2023,FINANCE (Inc SIU),ANNIE LENNARD INFANT SCHOOL,Assistant Chief Executive (Excl SIU),3715.00,Schools Support Services,2324_P09_CR00186,60966
Sandwell Metropolitan Borough Council,http://www.sandwell.gov.uk/info/200202/performance_and_spending/1079/payments_over_500,08-Dec-2023,FINANCE (Inc SIU),BEARWOOD PRIMARY SCHOOL   ,Assistant Chief Executive (Excl SIU),8250.00,Schools Support Services,2324_P09_CR00187,60967
Sandwell Metropolitan Borough Council,http://www.sandwell.gov.uk/info/200202/performance_and_spending/1079/payments_over_500,08-Dec-2023,FINANCE (Inc SIU),BLACKHEATH PRIMARY SCHOOL ,Assistant Chief Executive (Excl SIU),7830.00,Schools Support Services,2324_P09_CR00188,60968
Sandwell Metropolitan Borough Council,http://www.sandwell.gov.uk/info/200202/performance_and_spending/1079/payments_over_500,08-Dec-2023,FINANCE (Inc SIU),BLEAKHOUSE PRIMARY SCHOOL.,Assistant Chief Executive (Excl SIU),5260.00,Schools Support Services,2324_P09_CR00189,60969
Sandwell Metropolitan Borough Council,http://www.sandwell.gov.uk/info/200202/performance_and_spending/1079/payments_over_500,08-Dec-2023,FINANCE (Inc SIU),BRANDHALL PRIMARY SCHOOL   ,Assistant Chief Executive (Excl SIU),7815.00,Schools Support Services,2324_P09_CR00190,60971
Sandwell Metropolitan Borough Council,http://www.sandwell.gov.uk/info/200202/performance_and_spending/1079/payments_over_500,08-Dec-2023,FINANCE (Inc SIU),BRICKHOUSE PRIMARY SCHOOL ,Assistant Chief Executive (Excl SIU),4300.00,Schools Support Services,2324_P09_CR00191,60973
Sandwell Metropolitan Borough Council,http://www.sandwell.gov.uk/info/200202/performance_and_spending/1079/payments_over_500,08-Dec-2023,FINANCE (Inc SIU),BRISTNALL HALL ACADEMY,Assistant Chief Executive (Excl SIU),20015.00,Grant Payments,2324_P09_CR00192,107471
Sandwell Metropolitan Borough Council,http://www.sandwell.gov.uk/info/200202/performance_and_spending/1079/payments_over_500,08-Dec-2023,FINANCE (Inc SIU),BURNT TREE PRIMARY SCHOOL  ,Assistant Chief Executive (Excl SIU),7005.00,Schools Support Services,2324_P09_CR00193,60974
Sandwell Metropolitan Borough Council,http://www.sandwell.gov.uk/info/200202/performance_and_spending/1079/payments_over_500,08-Dec-2023,FINANCE (Inc SIU),CAPE PRIMARY SCHOOL,Assistant Chief Executive (Excl SIU),11600.00,Schools Support Services,2324_P09_CR00194,01672537
Sandwell Metropolitan Borough Council,http://www.sandwell.gov.uk/info/200202/performance_and_spending/1079/payments_over_500,08-Dec-2023,FINANCE (Inc SIU),CAUSEWAY GREEN PRIMARY SCHOOL   ,Assistant Chief Executive (Excl SIU),5815.00,Schools Support Services,2324_P09_CR00195,60976
Sandwell Metropolitan Borough Council,http://www.sandwell.gov.uk/info/200202/performance_and_spending/1079/payments_over_500,08-Dec-2023,FINANCE (Inc SIU),CHRIST CHURCH CE PRIMARY  ,Assistant Chief Executive (Excl SIU),5200.00,Schools Support Services,2324_P09_CR00196,60978
Sandwell Metropolitan Borough Council,http://www.sandwell.gov.uk/info/200202/performance_and_spending/1079/payments_over_500,08-Dec-2023,FINANCE (Inc SIU),CORNGREAVES ACADEMY,Assistant Chief Executive (Excl SIU),3115.00,Grant Payments,2324_P09_CR00197,112862
Sandwell Metropolitan Borough Council,http://www.sandwell.gov.uk/info/200202/performance_and_spending/1079/payments_over_500,08-Dec-2023,FINANCE (Inc SIU),CROCKETTS LANE COMMUNITY PRIMARY SCHOOL ,Assistant Chief Executive (Excl SIU),6480.00,Schools Support Services,2324_P09_CR00198,60980
Sandwell Metropolitan Borough Council,http://www.sandwell.gov.uk/info/200202/performance_and_spending/1079/payments_over_500,08-Dec-2023,FINANCE (Inc SIU),DEVONSHIRE INFANTS ACADEMY,Assistant Chief Executive (Excl SIU),3645.00,Grant Payments,2324_P09_CR00199,118366
Sandwell Metropolitan Borough Council,http://www.sandwell.gov.uk/info/200202/performance_and_spending/1079/payments_over_500,08-Dec-2023,FINANCE (Inc SIU),DEVONSHIRE JUNIOR ACADEMY,Assistant Chief Executive (Excl SIU),5050.00,Grant Payments,2324_P09_CR00200,118367
Sandwell Metropolitan Borough Council,http://www.sandwell.gov.uk/info/200202/performance_and_spending/1079/payments_over_500,08-Dec-2023,FINANCE (Inc SIU),EATON VALLEY PRIMARY SCHOOL,Assistant Chief Executive (Excl SIU),6115.00,Schools Support Services,2324_P09_CR00201,60981
Sandwell Metropolitan Borough Council,http://www.sandwell.gov.uk/info/200202/performance_and_spending/1079/payments_over_500,08-Dec-2023,FINANCE (Inc SIU),ELM TREE PRIMARY ACADEMY,Assistant Chief Executive (Excl SIU),800.00,Grant Payments,2324_P09_CR00202,164361
Sandwell Metropolitan Borough Council,http://www.sandwell.gov.uk/info/200202/performance_and_spending/1079/payments_over_500,08-Dec-2023,FINANCE (Inc SIU),FERNDALE PRIMARY SCHOOL      ,Assistant Chief Executive (Excl SIU),7600.00,Schools Support Services,2324_P09_CR00203,60987
Sandwell Metropolitan Borough Council,http://www.sandwell.gov.uk/info/200202/performance_and_spending/1079/payments_over_500,08-Dec-2023,FINANCE (Inc SIU),GALTON VALLEY PRIMARY SCHOOL,Assistant Chief Executive (Excl SIU),7525.00,Schools Support Services,2324_P09_CR00204,73124
Sandwell Metropolitan Borough Council,http://www.sandwell.gov.uk/info/200202/performance_and_spending/1079/payments_over_500,08-Dec-2023,FINANCE (Inc SIU),GEORGE BETTS PRIMARY ACADEMY,Assistant Chief Executive (Excl SIU),7015.00,Grant Payments,2324_P09_CR00205,113420
Sandwell Metropolitan Borough Council,http://www.sandwell.gov.uk/info/200202/performance_and_spending/1079/payments_over_500,08-Dec-2023,FINANCE (Inc SIU),GEORGE SALTER COLLEGIATE ACADEMY ORMISTON ACADEMIES TRUST,Assistant Chief Executive (Excl SIU),24545.00,Grant Payments,2324_P09_CR00206,01217798
Sandwell Metropolitan Borough Council,http://www.sandwell.gov.uk/info/200202/performance_and_spending/1079/payments_over_500,08-Dec-2023,FINANCE (Inc SIU),GLEBEFIELDS PRIMARY SCHOOL,Assistant Chief Executive (Excl SIU),9880.00,Schools Support Services,2324_P09_CR00207,60989
Sandwell Metropolitan Borough Council,http://www.sandwell.gov.uk/info/200202/performance_and_spending/1079/payments_over_500,08-Dec-2023,FINANCE (Inc SIU),GOSPEL OAK SCHOOL,Assistant Chief Executive (Excl SIU),23465.00,Grant Payments,2324_P09_CR00208,60952
Sandwell Metropolitan Borough Council,http://www.sandwell.gov.uk/info/200202/performance_and_spending/1079/payments_over_500,08-Dec-2023,FINANCE (Inc SIU),GRACE MARY PRIMARY SCHOOL  ,Assistant Chief Executive (Excl SIU),3850.00,Schools Support Services,2324_P09_CR00209,60991
Sandwell Metropolitan Borough Council,http://www.sandwell.gov.uk/info/200202/performance_and_spending/1079/payments_over_500,08-Dec-2023,FINANCE (Inc SIU),GREAT BRIDGE PRIMARY SCHOOL   ,Assistant Chief Executive (Excl SIU),7415.00,Schools Support Services,2324_P09_CR00210,42484
Sandwell Metropolitan Borough Council,http://www.sandwell.gov.uk/info/200202/performance_and_spending/1079/payments_over_500,08-Dec-2023,FINANCE (Inc SIU),GROVE VALE PRIMARY SCHOOL,Assistant Chief Executive (Excl SIU),2415.00,Schools Support Services,2324_P09_CR00211,60993
Sandwell Metropolitan Borough Council,http://www.sandwell.gov.uk/info/200202/performance_and_spending/1079/payments_over_500,08-Dec-2023,FINANCE (Inc SIU),HALL GREEN PRIMARY SCHOOL  ,Assistant Chief Executive (Excl SIU),7800.00,Schools Support Services,2324_P09_CR00212,60996
Sandwell Metropolitan Borough Council,http://www.sandwell.gov.uk/info/200202/performance_and_spending/1079/payments_over_500,08-Dec-2023,FINANCE (Inc SIU),HAMSTEAD INFANT SCHOOL  ,Assistant Chief Executive (Excl SIU),2000.00,Schools Support Services,2324_P09_CR00213,60997
Sandwell Metropolitan Borough Council,http://www.sandwell.gov.uk/info/200202/performance_and_spending/1079/payments_over_500,08-Dec-2023,FINANCE (Inc SIU),HAMSTEAD JUNIOR SCHOOL   ,Assistant Chief Executive (Excl SIU),4630.00,Schools Support Services,2324_P09_CR00214,60998
Sandwell Metropolitan Borough Council,http://www.sandwell.gov.uk/info/200202/performance_and_spending/1079/payments_over_500,08-Dec-2023,FINANCE (Inc SIU),HANBURY PRIMARY SCHOOL    ,Assistant Chief Executive (Excl SIU),6800.00,Schools Support Services,2324_P09_CR00215,60995
Sandwell Metropolitan Borough Council,http://www.sandwell.gov.uk/info/200202/performance_and_spending/1079/payments_over_500,08-Dec-2023,FINANCE (Inc SIU),HARGATE PRIMARY SCHOOL  ,Assistant Chief Executive (Excl SIU),6715.00,Schools Support Services,2324_P09_CR00216,60999
Sandwell Metropolitan Borough Council,http://www.sandwell.gov.uk/info/200202/performance_and_spending/1079/payments_over_500,08-Dec-2023,FINANCE (Inc SIU),HARVILLS HAWTHORN PRIMARY SCHOOL    ,Assistant Chief Executive (Excl SIU),6650.00,Schools Support Services,2324_P09_CR00217,01782074
Sandwell Metropolitan Borough Council,http://www.sandwell.gov.uk/info/200202/performance_and_spending/1079/payments_over_500,08-Dec-2023,FINANCE (Inc SIU),HATELEY HEATH PRIMARY ACADEMY  ,Assistant Chief Executive (Excl SIU),7465.00,Grant Payments,2324_P09_CR00218,61000
Sandwell Metropolitan Borough Council,http://www.sandwell.gov.uk/info/200202/performance_and_spending/1079/payments_over_500,08-Dec-2023,FINANCE (Inc SIU),HIGH POINT ACADEMY,Assistant Chief Executive (Excl SIU),1900.00,Grant Payments,2324_P09_CR00219,152394
Sandwell Metropolitan Borough Council,http://www.sandwell.gov.uk/info/200202/performance_and_spending/1079/payments_over_500,08-Dec-2023,FINANCE (Inc SIU),HIGHFIELDS PRIMARY SCHOOL ,Assistant Chief Executive (Excl SIU),6265.00,Schools Support Services,2324_P09_CR00220,01782118
Sandwell Metropolitan Borough Council,http://www.sandwell.gov.uk/info/200202/performance_and_spending/1079/payments_over_500,08-Dec-2023,FINANCE (Inc SIU),HOLLY LODGE FOUNDATION HIGH SCHOOL,Assistant Chief Executive (Excl SIU),30075.00,Schools Support Services,2324_P09_CR00221,60942
Sandwell Metropolitan Borough Council,http://www.sandwell.gov.uk/info/200202/performance_and_spending/1079/payments_over_500,08-Dec-2023,FINANCE (Inc SIU),HOLY NAME CATHOLIC PRIMARY,Assistant Chief Executive (Excl SIU),1850.00,Schools Support Services,2324_P09_CR00222,92683
Sandwell Metropolitan Borough Council,http://www.sandwell.gov.uk/info/200202/performance_and_spending/1079/payments_over_500,08-Dec-2023,FINANCE (Inc SIU),HOLY TRINITY CE PRIMARY   ,Assistant Chief Executive (Excl SIU),7530.00,Schools Support Services,2324_P09_CR00223,61004
Sandwell Metropolitan Borough Council,http://www.sandwell.gov.uk/info/200202/performance_and_spending/1079/payments_over_500,08-Dec-2023,FINANCE (Inc SIU),HOLYHEAD PRIMARY ACADEMY ,Assistant Chief Executive (Excl SIU),4565.00,Grant Payments,2324_P09_CR00224,61005
Sandwell Metropolitan Borough Council,http://www.sandwell.gov.uk/info/200202/performance_and_spending/1079/payments_over_500,08-Dec-2023,FINANCE (Inc SIU),JOSEPH TURNER PRIMARY SCHOOL  ,Assistant Chief Executive (Excl SIU),9500.00,Schools Support Services,2324_P09_CR00225,61006
Sandwell Metropolitan Borough Council,http://www.sandwell.gov.uk/info/200202/performance_and_spending/1079/payments_over_500,08-Dec-2023,FINANCE (Inc SIU),JUBILEE PARK ACADEMY TRUST,Assistant Chief Executive (Excl SIU),5615.00,Grant Payments,2324_P09_CR00226,113377
Sandwell Metropolitan Borough Council,http://www.sandwell.gov.uk/info/200202/performance_and_spending/1079/payments_over_500,08-Dec-2023,FINANCE (Inc SIU),KING GEORGE V PRIMARY SCHOOL   ,Assistant Chief Executive (Excl SIU),4265.00,Schools Support Services,2324_P09_CR00227,61009
Sandwell Metropolitan Borough Council,http://www.sandwell.gov.uk/info/200202/performance_and_spending/1079/payments_over_500,08-Dec-2023,FINANCE (Inc SIU),LANGLEY PRIMARY SCHOOL,Assistant Chief Executive (Excl SIU),7900.00,Schools Support Services,2324_P09_CR00228,61011
Sandwell Metropolitan Borough Council,http://www.sandwell.gov.uk/info/200202/performance_and_spending/1079/payments_over_500,08-Dec-2023,FINANCE (Inc SIU),LIGHTWOODS PRIMARY ACADEMY .,Assistant Chief Executive (Excl SIU),3100.00,Grant Payments,2324_P09_CR00229,61012
Sandwell Metropolitan Borough Council,http://www.sandwell.gov.uk/info/200202/performance_and_spending/1079/payments_over_500,08-Dec-2023,FINANCE (Inc SIU),LODGE PRIMARY SCHOOL      ,Assistant Chief Executive (Excl SIU),7230.00,Schools Support Services,2324_P09_CR00230,61015
Sandwell Metropolitan Borough Council,http://www.sandwell.gov.uk/info/200202/performance_and_spending/1079/payments_over_500,08-Dec-2023,FINANCE (Inc SIU),LYNG PRIMARY SCHOOL ,Assistant Chief Executive (Excl SIU),6300.00,Schools Support Services,2324_P09_CR00231,61026
Sandwell Metropolitan Borough Council,http://www.sandwell.gov.uk/info/200202/performance_and_spending/1079/payments_over_500,08-Dec-2023,FINANCE (Inc SIU),MEADOWS SCHOOL,Assistant Chief Executive (Excl SIU),5500.00,Schools Support Services,2324_P09_CR00232,60955
Sandwell Metropolitan Borough Council,http://www.sandwell.gov.uk/info/200202/performance_and_spending/1079/payments_over_500,08-Dec-2023,FINANCE (Inc SIU),MESTY CROFT ACADEMY,Assistant Chief Executive (Excl SIU),8200.00,Grant Payments,2324_P09_CR00233,106208
Sandwell Metropolitan Borough Council,http://www.sandwell.gov.uk/info/200202/performance_and_spending/1079/payments_over_500,08-Dec-2023,FINANCE (Inc SIU),MOAT FARM INFANTS SCHOOL ,Assistant Chief Executive (Excl SIU),5150.00,Schools Support Services,2324_P09_CR00234,61031
Sandwell Metropolitan Borough Council,http://www.sandwell.gov.uk/info/200202/performance_and_spending/1079/payments_over_500,08-Dec-2023,FINANCE (Inc SIU),MOAT FARM JUNIOR SCHOOL   ,Assistant Chief Executive (Excl SIU),8015.00,Grant Payments,2324_P09_CR00235,61032
Sandwell Metropolitan Borough Council,http://www.sandwell.gov.uk/info/200202/performance_and_spending/1079/payments_over_500,08-Dec-2023,FINANCE (Inc SIU),MOORLANDS PRIMARY SCHOOL   ,Assistant Chief Executive (Excl SIU),3900.00,Schools Support Services,2324_P09_CR00236,04036544
Sandwell Metropolitan Borough Council,http://www.sandwell.gov.uk/info/200202/performance_and_spending/1079/payments_over_500,08-Dec-2023,FINANCE (Inc SIU),NEWTOWN PRIMARY ACADEMY    ,Assistant Chief Executive (Excl SIU),4700.00,Grant Payments,2324_P09_CR00237,61034
Sandwell Metropolitan Borough Council,http://www.sandwell.gov.uk/info/200202/performance_and_spending/1079/payments_over_500,08-Dec-2023,FINANCE (Inc SIU),OAKHAM PRIMARY SCHOOL   ,Assistant Chief Executive (Excl SIU),5020.00,Schools Support Services,2324_P09_CR00238,61035
Sandwell Metropolitan Borough Council,http://www.sandwell.gov.uk/info/200202/performance_and_spending/1079/payments_over_500,08-Dec-2023,FINANCE (Inc SIU),OCKER HILL ACADEMY,Assistant Chief Executive (Excl SIU),4050.00,Grant Payments,2324_P09_CR00239,113691
Sandwell Metropolitan Borough Council,http://www.sandwell.gov.uk/info/200202/performance_and_spending/1079/payments_over_500,08-Dec-2023,FINANCE (Inc SIU),OCKER HILL INFANT SCHOOL   ,Assistant Chief Executive (Excl SIU),2715.00,Schools Support Services,2324_P09_CR00240,61036
Sandwell Metropolitan Borough Council,http://www.sandwell.gov.uk/info/200202/performance_and_spending/1079/payments_over_500,08-Dec-2023,FINANCE (Inc SIU),OLD HILL PRIMARY SCHOOL    ,Assistant Chief Executive (Excl SIU),3865.00,Schools Support Services,2324_P09_CR00241,61038
Sandwell Metropolitan Borough Council,http://www.sandwell.gov.uk/info/200202/performance_and_spending/1079/payments_over_500,08-Dec-2023,FINANCE (Inc SIU),OLD PARK PRIMARY SCHOOL  ,Assistant Chief Executive (Excl SIU),5450.00,Schools Support Services,2324_P09_CR00242,61039
Sandwell Metropolitan Borough Council,http://www.sandwell.gov.uk/info/200202/performance_and_spending/1079/payments_over_500,08-Dec-2023,FINANCE (Inc SIU),OLDBURY ACADEMY,Assistant Chief Executive (Excl SIU),30540.00,Grant Payments,2324_P09_CR00243,69241
Sandwell Metropolitan Borough Council,http://www.sandwell.gov.uk/info/200202/performance_and_spending/1079/payments_over_500,08-Dec-2023,FINANCE (Inc SIU),ORCHARD SCHOOL  ,Assistant Chief Executive (Excl SIU),3550.00,Schools Support Services,2324_P09_CR00244,60956
Sandwell Metropolitan Borough Council,http://www.sandwell.gov.uk/info/200202/performance_and_spending/1079/payments_over_500,08-Dec-2023,FINANCE (Inc SIU),ORMISTON FORGE ACADEMY,Assistant Chief Executive (Excl SIU),29225.00,Grant Payments,2324_P09_CR00245,60941
Sandwell Metropolitan Borough Council,http://www.sandwell.gov.uk/info/200202/performance_and_spending/1079/payments_over_500,08-Dec-2023,FINANCE (Inc SIU),ORMISTON SANDWELL COMMUNITY ACADEMY   ,Assistant Chief Executive (Excl SIU),17865.00,Grant Payments,2324_P09_CR00246,60950
Sandwell Metropolitan Borough Council,http://www.sandwell.gov.uk/info/200202/performance_and_spending/1079/payments_over_500,08-Dec-2023,FINANCE (Inc SIU),OUR LADY AND ST HUBERTS CATHOLIC PRIMARY SCHOOL ,Assistant Chief Executive (Excl SIU),3600.00,Grant Payments,2324_P09_CR00247,61053
Sandwell Metropolitan Borough Council,http://www.sandwell.gov.uk/info/200202/performance_and_spending/1079/payments_over_500,08-Dec-2023,FINANCE (Inc SIU),PARK HILL PRIMARY SCHOOL     ,Assistant Chief Executive (Excl SIU),3500.00,Schools Support Services,2324_P09_CR00248,61040
Sandwell Metropolitan Borough Council,http://www.sandwell.gov.uk/info/200202/performance_and_spending/1079/payments_over_500,08-Dec-2023,FINANCE (Inc SIU),PENNYHILL PRIMARY,Assistant Chief Executive (Excl SIU),13665.00,Schools Support Services,2324_P09_CR00249,73125
Sandwell Metropolitan Borough Council,http://www.sandwell.gov.uk/info/200202/performance_and_spending/1079/payments_over_500,08-Dec-2023,FINANCE (Inc SIU),PERRYFIELDS HIGH SCHOOL     ,Assistant Chief Executive (Excl SIU),13750.00,Grant Payments,2324_P09_CR00250,60946
Sandwell Metropolitan Borough Council,http://www.sandwell.gov.uk/info/200202/performance_and_spending/1079/payments_over_500,08-Dec-2023,FINANCE (Inc SIU),PERRYFIELDS PRIMARY SCHOOL    ,Assistant Chief Executive (Excl SIU),4730.00,Schools Support Services,2324_P09_CR00251,61042
Sandwell Metropolitan Borough Council,http://www.sandwell.gov.uk/info/200202/performance_and_spending/1079/payments_over_500,08-Dec-2023,FINANCE (Inc SIU),PHOENIX COLLEGIATE COLLEGE,Assistant Chief Executive (Excl SIU),37165.00,Schools Support Services,2324_P09_CR00252,95444
Sandwell Metropolitan Borough Council,http://www.sandwell.gov.uk/info/200202/performance_and_spending/1079/payments_over_500,08-Dec-2023,FINANCE (Inc SIU),Q3 ACADEMY LANGLEY,Assistant Chief Executive (Excl SIU),29595.00,Grant Payments,2324_P09_CR00253,128009
Sandwell Metropolitan Borough Council,http://www.sandwell.gov.uk/info/200202/performance_and_spending/1079/payments_over_500,08-Dec-2023,FINANCE (Inc SIU),Q3 ACADEMY TIPTON - THE MERCIAN TRUST,Assistant Chief Executive (Excl SIU),48495.00,Grant Payments,2324_P09_CR00254,112047
Sandwell Metropolitan Borough Council,http://www.sandwell.gov.uk/info/200202/performance_and_spending/1079/payments_over_500,08-Dec-2023,FINANCE (Inc SIU),QUAERERE ACADEMY TRUST    ,Assistant Chief Executive (Excl SIU),18690.00,Grant Payments,2324_P09_CR00255,60939
Sandwell Metropolitan Borough Council,http://www.sandwell.gov.uk/info/200202/performance_and_spending/1079/payments_over_500,08-Dec-2023,FINANCE (Inc SIU),REDDAL HILL PRIMARY SCHOOL  ,Assistant Chief Executive (Excl SIU),7240.00,Schools Support Services,2324_P09_CR00256,61043
Sandwell Metropolitan Borough Council,http://www.sandwell.gov.uk/info/200202/performance_and_spending/1079/payments_over_500,08-Dec-2023,FINANCE (Inc SIU),ROOD END PRIMARY SCHOOL,Assistant Chief Executive (Excl SIU),8810.00,Schools Support Services,2324_P09_CR00257,61044
Sandwell Metropolitan Borough Council,http://www.sandwell.gov.uk/info/200202/performance_and_spending/1079/payments_over_500,08-Dec-2023,FINANCE (Inc SIU),ROUNDS GREEN PRIMARY ACADEMY ,Assistant Chief Executive (Excl SIU),6115.00,Grant Payments,2324_P09_CR00258,61045
Sandwell Metropolitan Borough Council,http://www.sandwell.gov.uk/info/200202/performance_and_spending/1079/payments_over_500,08-Dec-2023,FINANCE (Inc SIU),ROWLEY HALL PRIMARY SCHOOL  ,Assistant Chief Executive (Excl SIU),12545.00,Schools Support Services,2324_P09_CR00259,61046
Sandwell Metropolitan Borough Council,http://www.sandwell.gov.uk/info/200202/performance_and_spending/1079/payments_over_500,08-Dec-2023,FINANCE (Inc SIU),RYDERS GREEN PRIMARY SCHOOL    ,Assistant Chief Executive (Excl SIU),6260.00,Schools Support Services,2324_P09_CR00260,61047
Sandwell Metropolitan Borough Council,http://www.sandwell.gov.uk/info/200202/performance_and_spending/1079/payments_over_500,08-Dec-2023,FINANCE (Inc SIU),SACRED HEART PRIMARY SCHOOL  ,Assistant Chief Executive (Excl SIU),9080.00,Schools Support Services,2324_P09_CR00261,61048
Sandwell Metropolitan Borough Council,http://www.sandwell.gov.uk/info/200202/performance_and_spending/1079/payments_over_500,08-Dec-2023,FINANCE (Inc SIU),SANDWELL ACADEMY TRUST LTD.,Assistant Chief Executive (Excl SIU),16000.00,Grant Payments,2324_P09_CR00262,126137
Sandwell Metropolitan Borough Council,http://www.sandwell.gov.uk/info/200202/performance_and_spending/1079/payments_over_500,08-Dec-2023,FINANCE (Inc SIU),SHENSTONE LODGE SCHOOL  ,Assistant Chief Executive (Excl SIU),4350.00,Grant Payments,2324_P09_CR00263,22995
Sandwell Metropolitan Borough Council,http://www.sandwell.gov.uk/info/200202/performance_and_spending/1079/payments_over_500,08-Dec-2023,FINANCE (Inc SIU),SHIRELAND BIOMEDICAL UTC,Assistant Chief Executive (Excl SIU),5300.00,Grant Payments,2324_P09_CR00264,128174
Sandwell Metropolitan Borough Council,http://www.sandwell.gov.uk/info/200202/performance_and_spending/1079/payments_over_500,08-Dec-2023,FINANCE (Inc SIU),SHIRELAND CBSO ACADEMY,Assistant Chief Executive (Excl SIU),1210.00,Grant Payments,2324_P09_CR00265,167276
Sandwell Metropolitan Borough Council,http://www.sandwell.gov.uk/info/200202/performance_and_spending/1079/payments_over_500,08-Dec-2023,FINANCE (Inc SIU),SHIRELAND COLLEGIATE ACADEMY      ,Assistant Chief Executive (Excl SIU),28180.00,Grant Payments,2324_P09_CR00266,60947
Sandwell Metropolitan Borough Council,http://www.sandwell.gov.uk/info/200202/performance_and_spending/1079/payments_over_500,08-Dec-2023,FINANCE (Inc SIU),SHIRELAND COLLEGIATE ACADEMY TRUST T/A TAMESIDE,Assistant Chief Executive (Excl SIU),10090.00,Grant Payments,2324_P09_CR00267,61064
Sandwell Metropolitan Borough Council,http://www.sandwell.gov.uk/info/200202/performance_and_spending/1079/payments_over_500,08-Dec-2023,FINANCE (Inc SIU),SHIRELAND HALL PRIMARY ACADEMY,Assistant Chief Executive (Excl SIU),8960.00,Grant Payments,2324_P09_CR00268,15209
Sandwell Metropolitan Borough Council,http://www.sandwell.gov.uk/info/200202/performance_and_spending/1079/payments_over_500,08-Dec-2023,FINANCE (Inc SIU),SHIRELAND TECHNOLOGY PRIMARY SCHOOL,Assistant Chief Executive (Excl SIU),5150.00,Grant Payments,2324_P09_CR00269,148598
Sandwell Metropolitan Borough Council,http://www.sandwell.gov.uk/info/200202/performance_and_spending/1079/payments_over_500,08-Dec-2023,FINANCE (Inc SIU),SILVERTREES ACADEMY TRUST,Assistant Chief Executive (Excl SIU),4600.00,Grant Payments,2324_P09_CR00270,113719
Sandwell Metropolitan Borough Council,http://www.sandwell.gov.uk/info/200202/performance_and_spending/1079/payments_over_500,08-Dec-2023,FINANCE (Inc SIU),SPRINGFIELD PRIMARY SCHOOL     ,Assistant Chief Executive (Excl SIU),7300.00,Schools Support Services,2324_P09_CR00271,61050
Sandwell Metropolitan Borough Council,http://www.sandwell.gov.uk/info/200202/performance_and_spending/1079/payments_over_500,08-Dec-2023,FINANCE (Inc SIU),ST CATHERINE OF SIENA MULTI ACADEMY COMPANY  ,Assistant Chief Executive (Excl SIU),2200.00,Grant Payments,2324_P09_CR00272,61052
Sandwell Metropolitan Borough Council,http://www.sandwell.gov.uk/info/200202/performance_and_spending/1079/payments_over_500,08-Dec-2023,FINANCE (Inc SIU),ST FRANCIS XAVIER CATHOLIC PRIMARY,Assistant Chief Executive (Excl SIU),2250.00,Grant Payments,2324_P09_CR00273,61051
Sandwell Metropolitan Borough Council,http://www.sandwell.gov.uk/info/200202/performance_and_spending/1079/payments_over_500,08-Dec-2023,FINANCE (Inc SIU),ST JAMES C OF E PRIMARY SCHOOL,Assistant Chief Executive (Excl SIU),10300.00,Schools Support Services,2324_P09_CR00274,61054
Sandwell Metropolitan Borough Council,http://www.sandwell.gov.uk/info/200202/performance_and_spending/1079/payments_over_500,08-Dec-2023,FINANCE (Inc SIU),ST JOHN BOSCO RC PRIMARY SCHOOL   ,Assistant Chief Executive (Excl SIU),2700.00,Grant Payments,2324_P09_CR00275,61055
Sandwell Metropolitan Borough Council,http://www.sandwell.gov.uk/info/200202/performance_and_spending/1079/payments_over_500,08-Dec-2023,FINANCE (Inc SIU),ST JOHNS C OF E PRIMARY ACADEMY,Assistant Chief Executive (Excl SIU),3800.00,Grant Payments,2324_P09_CR00276,61056
Sandwell Metropolitan Borough Council,http://www.sandwell.gov.uk/info/200202/performance_and_spending/1079/payments_over_500,08-Dec-2023,FINANCE (Inc SIU),ST MARGARETS C OF E PRIMARY SCHOOL,Assistant Chief Executive (Excl SIU),1500.00,Schools Support Services,2324_P09_CR00277,61057
Sandwell Metropolitan Borough Council,http://www.sandwell.gov.uk/info/200202/performance_and_spending/1079/payments_over_500,08-Dec-2023,FINANCE (Inc SIU),ST MARTINS CE PRIMARY SCHOOL,Assistant Chief Executive (Excl SIU),2345.00,Schools Support Services,2324_P09_CR00278,61058
Sandwell Metropolitan Borough Council,http://www.sandwell.gov.uk/info/200202/performance_and_spending/1079/payments_over_500,08-Dec-2023,FINANCE (Inc SIU),ST MARY MAGDALENE CE PRIMARY SCHOOL  ,Assistant Chief Executive (Excl SIU),2915.00,Schools Support Services,2324_P09_CR00279,61059
Sandwell Metropolitan Borough Council,http://www.sandwell.gov.uk/info/200202/performance_and_spending/1079/payments_over_500,08-Dec-2023,FINANCE (Inc SIU),ST MARYS RC PRIMARY SCHOOL      ,Assistant Chief Executive (Excl SIU),2100.00,Grant Payments,2324_P09_CR00280,61060
Sandwell Metropolitan Borough Council,http://www.sandwell.gov.uk/info/200202/performance_and_spending/1079/payments_over_500,08-Dec-2023,FINANCE (Inc SIU),ST MATTHEWS CE PRIMARY SCHOOL  ,Assistant Chief Executive (Excl SIU),8100.00,Schools Support Services,2324_P09_CR00281,61061
Sandwell Metropolitan Borough Council,http://www.sandwell.gov.uk/info/200202/performance_and_spending/1079/payments_over_500,08-Dec-2023,FINANCE (Inc SIU),ST MICHAELS CE HIGH SCHOOL,Assistant Chief Executive (Excl SIU),21500.00,Schools Support Services,2324_P09_CR00282,60948
Sandwell Metropolitan Borough Council,http://www.sandwell.gov.uk/info/200202/performance_and_spending/1079/payments_over_500,08-Dec-2023,FINANCE (Inc SIU),ST PAULS C OF E ACADEMY,Assistant Chief Executive (Excl SIU),3350.00,Grant Payments,2324_P09_CR00283,118126
Sandwell Metropolitan Borough Council,http://www.sandwell.gov.uk/info/200202/performance_and_spending/1079/payments_over_500,08-Dec-2023,FINANCE (Inc SIU),ST PHILIPS CATHOLIC PRIMARY ,Assistant Chief Executive (Excl SIU),3750.00,Grant Payments,2324_P09_CR00284,61063
Sandwell Metropolitan Borough Council,http://www.sandwell.gov.uk/info/200202/performance_and_spending/1079/payments_over_500,08-Dec-2023,FINANCE (Inc SIU),STUART BATHURST CATHOLIC HIGH SCHOOL,Assistant Chief Executive (Excl SIU),17300.00,Grant Payments,2324_P09_CR00285,60949
Sandwell Metropolitan Borough Council,http://www.sandwell.gov.uk/info/200202/performance_and_spending/1079/payments_over_500,08-Dec-2023,FINANCE (Inc SIU),TEMPLE MEADOW PRIMARY SCHOOL ,Assistant Chief Executive (Excl SIU),7210.00,Schools Support Services,2324_P09_CR00286,61065
Sandwell Metropolitan Borough Council,http://www.sandwell.gov.uk/info/200202/performance_and_spending/1079/payments_over_500,08-Dec-2023,FINANCE (Inc SIU),THE PRIORY PRIMARY   ,Assistant Chief Executive (Excl SIU),10500.00,Schools Support Services,2324_P09_CR00287,61066
Sandwell Metropolitan Borough Council,http://www.sandwell.gov.uk/info/200202/performance_and_spending/1079/payments_over_500,08-Dec-2023,FINANCE (Inc SIU),THE RIVERS MULTI ACADEMY TRUST,Assistant Chief Executive (Excl SIU),18810.00,Grant Payments,2324_P09_CR00288,61014
Sandwell Metropolitan Borough Council,http://www.sandwell.gov.uk/info/200202/performance_and_spending/1079/payments_over_500,08-Dec-2023,FINANCE (Inc SIU),TIMBERTREE (ACADEMY) PRIMARY SCHOOL,Assistant Chief Executive (Excl SIU),4015.00,Grant Payments,2324_P09_CR00289,112804
Sandwell Metropolitan Borough Council,http://www.sandwell.gov.uk/info/200202/performance_and_spending/1079/payments_over_500,08-Dec-2023,FINANCE (Inc SIU),TIPTON GREEN JUNIOR SCHOOL ACADEMY,Assistant Chief Executive (Excl SIU),7400.00,Grant Payments,2324_P09_CR00290,61068
Sandwell Metropolitan Borough Council,http://www.sandwell.gov.uk/info/200202/performance_and_spending/1079/payments_over_500,08-Dec-2023,FINANCE (Inc SIU),TIVIDALE COMMUNITY PRIMARY   ,Assistant Chief Executive (Excl SIU),3715.00,Schools Support Services,2324_P09_CR00291,61069
Sandwell Metropolitan Borough Council,http://www.sandwell.gov.uk/info/200202/performance_and_spending/1079/payments_over_500,08-Dec-2023,FINANCE (Inc SIU),TIVIDALE HALL PRIMARY SCHOOL ,Assistant Chief Executive (Excl SIU),4550.00,Schools Support Services,2324_P09_CR00292,61070
Sandwell Metropolitan Borough Council,http://www.sandwell.gov.uk/info/200202/performance_and_spending/1079/payments_over_500,08-Dec-2023,FINANCE (Inc SIU),UPLANDS MANOR PRIMARY  ,Assistant Chief Executive (Excl SIU),16255.00,Schools Support Services,2324_P09_CR00293,61071
Sandwell Metropolitan Borough Council,http://www.sandwell.gov.uk/info/200202/performance_and_spending/1079/payments_over_500,08-Dec-2023,FINANCE (Inc SIU),VICTORIA PARK PRIMARY ACADEMY,Assistant Chief Executive (Excl SIU),11200.00,Grant Payments,2324_P09_CR00294,106209
Sandwell Metropolitan Borough Council,http://www.sandwell.gov.uk/info/200202/performance_and_spending/1079/payments_over_500,08-Dec-2023,FINANCE (Inc SIU),WEDNESBURY OAK ACADEMY,Assistant Chief Executive (Excl SIU),8450.00,Grant Payments,2324_P09_CR00295,116882
Sandwell Metropolitan Borough Council,http://www.sandwell.gov.uk/info/200202/performance_and_spending/1079/payments_over_500,08-Dec-2023,FINANCE (Inc SIU),WEST BROMWICH COLLEGIATE ACADEMY,Assistant Chief Executive (Excl SIU),14200.00,Grant Payments,2324_P09_CR00296,137780
Sandwell Metropolitan Borough Council,http://www.sandwell.gov.uk/info/200202/performance_and_spending/1079/payments_over_500,08-Dec-2023,FINANCE (Inc SIU),WESTMINSTER SCHOOL              ,Assistant Chief Executive (Excl SIU),6600.00,Schools Support Services,2324_P09_CR00297,60957
Sandwell Metropolitan Borough Council,http://www.sandwell.gov.uk/info/200202/performance_and_spending/1079/payments_over_500,08-Dec-2023,FINANCE (Inc SIU),WHITECREST PRIMARY SCHOOL   ,Assistant Chief Executive (Excl SIU),1150.00,Schools Support Services,2324_P09_CR00298,61075
Sandwell Metropolitan Borough Council,http://www.sandwell.gov.uk/info/200202/performance_and_spending/1079/payments_over_500,08-Dec-2023,FINANCE (Inc SIU),WINDSOR ACADEMY TRUST,Assistant Chief Executive (Excl SIU),5695.00,Grant Payments,2324_P09_CR00299,167258
Sandwell Metropolitan Borough Council,http://www.sandwell.gov.uk/info/200202/performance_and_spending/1079/payments_over_500,08-Dec-2023,FINANCE (Inc SIU),WODENSBOROUGH ORMISTON ACADEMY,Assistant Chief Executive (Excl SIU),27780.00,Grant Payments,2324_P09_CR00300,115040
Sandwell Metropolitan Borough Council,http://www.sandwell.gov.uk/info/200202/performance_and_spending/1079/payments_over_500,08-Dec-2023,FINANCE (Inc SIU),WOOD GREEN ACADEMY     ,Assistant Chief Executive (Excl SIU),20100.00,Grant Payments,2324_P09_CR00301,100125
Sandwell Metropolitan Borough Council,http://www.sandwell.gov.uk/info/200202/performance_and_spending/1079/payments_over_500,08-Dec-2023,FINANCE (Inc SIU),WOOD GREEN JUNIOR SCHOOL   ,Assistant Chief Executive (Excl SIU),7065.00,Schools Support Services,2324_P09_CR00302,61076
Sandwell Metropolitan Borough Council,http://www.sandwell.gov.uk/info/200202/performance_and_spending/1079/payments_over_500,08-Dec-2023,FINANCE (Inc SIU),YEW TREE PRIMARY SCHOOL    ,Assistant Chief Executive (Excl SIU),12900.00,Schools Support Services,2324_P09_CR00303,61078
Sandwell Metropolitan Borough Council,http://www.sandwell.gov.uk/info/200202/performance_and_spending/1079/payments_over_500,15-Dec-2023,FINANCE (Inc SIU),4 COMMUNITY TRUST CIC,Assistant Chief Executive (Excl SIU),2500.00,Grant Payments,2324_P09_CR00304,137880
Sandwell Metropolitan Borough Council,http://www.sandwell.gov.uk/info/200202/performance_and_spending/1079/payments_over_500,18-Dec-2023,FINANCE (Inc SIU),BLACK COUNTRY FOODBANK LTD,Assistant Chief Executive (Excl SIU),10000.00,Grant Payments,2324_P09_CR00305,164845
Sandwell Metropolitan Borough Council,http://www.sandwell.gov.uk/info/200202/performance_and_spending/1079/payments_over_500,06-Dec-2023,FINANCE (Inc SIU),BREAKING BREAD FOOD BANK,Assistant Chief Executive (Excl SIU),2500.00,Grant Payments,2324_P09_CR00306,132988
Sandwell Metropolitan Borough Council,http://www.sandwell.gov.uk/info/200202/performance_and_spending/1079/payments_over_500,18-Dec-2023,FINANCE (Inc SIU),BRUSHSTROKES,Assistant Chief Executive (Excl SIU),4000.00,Grant Payments,2324_P09_CR00307,21029374
Sandwell Metropolitan Borough Council,http://www.sandwell.gov.uk/info/200202/performance_and_spending/1079/payments_over_500,15-Dec-2023,FINANCE (Inc SIU),CHRIST CHURCH THE QUINTON PARISH CHURCH COUNCIL,Assistant Chief Executive (Excl SIU),2000.00,Grant Payments,2324_P09_CR00308,68890
Sandwell Metropolitan Borough Council,http://www.sandwell.gov.uk/info/200202/performance_and_spending/1079/payments_over_500,18-Dec-2023,FINANCE (Inc SIU),MAKING A DIFFERENCE,Assistant Chief Executive (Excl SIU),6000.00,Grant Payments,2324_P09_CR00309,112007
Sandwell Metropolitan Borough Council,http://www.sandwell.gov.uk/info/200202/performance_and_spending/1079/payments_over_500,15-Dec-2023,FINANCE (Inc SIU),MANNA HOUSE CIO,Assistant Chief Executive (Excl SIU),3000.00,Grant Payments,2324_P09_CR00310,163299
Sandwell Metropolitan Borough Council,http://www.sandwell.gov.uk/info/200202/performance_and_spending/1079/payments_over_500,15-Dec-2023,FINANCE (Inc SIU),NORTH SMETHWICK DEVELOPMENT TRUST,Assistant Chief Executive (Excl SIU),2500.00,Grant Payments,2324_P09_CR00311,01346623
Sandwell Metropolitan Borough Council,http://www.sandwell.gov.uk/info/200202/performance_and_spending/1079/payments_over_500,15-Dec-2023,FINANCE (Inc SIU),OPEN HEAVEN CHURCH (WEDNESBURY),Assistant Chief Executive (Excl SIU),2500.00,Grant Payments,2324_P09_CR00312,47147
Sandwell Metropolitan Borough Council,http://www.sandwell.gov.uk/info/200202/performance_and_spending/1079/payments_over_500,15-Dec-2023,FINANCE (Inc SIU),SMETHWICK CHURCH ACTION NETWORK,Assistant Chief Executive (Excl SIU),2500.00,Grant Payments,2324_P09_CR00313,118380
Sandwell Metropolitan Borough Council,http://www.sandwell.gov.uk/info/200202/performance_and_spending/1079/payments_over_500,12-Dec-2023,FINANCE (Inc SIU),SMETHWICK CHURCH ACTION NETWORK,Assistant Chief Executive (Excl SIU),15000.00,Grant Payments,2324_P09_CR00314,118380
Sandwell Metropolitan Borough Council,http://www.sandwell.gov.uk/info/200202/performance_and_spending/1079/payments_over_500,01-Dec-2023,Housing & Assets Total,ACORN ENVIRONMENTAL MANAGEMENT GROUP LIMITED,Housing & Assets Total,3250.00,Externally Purchased Professional Services ,2324_P09_CR00315,24254
Sandwell Metropolitan Borough Council,http://www.sandwell.gov.uk/info/200202/performance_and_spending/1079/payments_over_500,01-Dec-2023,Housing & Assets Total,BARCHAM TREES PLC,Housing & Assets Total,9370.00,Externally Purchased Professional Services ,2324_P09_CR00316,01540916
Sandwell Metropolitan Borough Council,http://www.sandwell.gov.uk/info/200202/performance_and_spending/1079/payments_over_500,01-Dec-2023,Housing & Assets Total,REDACTED PERSONAL DATA,Housing & Assets Total,500.00,Rents,2324_P09_CR00317,REDACTED PERSONAL DATA
Sandwell Metropolitan Borough Council,http://www.sandwell.gov.uk/info/200202/performance_and_spending/1079/payments_over_500,01-Dec-2023,Housing & Assets Total,CKP LTD T/A HAGLEY HOTEL,Corporate Management,900.00,Rents,2324_P09_CR00318,143677
Sandwell Metropolitan Borough Council,http://www.sandwell.gov.uk/info/200202/performance_and_spending/1079/payments_over_500,01-Dec-2023,Housing & Assets Total,CKP LTD T/A HAGLEY HOTEL,Corporate Management,960.00,Rents,2324_P09_CR00319,143677
Sandwell Metropolitan Borough Council,http://www.sandwell.gov.uk/info/200202/performance_and_spending/1079/payments_over_500,01-Dec-2023,Housing & Assets Total,CKP LTD T/A HAGLEY HOTEL,Corporate Management,1000.00,Rents,2324_P09_CR00320,143677
Sandwell Metropolitan Borough Council,http://www.sandwell.gov.uk/info/200202/performance_and_spending/1079/payments_over_500,01-Dec-2023,Housing & Assets Total,CKP LTD T/A HAGLEY HOTEL,Corporate Management,1050.00,Rents,2324_P09_CR00321,143677
Sandwell Metropolitan Borough Council,http://www.sandwell.gov.uk/info/200202/performance_and_spending/1079/payments_over_500,01-Dec-2023,Housing & Assets Total,CKP LTD T/A HAGLEY HOTEL,Corporate Management,1170.00,Rents,2324_P09_CR00322,143677
Sandwell Metropolitan Borough Council,http://www.sandwell.gov.uk/info/200202/performance_and_spending/1079/payments_over_500,01-Dec-2023,Housing & Assets Total,CKP LTD T/A HAGLEY HOTEL,Corporate Management,1500.00,Rents,2324_P09_CR00323,143677
Sandwell Metropolitan Borough Council,http://www.sandwell.gov.uk/info/200202/performance_and_spending/1079/payments_over_500,01-Dec-2023,Housing & Assets Total,CKP LTD T/A HAGLEY HOTEL,Corporate Management,1500.00,Rents,2324_P09_CR00324,143677
Sandwell Metropolitan Borough Council,http://www.sandwell.gov.uk/info/200202/performance_and_spending/1079/payments_over_500,01-Dec-2023,Housing & Assets Total,CKP LTD T/A HAGLEY HOTEL,Corporate Management,1800.00,Rents,2324_P09_CR00325,143677
Sandwell Metropolitan Borough Council,http://www.sandwell.gov.uk/info/200202/performance_and_spending/1079/payments_over_500,01-Dec-2023,Housing & Assets Total,CKP LTD T/A HAGLEY HOTEL,Corporate Management,2210.00,Rents,2324_P09_CR00326,143677
Sandwell Metropolitan Borough Council,http://www.sandwell.gov.uk/info/200202/performance_and_spending/1079/payments_over_500,01-Dec-2023,Housing & Assets Total,CKP LTD T/A HAGLEY HOTEL,Corporate Management,2250.00,Rents,2324_P09_CR00327,143677
Sandwell Metropolitan Borough Council,http://www.sandwell.gov.uk/info/200202/performance_and_spending/1079/payments_over_500,11-Dec-2023,Housing & Assets Total,COMMUNITY LAW PARTNERSHIP,Corporate Management,3677.57,Tenants Expenses,2324_P09_CR00328,8450
Sandwell Metropolitan Borough Council,http://www.sandwell.gov.uk/info/200202/performance_and_spending/1079/payments_over_500,15-Dec-2023,Housing & Assets Total,COMMUNITY LAW PARTNERSHIP,Corporate Management,5500.00,Tenants Expenses,2324_P09_CR00329,8450
Sandwell Metropolitan Borough Council,http://www.sandwell.gov.uk/info/200202/performance_and_spending/1079/payments_over_500,01-Dec-2023,Housing & Assets Total,COOKE RUDLING LIMITED,Assistant Chief Executive (Excl SIU),1462.50,Externally Purchased Professional Services ,2324_P09_CR00330,01577073
Sandwell Metropolitan Borough Council,http://www.sandwell.gov.uk/info/200202/performance_and_spending/1079/payments_over_500,01-Dec-2023,Housing & Assets Total,REDACTED PERSONAL DATA,Housing & Assets Total,500.00,Rents,2324_P09_CR00331,REDACTED PERSONAL DATA
Sandwell Metropolitan Borough Council,http://www.sandwell.gov.uk/info/200202/performance_and_spending/1079/payments_over_500,01-Dec-2023,Housing & Assets Total,REDACTED PERSONAL DATA,Corporate Management,1380.00,Rents,2324_P09_CR00332,REDACTED PERSONAL DATA
Sandwell Metropolitan Borough Council,http://www.sandwell.gov.uk/info/200202/performance_and_spending/1079/payments_over_500,01-Dec-2023,Housing & Assets Total,REDACTED PERSONAL DATA,Housing & Assets Total,500.00,Rents,2324_P09_CR00333,REDACTED PERSONAL DATA
Sandwell Metropolitan Borough Council,http://www.sandwell.gov.uk/info/200202/performance_and_spending/1079/payments_over_500,01-Dec-2023,Housing & Assets Total,REDACTED PERSONAL DATA,Housing & Assets Total,700.00,Rents,2324_P09_CR00334,REDACTED PERSONAL DATA
Sandwell Metropolitan Borough Council,http://www.sandwell.gov.uk/info/200202/performance_and_spending/1079/payments_over_500,01-Dec-2023,Housing & Assets Total,REDACTED PERSONAL DATA,Housing & Assets Total,500.00,Rents,2324_P09_CR00335,REDACTED PERSONAL DATA
Sandwell Metropolitan Borough Council,http://www.sandwell.gov.uk/info/200202/performance_and_spending/1079/payments_over_500,01-Dec-2023,Housing & Assets Total,REDACTED PERSONAL DATA,Housing & Assets Total,500.00,Rents,2324_P09_CR00336,REDACTED PERSONAL DATA
Sandwell Metropolitan Borough Council,http://www.sandwell.gov.uk/info/200202/performance_and_spending/1079/payments_over_500,01-Dec-2023,Housing & Assets Total,REDACTED PERSONAL DATA,Housing & Assets Total,500.00,Rents,2324_P09_CR00337,REDACTED PERSONAL DATA
Sandwell Metropolitan Borough Council,http://www.sandwell.gov.uk/info/200202/performance_and_spending/1079/payments_over_500,01-Dec-2023,Housing & Assets Total,REDACTED PERSONAL DATA,Housing & Assets Total,500.00,Rents,2324_P09_CR00338,REDACTED PERSONAL DATA
Sandwell Metropolitan Borough Council,http://www.sandwell.gov.uk/info/200202/performance_and_spending/1079/payments_over_500,01-Dec-2023,Housing & Assets Total,MIDLAND FORESTRY LIMITED,Housing & Assets Total,600.07,Externally Purchased Professional Services ,2324_P09_CR00339,45812
Sandwell Metropolitan Borough Council,http://www.sandwell.gov.uk/info/200202/performance_and_spending/1079/payments_over_500,01-Dec-2023,Housing & Assets Total,MIDLAND FORESTRY LIMITED,Housing & Assets Total,751.94,Externally Purchased Professional Services ,2324_P09_CR00340,45812
Sandwell Metropolitan Borough Council,http://www.sandwell.gov.uk/info/200202/performance_and_spending/1079/payments_over_500,01-Dec-2023,Housing & Assets Total,MIDLAND FORESTRY LIMITED,Housing & Assets Total,942.96,Externally Purchased Professional Services ,2324_P09_CR00341,45812
Sandwell Metropolitan Borough Council,http://www.sandwell.gov.uk/info/200202/performance_and_spending/1079/payments_over_500,01-Dec-2023,Housing & Assets Total,MIDLAND FORESTRY LIMITED,Housing & Assets Total,1802.51,Externally Purchased Professional Services ,2324_P09_CR00342,45812
Sandwell Metropolitan Borough Council,http://www.sandwell.gov.uk/info/200202/performance_and_spending/1079/payments_over_500,01-Dec-2023,Housing & Assets Total,MIDLAND FORESTRY LIMITED,Housing & Assets Total,17220.00,Externally Purchased Professional Services ,2324_P09_CR00343,45812
Sandwell Metropolitan Borough Council,http://www.sandwell.gov.uk/info/200202/performance_and_spending/1079/payments_over_500,01-Dec-2023,Housing & Assets Total,REDACTED PERSONAL DATA,Corporate Management,500.00,Tenants Expenses,2324_P09_CR00344,REDACTED PERSONAL DATA
Sandwell Metropolitan Borough Council,http://www.sandwell.gov.uk/info/200202/performance_and_spending/1079/payments_over_500,01-Dec-2023,Housing & Assets Total,REDACTED PERSONAL DATA,Housing & Assets Total,500.00,Rents,2324_P09_CR00345,REDACTED PERSONAL DATA
Sandwell Metropolitan Borough Council,http://www.sandwell.gov.uk/info/200202/performance_and_spending/1079/payments_over_500,20-Dec-2023,Housing & Assets Total,SHARP   ,Corporate Management,95745.80,Externally Purchased Professional Services ,2324_P09_CR00346,120965
Sandwell Metropolitan Borough Council,http://www.sandwell.gov.uk/info/200202/performance_and_spending/1079/payments_over_500,01-Dec-2023,Housing & Assets Total,NUTS AND BOLTS TRAINING LTD,Total Adult Social Care,27600.00,Externally Purchased Professional Services ,2324_P09_CR00347,167592
Sandwell Metropolitan Borough Council,http://www.sandwell.gov.uk/info/200202/performance_and_spending/1079/payments_over_500,01-Dec-2023,Housing & Assets Total,REDACTED PERSONAL DATA,Housing & Assets Total,500.00,Rents,2324_P09_CR00348,REDACTED PERSONAL DATA
Sandwell Metropolitan Borough Council,http://www.sandwell.gov.uk/info/200202/performance_and_spending/1079/payments_over_500,01-Dec-2023,Housing & Assets Total,SAFFRON HOTEL,Corporate Management,117293.00,Rents,2324_P09_CR00349,164316
Sandwell Metropolitan Borough Council,http://www.sandwell.gov.uk/info/200202/performance_and_spending/1079/payments_over_500,06-Dec-2023,Housing & Assets Total,REDACTED PERSONAL DATA,Housing & Assets Total,670.00,Grant Payments,2324_P09_CR00350,REDACTED PERSONAL DATA
Sandwell Metropolitan Borough Council,http://www.sandwell.gov.uk/info/200202/performance_and_spending/1079/payments_over_500,01-Dec-2023,Housing & Assets Total,REDACTED PERSONAL DATA,Housing & Assets Total,500.00,Rents,2324_P09_CR00351,REDACTED PERSONAL DATA
Sandwell Metropolitan Borough Council,http://www.sandwell.gov.uk/info/200202/performance_and_spending/1079/payments_over_500,15-Dec-2023,Housing & Assets Total,BALIJIT KAUR,Corporate Management,500.00,Rents,2324_P09_CR00352,101860
Sandwell Metropolitan Borough Council,http://www.sandwell.gov.uk/info/200202/performance_and_spending/1079/payments_over_500,15-Dec-2023,Housing & Assets Total,BALWANT SINGH,Corporate Management,500.00,Rents,2324_P09_CR00353,84433
Sandwell Metropolitan Borough Council,http://www.sandwell.gov.uk/info/200202/performance_and_spending/1079/payments_over_500,15-Dec-2023,Housing & Assets Total,C M REID,Corporate Management,500.00,Rents,2324_P09_CR00354,106129
Sandwell Metropolitan Borough Council,http://www.sandwell.gov.uk/info/200202/performance_and_spending/1079/payments_over_500,15-Dec-2023,Housing & Assets Total,ELEANOR MCGEE,Corporate Management,550.00,Rents,2324_P09_CR00355,109162
Sandwell Metropolitan Borough Council,http://www.sandwell.gov.uk/info/200202/performance_and_spending/1079/payments_over_500,15-Dec-2023,Housing & Assets Total,K PAREKH,Corporate Management,550.00,Rents,2324_P09_CR00356,43404
Sandwell Metropolitan Borough Council,http://www.sandwell.gov.uk/info/200202/performance_and_spending/1079/payments_over_500,13-Dec-2023,Housing & Assets Total,BRUSHSTROKES,Corporate Management,24000.00,Grant Payments,2324_P09_CR00357,21029374
Sandwell Metropolitan Borough Council,http://www.sandwell.gov.uk/info/200202/performance_and_spending/1079/payments_over_500,01-Dec-2023,Housing & Assets Total,SANDWELL IRISH SOCIETY,Corporate Management,1707.00,Grant Payments,2324_P09_CR00358,21029971
Sandwell Metropolitan Borough Council,http://www.sandwell.gov.uk/info/200202/performance_and_spending/1079/payments_over_500,01-Dec-2023,Housing & Communities,ALLIANCE LEISURE SERVICES LTD,Housing & Communities,31212.40,"CIP - New Construction,Conversion, Enhancement & Reno",2324_P09_CR00359,166445
Sandwell Metropolitan Borough Council,http://www.sandwell.gov.uk/info/200202/performance_and_spending/1079/payments_over_500,01-Dec-2023,Housing & Communities,GRAHAM ASSET MANAGEMENT LIMITED,Housing & Communities,4679.44,Equipment & Furniture ,2324_P09_CR00360,124005
Sandwell Metropolitan Borough Council,http://www.sandwell.gov.uk/info/200202/performance_and_spending/1079/payments_over_500,08-Dec-2023,Housing & Communities,STOURBRIDGE PAVING COMPANY LIMITED,Housing & Communities,19592.32,CIP - Infrastructure,2324_P09_CR00361,77003641
Sandwell Metropolitan Borough Council,http://www.sandwell.gov.uk/info/200202/performance_and_spending/1079/payments_over_500,01-Dec-2023,Housing & Communities,STRATEGIC LEISURE LIMITED,Housing & Communities,2981.45,"CIP - New Construction,Conversion, Enhancement & Reno",2324_P09_CR00362,106038
Sandwell Metropolitan Borough Council,http://www.sandwell.gov.uk/info/200202/performance_and_spending/1079/payments_over_500,07-Dec-2023,Housing & Communities,WATES CONSTRUCTION LTD ,Housing & Communities,11126.09,"CIP - New Construction,Conversion, Enhancement & Reno",2324_P09_CR00363,77000882
Sandwell Metropolitan Borough Council,http://www.sandwell.gov.uk/info/200202/performance_and_spending/1079/payments_over_500,01-Dec-2023,Housing Revenue Account Capital,"ACIVICO (DESIGN,CONSTRUCTION AND FACILITIES MANAGEMENT) LTD",Housing Revenue Account Capital,1620.00,"CIP - New Construction,Conversion, Enhancement & Reno",2324_P09_CR00364,148500
Sandwell Metropolitan Borough Council,http://www.sandwell.gov.uk/info/200202/performance_and_spending/1079/payments_over_500,06-Dec-2023,Housing Revenue Account Capital,"ACIVICO (DESIGN,CONSTRUCTION AND FACILITIES MANAGEMENT) LTD",Housing Revenue Account Capital,14000.00,Consultancy,2324_P09_CR00365,148500
Sandwell Metropolitan Borough Council,http://www.sandwell.gov.uk/info/200202/performance_and_spending/1079/payments_over_500,01-Dec-2023,Housing Revenue Account Capital,AXIS EUROPE PLC ,Housing Revenue Account Capital,3455.32,Deferred Charges/Grant Payments,2324_P09_CR00366,64946
Sandwell Metropolitan Borough Council,http://www.sandwell.gov.uk/info/200202/performance_and_spending/1079/payments_over_500,01-Dec-2023,Housing Revenue Account Capital,FIXED FIREFIGHTING SYSTEMS BUREAU LTD,Housing Revenue Account Capital,4418.94,CIP - Fixtures & Fittings,2324_P09_CR00367,155527
Sandwell Metropolitan Borough Council,http://www.sandwell.gov.uk/info/200202/performance_and_spending/1079/payments_over_500,01-Dec-2023,Housing Revenue Account Capital,J.HARPER & SONS (LEOMINSTER) LIMITED,Housing Revenue Account Capital,208364.41,"CIP - New Construction,Conversion, Enhancement & Reno",2324_P09_CR00368,111814
Sandwell Metropolitan Borough Council,http://www.sandwell.gov.uk/info/200202/performance_and_spending/1079/payments_over_500,01-Dec-2023,Housing Revenue Account Capital,JPC CONSTRUCTION (MIDLANDS) LTD,Housing Revenue Account Capital,15345.25,CIP - Infrastructure,2324_P09_CR00369,166819
Sandwell Metropolitan Borough Council,http://www.sandwell.gov.uk/info/200202/performance_and_spending/1079/payments_over_500,04-Dec-2023,Housing Revenue Account Capital,LOVELL PARTNERSHIPS  LTD,Housing Revenue Account Capital,317246.48,"CIP - New Construction,Conversion, Enhancement & Reno",2324_P09_CR00370,77007398
Sandwell Metropolitan Borough Council,http://www.sandwell.gov.uk/info/200202/performance_and_spending/1079/payments_over_500,07-Dec-2023,Housing Revenue Account Capital,LOVELL PARTNERSHIPS  LTD,Housing Revenue Account Capital,1002423.84,"CIP - New Construction,Conversion, Enhancement & Reno",2324_P09_CR00371,77007398
Sandwell Metropolitan Borough Council,http://www.sandwell.gov.uk/info/200202/performance_and_spending/1079/payments_over_500,01-Dec-2023,Housing Revenue Account Capital,PARCOR LTD,Housing Revenue Account Capital,23064.30,"CIP - New Construction,Conversion, Enhancement & Reno",2324_P09_CR00372,163117
Sandwell Metropolitan Borough Council,http://www.sandwell.gov.uk/info/200202/performance_and_spending/1079/payments_over_500,01-Dec-2023,Housing Revenue Account Capital,PARCOR LTD,Housing Revenue Account Capital,24005.70,"CIP - New Construction,Conversion, Enhancement & Reno",2324_P09_CR00373,163117
Sandwell Metropolitan Borough Council,http://www.sandwell.gov.uk/info/200202/performance_and_spending/1079/payments_over_500,01-Dec-2023,Housing Revenue Account Capital,PHOENIX GAS SERVICES LIMITED,Housing Revenue Account Capital,5362.04,Contract Payments,2324_P09_CR00374,126729
Sandwell Metropolitan Borough Council,http://www.sandwell.gov.uk/info/200202/performance_and_spending/1079/payments_over_500,01-Dec-2023,Housing Revenue Account Capital,PHOENIX GAS SERVICES LIMITED,Housing Revenue Account Capital,5466.53,Contract Payments,2324_P09_CR00375,126729
Sandwell Metropolitan Borough Council,http://www.sandwell.gov.uk/info/200202/performance_and_spending/1079/payments_over_500,01-Dec-2023,Housing Revenue Account Capital,POWRED HEATING COMPONENTS LIMITED,Housing Revenue Account Capital,1325.87,Materials & Consumables,2324_P09_CR00376,133978
Sandwell Metropolitan Borough Council,http://www.sandwell.gov.uk/info/200202/performance_and_spending/1079/payments_over_500,01-Dec-2023,Housing Revenue Account Capital,PR PROPERTY MAINTENANCE,Housing Revenue Account Capital,5072.51,Deferred Charges/Grant Payments,2324_P09_CR00377,33836
Sandwell Metropolitan Borough Council,http://www.sandwell.gov.uk/info/200202/performance_and_spending/1079/payments_over_500,01-Dec-2023,Housing Revenue Account Capital,PR PROPERTY MAINTENANCE,Housing Revenue Account Capital,5224.75,Deferred Charges/Grant Payments,2324_P09_CR00378,33836
Sandwell Metropolitan Borough Council,http://www.sandwell.gov.uk/info/200202/performance_and_spending/1079/payments_over_500,01-Dec-2023,Housing Revenue Account Capital,PR PROPERTY MAINTENANCE,Housing Revenue Account Capital,5636.07,Deferred Charges/Grant Payments,2324_P09_CR00379,33836
Sandwell Metropolitan Borough Council,http://www.sandwell.gov.uk/info/200202/performance_and_spending/1079/payments_over_500,01-Dec-2023,Housing Revenue Account Capital,PR PROPERTY MAINTENANCE,Housing Revenue Account Capital,5719.15,Deferred Charges/Grant Payments,2324_P09_CR00380,33836
Sandwell Metropolitan Borough Council,http://www.sandwell.gov.uk/info/200202/performance_and_spending/1079/payments_over_500,01-Dec-2023,Housing Revenue Account Capital,PR PROPERTY MAINTENANCE,Housing Revenue Account Capital,5747.01,Deferred Charges/Grant Payments,2324_P09_CR00381,33836
Sandwell Metropolitan Borough Council,http://www.sandwell.gov.uk/info/200202/performance_and_spending/1079/payments_over_500,01-Dec-2023,Housing Revenue Account Capital,PR PROPERTY MAINTENANCE,Housing Revenue Account Capital,5773.23,Deferred Charges/Grant Payments,2324_P09_CR00382,33836
Sandwell Metropolitan Borough Council,http://www.sandwell.gov.uk/info/200202/performance_and_spending/1079/payments_over_500,01-Dec-2023,Housing Revenue Account Capital,PR PROPERTY MAINTENANCE,Housing Revenue Account Capital,5790.90,Deferred Charges/Grant Payments,2324_P09_CR00383,33836
Sandwell Metropolitan Borough Council,http://www.sandwell.gov.uk/info/200202/performance_and_spending/1079/payments_over_500,01-Dec-2023,Housing Revenue Account Capital,PR PROPERTY MAINTENANCE,Housing Revenue Account Capital,5850.28,Deferred Charges/Grant Payments,2324_P09_CR00384,33836
Sandwell Metropolitan Borough Council,http://www.sandwell.gov.uk/info/200202/performance_and_spending/1079/payments_over_500,01-Dec-2023,Housing Revenue Account Capital,PR PROPERTY MAINTENANCE,Housing Revenue Account Capital,5870.79,Deferred Charges/Grant Payments,2324_P09_CR00385,33836
Sandwell Metropolitan Borough Council,http://www.sandwell.gov.uk/info/200202/performance_and_spending/1079/payments_over_500,01-Dec-2023,Housing Revenue Account Capital,PR PROPERTY MAINTENANCE,Housing Revenue Account Capital,6030.04,Deferred Charges/Grant Payments,2324_P09_CR00386,33836
Sandwell Metropolitan Borough Council,http://www.sandwell.gov.uk/info/200202/performance_and_spending/1079/payments_over_500,01-Dec-2023,Housing Revenue Account Capital,PR PROPERTY MAINTENANCE,Housing Revenue Account Capital,6044.91,Deferred Charges/Grant Payments,2324_P09_CR00387,33836
Sandwell Metropolitan Borough Council,http://www.sandwell.gov.uk/info/200202/performance_and_spending/1079/payments_over_500,01-Dec-2023,Housing Revenue Account Capital,PR PROPERTY MAINTENANCE,Housing Revenue Account Capital,6046.80,Deferred Charges/Grant Payments,2324_P09_CR00388,33836
Sandwell Metropolitan Borough Council,http://www.sandwell.gov.uk/info/200202/performance_and_spending/1079/payments_over_500,01-Dec-2023,Housing Revenue Account Capital,PR PROPERTY MAINTENANCE,Housing Revenue Account Capital,6070.94,Deferred Charges/Grant Payments,2324_P09_CR00389,33836
Sandwell Metropolitan Borough Council,http://www.sandwell.gov.uk/info/200202/performance_and_spending/1079/payments_over_500,01-Dec-2023,Housing Revenue Account Capital,PR PROPERTY MAINTENANCE,Housing Revenue Account Capital,6076.73,Deferred Charges/Grant Payments,2324_P09_CR00390,33836
Sandwell Metropolitan Borough Council,http://www.sandwell.gov.uk/info/200202/performance_and_spending/1079/payments_over_500,01-Dec-2023,Housing Revenue Account Capital,PR PROPERTY MAINTENANCE,Housing Revenue Account Capital,6141.99,Deferred Charges/Grant Payments,2324_P09_CR00391,33836
Sandwell Metropolitan Borough Council,http://www.sandwell.gov.uk/info/200202/performance_and_spending/1079/payments_over_500,01-Dec-2023,Housing Revenue Account Capital,PR PROPERTY MAINTENANCE,Housing Revenue Account Capital,6198.54,Deferred Charges/Grant Payments,2324_P09_CR00392,33836
Sandwell Metropolitan Borough Council,http://www.sandwell.gov.uk/info/200202/performance_and_spending/1079/payments_over_500,01-Dec-2023,Housing Revenue Account Capital,PR PROPERTY MAINTENANCE,Housing Revenue Account Capital,6256.41,Deferred Charges/Grant Payments,2324_P09_CR00393,33836
Sandwell Metropolitan Borough Council,http://www.sandwell.gov.uk/info/200202/performance_and_spending/1079/payments_over_500,01-Dec-2023,Housing Revenue Account Capital,PR PROPERTY MAINTENANCE,Housing Revenue Account Capital,6317.70,Deferred Charges/Grant Payments,2324_P09_CR00394,33836
Sandwell Metropolitan Borough Council,http://www.sandwell.gov.uk/info/200202/performance_and_spending/1079/payments_over_500,01-Dec-2023,Housing Revenue Account Capital,PR PROPERTY MAINTENANCE,Housing Revenue Account Capital,6340.20,Deferred Charges/Grant Payments,2324_P09_CR00395,33836
Sandwell Metropolitan Borough Council,http://www.sandwell.gov.uk/info/200202/performance_and_spending/1079/payments_over_500,01-Dec-2023,Housing Revenue Account Capital,PR PROPERTY MAINTENANCE,Housing Revenue Account Capital,6521.32,Deferred Charges/Grant Payments,2324_P09_CR00396,33836
Sandwell Metropolitan Borough Council,http://www.sandwell.gov.uk/info/200202/performance_and_spending/1079/payments_over_500,01-Dec-2023,Housing Revenue Account Capital,PR PROPERTY MAINTENANCE,Housing Revenue Account Capital,6679.93,Deferred Charges/Grant Payments,2324_P09_CR00397,33836
Sandwell Metropolitan Borough Council,http://www.sandwell.gov.uk/info/200202/performance_and_spending/1079/payments_over_500,01-Dec-2023,Housing Revenue Account Capital,PR PROPERTY MAINTENANCE,Housing Revenue Account Capital,6688.10,Deferred Charges/Grant Payments,2324_P09_CR00398,33836
Sandwell Metropolitan Borough Council,http://www.sandwell.gov.uk/info/200202/performance_and_spending/1079/payments_over_500,01-Dec-2023,Housing Revenue Account Capital,PR PROPERTY MAINTENANCE,Housing Revenue Account Capital,6770.35,Deferred Charges/Grant Payments,2324_P09_CR00399,33836
Sandwell Metropolitan Borough Council,http://www.sandwell.gov.uk/info/200202/performance_and_spending/1079/payments_over_500,01-Dec-2023,Housing Revenue Account Capital,PR PROPERTY MAINTENANCE,Housing Revenue Account Capital,6799.90,Deferred Charges/Grant Payments,2324_P09_CR00400,33836
Sandwell Metropolitan Borough Council,http://www.sandwell.gov.uk/info/200202/performance_and_spending/1079/payments_over_500,01-Dec-2023,Housing Revenue Account Capital,PR PROPERTY MAINTENANCE,Housing Revenue Account Capital,6824.73,Deferred Charges/Grant Payments,2324_P09_CR00401,33836
Sandwell Metropolitan Borough Council,http://www.sandwell.gov.uk/info/200202/performance_and_spending/1079/payments_over_500,01-Dec-2023,Housing Revenue Account Capital,PR PROPERTY MAINTENANCE,Housing Revenue Account Capital,6991.17,Deferred Charges/Grant Payments,2324_P09_CR00402,33836
Sandwell Metropolitan Borough Council,http://www.sandwell.gov.uk/info/200202/performance_and_spending/1079/payments_over_500,01-Dec-2023,Housing Revenue Account Capital,PR PROPERTY MAINTENANCE,Housing Revenue Account Capital,7082.20,Deferred Charges/Grant Payments,2324_P09_CR00403,33836
Sandwell Metropolitan Borough Council,http://www.sandwell.gov.uk/info/200202/performance_and_spending/1079/payments_over_500,01-Dec-2023,Housing Revenue Account Capital,PR PROPERTY MAINTENANCE,Housing Revenue Account Capital,7384.24,Deferred Charges/Grant Payments,2324_P09_CR00404,33836
Sandwell Metropolitan Borough Council,http://www.sandwell.gov.uk/info/200202/performance_and_spending/1079/payments_over_500,01-Dec-2023,Housing Revenue Account Capital,PR PROPERTY MAINTENANCE,Housing Revenue Account Capital,7553.40,Deferred Charges/Grant Payments,2324_P09_CR00405,33836
Sandwell Metropolitan Borough Council,http://www.sandwell.gov.uk/info/200202/performance_and_spending/1079/payments_over_500,01-Dec-2023,Housing Revenue Account Capital,PR PROPERTY MAINTENANCE,Housing Revenue Account Capital,9293.31,Deferred Charges/Grant Payments,2324_P09_CR00406,33836
Sandwell Metropolitan Borough Council,http://www.sandwell.gov.uk/info/200202/performance_and_spending/1079/payments_over_500,01-Dec-2023,Housing Revenue Account Capital,PR PROPERTY MAINTENANCE,Housing Revenue Account Capital,10405.39,Deferred Charges/Grant Payments,2324_P09_CR00407,33836
Sandwell Metropolitan Borough Council,http://www.sandwell.gov.uk/info/200202/performance_and_spending/1079/payments_over_500,01-Dec-2023,Housing Revenue Account Capital,PR PROPERTY MAINTENANCE,Housing Revenue Account Capital,13087.27,Deferred Charges/Grant Payments,2324_P09_CR00408,33836
Sandwell Metropolitan Borough Council,http://www.sandwell.gov.uk/info/200202/performance_and_spending/1079/payments_over_500,01-Dec-2023,Housing Revenue Account Capital,PR PROPERTY MAINTENANCE,Housing Revenue Account Capital,14967.64,Deferred Charges/Grant Payments,2324_P09_CR00409,33836
Sandwell Metropolitan Borough Council,http://www.sandwell.gov.uk/info/200202/performance_and_spending/1079/payments_over_500,12-Dec-2023,Housing Revenue Account Capital,SEDDON CONSTRUCTION LIMITED,Housing Revenue Account Capital,603370.18,"CIP - New Construction,Conversion, Enhancement & Reno",2324_P09_CR00410,132999
Sandwell Metropolitan Borough Council,http://www.sandwell.gov.uk/info/200202/performance_and_spending/1079/payments_over_500,01-Dec-2023,Housing Revenue Account Capital,SELECT WINDOWS (HOME IMPROVEMENTS) LIMITED,Housing Revenue Account Capital,504.69,Contract Payments,2324_P09_CR00411,42616
Sandwell Metropolitan Borough Council,http://www.sandwell.gov.uk/info/200202/performance_and_spending/1079/payments_over_500,01-Dec-2023,Housing Revenue Account Capital,SELECT WINDOWS (HOME IMPROVEMENTS) LIMITED,Housing Revenue Account Capital,795.00,Contract Payments,2324_P09_CR00412,42616
Sandwell Metropolitan Borough Council,http://www.sandwell.gov.uk/info/200202/performance_and_spending/1079/payments_over_500,01-Dec-2023,Housing Revenue Account Capital,SELECT WINDOWS (HOME IMPROVEMENTS) LIMITED,Housing Revenue Account Capital,811.12,Contract Payments,2324_P09_CR00413,42616
Sandwell Metropolitan Borough Council,http://www.sandwell.gov.uk/info/200202/performance_and_spending/1079/payments_over_500,01-Dec-2023,Housing Revenue Account Capital,SELECT WINDOWS (HOME IMPROVEMENTS) LIMITED,Housing Revenue Account Capital,989.56,Contract Payments,2324_P09_CR00414,42616
Sandwell Metropolitan Borough Council,http://www.sandwell.gov.uk/info/200202/performance_and_spending/1079/payments_over_500,01-Dec-2023,Housing Revenue Account Capital,SELECT WINDOWS (HOME IMPROVEMENTS) LIMITED,Housing Revenue Account Capital,1624.56,Contract Payments,2324_P09_CR00415,42616
Sandwell Metropolitan Borough Council,http://www.sandwell.gov.uk/info/200202/performance_and_spending/1079/payments_over_500,01-Dec-2023,Housing Revenue Account Capital,SELECT WINDOWS (HOME IMPROVEMENTS) LIMITED,Housing Revenue Account Capital,4981.35,Contract Payments,2324_P09_CR00416,42616
Sandwell Metropolitan Borough Council,http://www.sandwell.gov.uk/info/200202/performance_and_spending/1079/payments_over_500,04-Dec-2023,Housing Revenue Account Capital,SURE MAINTENANCE LIMITED,Housing Revenue Account Capital,303812.74,"CIP - New Construction,Conversion, Enhancement & Reno",2324_P09_CR00417,93926
Sandwell Metropolitan Borough Council,http://www.sandwell.gov.uk/info/200202/performance_and_spending/1079/payments_over_500,15-Dec-2023,Housing Revenue Account Capital,SWG CONSTRUCTION (BUILD & RENOVATE) LTD,Housing Revenue Account Capital,119044.17,"CIP - New Construction,Conversion, Enhancement & Reno",2324_P09_CR00418,166518
Sandwell Metropolitan Borough Council,http://www.sandwell.gov.uk/info/200202/performance_and_spending/1079/payments_over_500,01-Dec-2023,Housing Revenue Account Capital,THERMABEAD LTD,Housing Revenue Account Capital,24738.00,"CIP - New Construction,Conversion, Enhancement & Reno",2324_P09_CR00419,166829
Sandwell Metropolitan Borough Council,http://www.sandwell.gov.uk/info/200202/performance_and_spending/1079/payments_over_500,01-Dec-2023,Housing Revenue Account Capital,TRICAS CONSTRUCTION LIMITED,Housing Revenue Account Capital,179409.69,"CIP - New Construction,Conversion, Enhancement & Reno",2324_P09_CR00420,165600
Sandwell Metropolitan Borough Council,http://www.sandwell.gov.uk/info/200202/performance_and_spending/1079/payments_over_500,01-Dec-2023,Housing Revenue Account Capital,VINCI CONSTRUCTION LTD,Housing Revenue Account Capital,8204.71,Deferred Charges/Grant Payments,2324_P09_CR00421,36361
Sandwell Metropolitan Borough Council,http://www.sandwell.gov.uk/info/200202/performance_and_spending/1079/payments_over_500,01-Dec-2023,Housing Revenue Account Capital,VINCI CONSTRUCTION LTD,Housing Revenue Account Capital,14000.00,Deferred Charges/Grant Payments,2324_P09_CR00422,36361
Sandwell Metropolitan Borough Council,http://www.sandwell.gov.uk/info/200202/performance_and_spending/1079/payments_over_500,01-Dec-2023,Housing Revenue Account Capital,VINCI CONSTRUCTION LTD,Housing Revenue Account Capital,111114.71,Deferred Charges/Grant Payments,2324_P09_CR00423,36361
Sandwell Metropolitan Borough Council,http://www.sandwell.gov.uk/info/200202/performance_and_spending/1079/payments_over_500,12-Dec-2023,Housing Revenue Account Capital,WELCH AND PHILLIPS BUILDING CONTRACTORS LTD,Housing Revenue Account Capital,93556.42,"CIP - New Construction,Conversion, Enhancement & Reno",2324_P09_CR00424,167124
Sandwell Metropolitan Borough Council,http://www.sandwell.gov.uk/info/200202/performance_and_spending/1079/payments_over_500,01-Dec-2023,Housing Revenue Account Capital,OPENVIEW SECURITY SOLUTIONS LIMITED,Housing Revenue Account Capital,8727.76,Deferred Charges/Grant Payments,2324_P09_CR00425,77000151
Sandwell Metropolitan Borough Council,http://www.sandwell.gov.uk/info/200202/performance_and_spending/1079/payments_over_500,01-Dec-2023,Housing Revenue Account Capital,RIDLEY ELECTRONICS LTD,Housing Revenue Account Capital,12108.00,Deferred Charges/Grant Payments,2324_P09_CR00426,5974
Sandwell Metropolitan Borough Council,http://www.sandwell.gov.uk/info/200202/performance_and_spending/1079/payments_over_500,14-Dec-2023,Housing Revenue Account Capital,LIFT & ENGINEERING SERVICES LTD,Housing Revenue Account Capital,653.87,"CIP - New Construction,Conversion, Enhancement & Reno",2324_P09_CR00427,77003962
Sandwell Metropolitan Borough Council,http://www.sandwell.gov.uk/info/200202/performance_and_spending/1079/payments_over_500,19-Dec-2023,Individual School Budgets With Inclusion,5 STAR DAY NURSERY - OLDBURY,Individual School Budgets With Inclusion,10708.95,Grant Payments,2324_P09_CR00428,120730
Sandwell Metropolitan Borough Council,http://www.sandwell.gov.uk/info/200202/performance_and_spending/1079/payments_over_500,19-Dec-2023,Individual School Budgets With Inclusion,5 STAR DAY NURSERY LIMITED,Individual School Budgets With Inclusion,3546.90,Grant Payments,2324_P09_CR00429,105382
Sandwell Metropolitan Borough Council,http://www.sandwell.gov.uk/info/200202/performance_and_spending/1079/payments_over_500,19-Dec-2023,Individual School Budgets With Inclusion,ABC DAY NURSERY & PRE SCHOOL LTD,Individual School Budgets With Inclusion,7825.65,Grant Payments,2324_P09_CR00430,01472823
Sandwell Metropolitan Borough Council,http://www.sandwell.gov.uk/info/200202/performance_and_spending/1079/payments_over_500,19-Dec-2023,Individual School Budgets With Inclusion,ABIGAIL CRUMPTON,Individual School Budgets With Inclusion,1962.45,Grant Payments,2324_P09_CR00431,130863
Sandwell Metropolitan Borough Council,http://www.sandwell.gov.uk/info/200202/performance_and_spending/1079/payments_over_500,19-Dec-2023,Individual School Budgets With Inclusion,ADVENTURE QUEST (GREAT BRIDGE) LTD,Individual School Budgets With Inclusion,6692.17,Grant Payments,2324_P09_CR00432,153563
Sandwell Metropolitan Borough Council,http://www.sandwell.gov.uk/info/200202/performance_and_spending/1079/payments_over_500,19-Dec-2023,Individual School Budgets With Inclusion,AL KAHIR SCHOOL,Individual School Budgets With Inclusion,4186.35,Grant Payments,2324_P09_CR00433,128728
Sandwell Metropolitan Borough Council,http://www.sandwell.gov.uk/info/200202/performance_and_spending/1079/payments_over_500,19-Dec-2023,Individual School Budgets With Inclusion,ALBERT PRITCHARD INFANT SCHOOL,Individual School Budgets With Inclusion,5029.50,Grant Payments,2324_P09_CR00434,60962
Sandwell Metropolitan Borough Council,http://www.sandwell.gov.uk/info/200202/performance_and_spending/1079/payments_over_500,19-Dec-2023,Individual School Budgets With Inclusion,ALL SAINTS CE PRIMARY SCHOOL ,Individual School Budgets With Inclusion,5029.50,Grant Payments,2324_P09_CR00435,60964
Sandwell Metropolitan Borough Council,http://www.sandwell.gov.uk/info/200202/performance_and_spending/1079/payments_over_500,19-Dec-2023,Individual School Budgets With Inclusion,AMY LEES T/A HONEYBEES HOME NURSERY,Individual School Budgets With Inclusion,801.67,Grant Payments,2324_P09_CR00436,165822
Sandwell Metropolitan Borough Council,http://www.sandwell.gov.uk/info/200202/performance_and_spending/1079/payments_over_500,19-Dec-2023,Individual School Budgets With Inclusion,ANNE MARIE JACKSON-HEPBURN,Individual School Budgets With Inclusion,799.26,Grant Payments,2324_P09_CR00437,162845
Sandwell Metropolitan Borough Council,http://www.sandwell.gov.uk/info/200202/performance_and_spending/1079/payments_over_500,19-Dec-2023,Individual School Budgets With Inclusion,BABY STEPS DAY CARE,Individual School Budgets With Inclusion,3712.95,Grant Payments,2324_P09_CR00438,165672
Sandwell Metropolitan Borough Council,http://www.sandwell.gov.uk/info/200202/performance_and_spending/1079/payments_over_500,19-Dec-2023,Individual School Budgets With Inclusion,BANANA MOON DAY NURSERY,Individual School Budgets With Inclusion,2323.12,Grant Payments,2324_P09_CR00439,124220
Sandwell Metropolitan Borough Council,http://www.sandwell.gov.uk/info/200202/performance_and_spending/1079/payments_over_500,19-Dec-2023,Individual School Budgets With Inclusion,BLACKHEATH PRIMARY SCHOOL ,Individual School Budgets With Inclusion,7041.30,Grant Payments,2324_P09_CR00440,60968
Sandwell Metropolitan Borough Council,http://www.sandwell.gov.uk/info/200202/performance_and_spending/1079/payments_over_500,19-Dec-2023,Individual School Budgets With Inclusion,BLEAKHOUSE PRIMARY SCHOOL.,Individual School Budgets With Inclusion,6035.40,Grant Payments,2324_P09_CR00441,60969
Sandwell Metropolitan Borough Council,http://www.sandwell.gov.uk/info/200202/performance_and_spending/1079/payments_over_500,19-Dec-2023,Individual School Budgets With Inclusion,BOOKWORMS DAYCARE LIMITED,Individual School Budgets With Inclusion,2518.60,Grant Payments,2324_P09_CR00442,114741
Sandwell Metropolitan Borough Council,http://www.sandwell.gov.uk/info/200202/performance_and_spending/1079/payments_over_500,19-Dec-2023,Individual School Budgets With Inclusion,BRANDHALL PRIMARY SCHOOL   ,Individual School Budgets With Inclusion,14964.60,Grant Payments,2324_P09_CR00443,60971
Sandwell Metropolitan Borough Council,http://www.sandwell.gov.uk/info/200202/performance_and_spending/1079/payments_over_500,19-Dec-2023,Individual School Budgets With Inclusion,BRIGHT LIGHTS DAY NURSERY,Individual School Budgets With Inclusion,11247.07,Grant Payments,2324_P09_CR00444,89877
Sandwell Metropolitan Borough Council,http://www.sandwell.gov.uk/info/200202/performance_and_spending/1079/payments_over_500,19-Dec-2023,Individual School Budgets With Inclusion,BURNT TREE PRIMARY SCHOOL  ,Individual School Budgets With Inclusion,10059.00,Grant Payments,2324_P09_CR00445,60974
Sandwell Metropolitan Borough Council,http://www.sandwell.gov.uk/info/200202/performance_and_spending/1079/payments_over_500,19-Dec-2023,Individual School Budgets With Inclusion,BUSY BEE NURSERY,Individual School Budgets With Inclusion,12952.80,Grant Payments,2324_P09_CR00446,01222577
Sandwell Metropolitan Borough Council,http://www.sandwell.gov.uk/info/200202/performance_and_spending/1079/payments_over_500,19-Dec-2023,Individual School Budgets With Inclusion,CAP DAY NURSERY,Individual School Budgets With Inclusion,555.45,Grant Payments,2324_P09_CR00447,51154
Sandwell Metropolitan Borough Council,http://www.sandwell.gov.uk/info/200202/performance_and_spending/1079/payments_over_500,19-Dec-2023,Individual School Budgets With Inclusion,CARA PRATT,Individual School Budgets With Inclusion,534.45,Grant Payments,2324_P09_CR00448,140537
Sandwell Metropolitan Borough Council,http://www.sandwell.gov.uk/info/200202/performance_and_spending/1079/payments_over_500,19-Dec-2023,Individual School Budgets With Inclusion,CAUSEWAY GREEN PRIMARY SCHOOL   ,Individual School Budgets With Inclusion,5029.50,Grant Payments,2324_P09_CR00449,60976
Sandwell Metropolitan Borough Council,http://www.sandwell.gov.uk/info/200202/performance_and_spending/1079/payments_over_500,19-Dec-2023,Individual School Budgets With Inclusion,CHANTELLE WILLIAMSON,Individual School Budgets With Inclusion,1763.68,Grant Payments,2324_P09_CR00450,165512
Sandwell Metropolitan Borough Council,http://www.sandwell.gov.uk/info/200202/performance_and_spending/1079/payments_over_500,19-Dec-2023,Individual School Budgets With Inclusion,CHRIST CHURCH C OF E PRIMARY SCHOOL,Individual School Budgets With Inclusion,4023.60,Grant Payments,2324_P09_CR00451,1705
Sandwell Metropolitan Borough Council,http://www.sandwell.gov.uk/info/200202/performance_and_spending/1079/payments_over_500,19-Dec-2023,Individual School Budgets With Inclusion,CONIFERS DAY NURSERY LTD,Individual School Budgets With Inclusion,4364.32,Grant Payments,2324_P09_CR00452,131957
Sandwell Metropolitan Borough Council,http://www.sandwell.gov.uk/info/200202/performance_and_spending/1079/payments_over_500,19-Dec-2023,Individual School Budgets With Inclusion,CROCKETTS LANE COMMUNITY PRIMARY SCHOOL ,Individual School Budgets With Inclusion,5029.50,Grant Payments,2324_P09_CR00453,60980
Sandwell Metropolitan Borough Council,http://www.sandwell.gov.uk/info/200202/performance_and_spending/1079/payments_over_500,19-Dec-2023,Individual School Budgets With Inclusion,DAFFODILS NURSERY LTD,Individual School Budgets With Inclusion,10135.12,Grant Payments,2324_P09_CR00454,120066
Sandwell Metropolitan Borough Council,http://www.sandwell.gov.uk/info/200202/performance_and_spending/1079/payments_over_500,19-Dec-2023,Individual School Budgets With Inclusion,DEVONSHIRE INFANTS ACADEMY,Individual School Budgets With Inclusion,11064.90,Grant Payments,2324_P09_CR00455,118366
Sandwell Metropolitan Borough Council,http://www.sandwell.gov.uk/info/200202/performance_and_spending/1079/payments_over_500,19-Dec-2023,Individual School Budgets With Inclusion,EATON VALLEY PRIMARY SCHOOL,Individual School Budgets With Inclusion,17100.30,Grant Payments,2324_P09_CR00456,60981
Sandwell Metropolitan Borough Council,http://www.sandwell.gov.uk/info/200202/performance_and_spending/1079/payments_over_500,19-Dec-2023,Individual School Budgets With Inclusion,ELIZABETH TURNER,Individual School Budgets With Inclusion,534.45,Grant Payments,2324_P09_CR00457,34523
Sandwell Metropolitan Borough Council,http://www.sandwell.gov.uk/info/200202/performance_and_spending/1079/payments_over_500,19-Dec-2023,Individual School Budgets With Inclusion,FAIRYTALES NURSERY LTD,Individual School Budgets With Inclusion,7956.54,Grant Payments,2324_P09_CR00458,106247
Sandwell Metropolitan Borough Council,http://www.sandwell.gov.uk/info/200202/performance_and_spending/1079/payments_over_500,19-Dec-2023,Individual School Budgets With Inclusion,FATIMA DAY NURSERY,Individual School Budgets With Inclusion,4904.55,Grant Payments,2324_P09_CR00459,131343
Sandwell Metropolitan Borough Council,http://www.sandwell.gov.uk/info/200202/performance_and_spending/1079/payments_over_500,19-Dec-2023,Individual School Budgets With Inclusion,FERNDALE PRIMARY SCHOOL      ,Individual School Budgets With Inclusion,11757.90,Grant Payments,2324_P09_CR00460,11562
Sandwell Metropolitan Borough Council,http://www.sandwell.gov.uk/info/200202/performance_and_spending/1079/payments_over_500,19-Dec-2023,Individual School Budgets With Inclusion,FIONA TOLLADY,Individual School Budgets With Inclusion,534.45,Grant Payments,2324_P09_CR00461,92750
Sandwell Metropolitan Borough Council,http://www.sandwell.gov.uk/info/200202/performance_and_spending/1079/payments_over_500,19-Dec-2023,Individual School Budgets With Inclusion,FIREFLIES NURSERY LIMITED,Individual School Budgets With Inclusion,11869.20,Grant Payments,2324_P09_CR00462,124120
Sandwell Metropolitan Borough Council,http://www.sandwell.gov.uk/info/200202/performance_and_spending/1079/payments_over_500,19-Dec-2023,Individual School Budgets With Inclusion,FIRST STEPS DAY NURSERY,Individual School Budgets With Inclusion,11462.85,Grant Payments,2324_P09_CR00463,51155
Sandwell Metropolitan Borough Council,http://www.sandwell.gov.uk/info/200202/performance_and_spending/1079/payments_over_500,19-Dec-2023,Individual School Budgets With Inclusion,FIRST STEPS OLDBURY,Individual School Budgets With Inclusion,4904.55,Grant Payments,2324_P09_CR00464,118886
Sandwell Metropolitan Borough Council,http://www.sandwell.gov.uk/info/200202/performance_and_spending/1079/payments_over_500,19-Dec-2023,Individual School Budgets With Inclusion,GAIL FAY PREECE,Individual School Budgets With Inclusion,2137.80,Grant Payments,2324_P09_CR00465,61415
Sandwell Metropolitan Borough Council,http://www.sandwell.gov.uk/info/200202/performance_and_spending/1079/payments_over_500,19-Dec-2023,Individual School Budgets With Inclusion,GEMMA ADAMS,Individual School Budgets With Inclusion,534.45,Grant Payments,2324_P09_CR00466,129661
Sandwell Metropolitan Borough Council,http://www.sandwell.gov.uk/info/200202/performance_and_spending/1079/payments_over_500,19-Dec-2023,Individual School Budgets With Inclusion,GEMMA NOONE,Individual School Budgets With Inclusion,1089.90,Grant Payments,2324_P09_CR00467,153866
Sandwell Metropolitan Borough Council,http://www.sandwell.gov.uk/info/200202/performance_and_spending/1079/payments_over_500,01-Dec-2023,Individual School Budgets With Inclusion,GEMMA NOONE,Individual School Budgets With Inclusion,1089.90,Grant Payments,2324_P09_CR00468,153866
Sandwell Metropolitan Borough Council,http://www.sandwell.gov.uk/info/200202/performance_and_spending/1079/payments_over_500,19-Dec-2023,Individual School Budgets With Inclusion,GENIUS GEMS,Individual School Budgets With Inclusion,12189.45,Grant Payments,2324_P09_CR00469,160606
Sandwell Metropolitan Borough Council,http://www.sandwell.gov.uk/info/200202/performance_and_spending/1079/payments_over_500,19-Dec-2023,Individual School Budgets With Inclusion,GNG NURSERY,Individual School Budgets With Inclusion,6728.08,Grant Payments,2324_P09_CR00470,114805
Sandwell Metropolitan Borough Council,http://www.sandwell.gov.uk/info/200202/performance_and_spending/1079/payments_over_500,19-Dec-2023,Individual School Budgets With Inclusion,GRACE MARY PRIMARY SCHOOL  ,Individual School Budgets With Inclusion,7041.30,Grant Payments,2324_P09_CR00471,60991
Sandwell Metropolitan Borough Council,http://www.sandwell.gov.uk/info/200202/performance_and_spending/1079/payments_over_500,19-Dec-2023,Individual School Budgets With Inclusion,GREAT BRIDGE PRIMARY SCHOOL   ,Individual School Budgets With Inclusion,8047.20,Grant Payments,2324_P09_CR00472,42484
Sandwell Metropolitan Borough Council,http://www.sandwell.gov.uk/info/200202/performance_and_spending/1079/payments_over_500,19-Dec-2023,Individual School Budgets With Inclusion,HALL GREEN PRIMARY SCHOOL  ,Individual School Budgets With Inclusion,12070.80,Grant Payments,2324_P09_CR00473,60996
Sandwell Metropolitan Borough Council,http://www.sandwell.gov.uk/info/200202/performance_and_spending/1079/payments_over_500,19-Dec-2023,Individual School Budgets With Inclusion,HAMSTEAD INFANT SCHOOL  ,Individual School Budgets With Inclusion,8047.20,Grant Payments,2324_P09_CR00474,60997
Sandwell Metropolitan Borough Council,http://www.sandwell.gov.uk/info/200202/performance_and_spending/1079/payments_over_500,19-Dec-2023,Individual School Budgets With Inclusion,HAPPY DAYS NURSERY (GREETS GREEN),Individual School Budgets With Inclusion,3610.42,Grant Payments,2324_P09_CR00475,125840
Sandwell Metropolitan Borough Council,http://www.sandwell.gov.uk/info/200202/performance_and_spending/1079/payments_over_500,19-Dec-2023,Individual School Budgets With Inclusion,HARGATE PRIMARY SCHOOL  ,Individual School Budgets With Inclusion,10059.00,Grant Payments,2324_P09_CR00476,60999
Sandwell Metropolitan Borough Council,http://www.sandwell.gov.uk/info/200202/performance_and_spending/1079/payments_over_500,19-Dec-2023,Individual School Budgets With Inclusion,HARVILLS HAWTHORN PRIMARY SCHOOL ,Individual School Budgets With Inclusion,10059.00,Grant Payments,2324_P09_CR00477,01782074
Sandwell Metropolitan Borough Council,http://www.sandwell.gov.uk/info/200202/performance_and_spending/1079/payments_over_500,19-Dec-2023,Individual School Budgets With Inclusion,HAYLEY GODDARD,Individual School Budgets With Inclusion,1682.10,Grant Payments,2324_P09_CR00478,139835
Sandwell Metropolitan Borough Council,http://www.sandwell.gov.uk/info/200202/performance_and_spending/1079/payments_over_500,19-Dec-2023,Individual School Budgets With Inclusion,HAYLEY TURNER,Individual School Budgets With Inclusion,534.45,Grant Payments,2324_P09_CR00479,162824
Sandwell Metropolitan Borough Council,http://www.sandwell.gov.uk/info/200202/performance_and_spending/1079/payments_over_500,19-Dec-2023,Individual School Budgets With Inclusion,HOLYHEAD PRIMARY ACADEMY ,Individual School Budgets With Inclusion,5029.50,Grant Payments,2324_P09_CR00480,61005
Sandwell Metropolitan Borough Council,http://www.sandwell.gov.uk/info/200202/performance_and_spending/1079/payments_over_500,19-Dec-2023,Individual School Budgets With Inclusion,HUMPTY DUMPTYS DAY NURSERY,Individual School Budgets With Inclusion,9402.75,Grant Payments,2324_P09_CR00481,08510771
Sandwell Metropolitan Borough Council,http://www.sandwell.gov.uk/info/200202/performance_and_spending/1079/payments_over_500,19-Dec-2023,Individual School Budgets With Inclusion,JACQUELINE HEHIR,Individual School Budgets With Inclusion,1619.10,Grant Payments,2324_P09_CR00482,75203
Sandwell Metropolitan Borough Council,http://www.sandwell.gov.uk/info/200202/performance_and_spending/1079/payments_over_500,19-Dec-2023,Individual School Budgets With Inclusion,JENNIFER LOUISE LEATHERLAND,Individual School Budgets With Inclusion,872.85,Grant Payments,2324_P09_CR00483,131850
Sandwell Metropolitan Borough Council,http://www.sandwell.gov.uk/info/200202/performance_and_spending/1079/payments_over_500,19-Dec-2023,Individual School Budgets With Inclusion,JOANNE HUGHES,Individual School Budgets With Inclusion,560.70,Grant Payments,2324_P09_CR00484,120199
Sandwell Metropolitan Borough Council,http://www.sandwell.gov.uk/info/200202/performance_and_spending/1079/payments_over_500,19-Dec-2023,Individual School Budgets With Inclusion,JUBILEE PARK ACADEMY TRUST,Individual School Budgets With Inclusion,1005.90,Grant Payments,2324_P09_CR00485,113377
Sandwell Metropolitan Borough Council,http://www.sandwell.gov.uk/info/200202/performance_and_spending/1079/payments_over_500,19-Dec-2023,Individual School Budgets With Inclusion,JULIE BAINES,Individual School Budgets With Inclusion,534.45,Grant Payments,2324_P09_CR00486,129408
Sandwell Metropolitan Borough Council,http://www.sandwell.gov.uk/info/200202/performance_and_spending/1079/payments_over_500,19-Dec-2023,Individual School Budgets With Inclusion,JUNIPER'S PRESCHOOL,Individual School Budgets With Inclusion,8783.90,Grant Payments,2324_P09_CR00487,154579
Sandwell Metropolitan Borough Council,http://www.sandwell.gov.uk/info/200202/performance_and_spending/1079/payments_over_500,19-Dec-2023,Individual School Budgets With Inclusion,KAI DRUMS,Individual School Budgets With Inclusion,9058.35,Grant Payments,2324_P09_CR00488,120729
Sandwell Metropolitan Borough Council,http://www.sandwell.gov.uk/info/200202/performance_and_spending/1079/payments_over_500,19-Dec-2023,Individual School Budgets With Inclusion,KANGAROO POUCH AT GREAT BRIDGE,Individual School Budgets With Inclusion,5999.17,Grant Payments,2324_P09_CR00489,129771
Sandwell Metropolitan Borough Council,http://www.sandwell.gov.uk/info/200202/performance_and_spending/1079/payments_over_500,19-Dec-2023,Individual School Budgets With Inclusion,KANGAROO POUCH AT TIVIDALE,Individual School Budgets With Inclusion,4146.97,Grant Payments,2324_P09_CR00490,113715
Sandwell Metropolitan Borough Council,http://www.sandwell.gov.uk/info/200202/performance_and_spending/1079/payments_over_500,19-Dec-2023,Individual School Budgets With Inclusion,KANGAROO POUCH CHARLEMONT,Individual School Budgets With Inclusion,4719.75,Grant Payments,2324_P09_CR00491,117283
Sandwell Metropolitan Borough Council,http://www.sandwell.gov.uk/info/200202/performance_and_spending/1079/payments_over_500,19-Dec-2023,Individual School Budgets With Inclusion,KANGAROO POUCH LIMITED,Individual School Budgets With Inclusion,5320.35,Grant Payments,2324_P09_CR00492,106981
Sandwell Metropolitan Borough Council,http://www.sandwell.gov.uk/info/200202/performance_and_spending/1079/payments_over_500,19-Dec-2023,Individual School Budgets With Inclusion,KING GEORGE V PRIMARY SCHOOL   ,Individual School Budgets With Inclusion,1005.90,Grant Payments,2324_P09_CR00493,61009
Sandwell Metropolitan Borough Council,http://www.sandwell.gov.uk/info/200202/performance_and_spending/1079/payments_over_500,19-Dec-2023,Individual School Budgets With Inclusion,LANGLEY PRIMARY SCHOOL,Individual School Budgets With Inclusion,7482.30,Grant Payments,2324_P09_CR00494,61011
Sandwell Metropolitan Borough Council,http://www.sandwell.gov.uk/info/200202/performance_and_spending/1079/payments_over_500,19-Dec-2023,Individual School Budgets With Inclusion,LAVENDER FARM DAY NURSERY,Individual School Budgets With Inclusion,15143.62,Grant Payments,2324_P09_CR00495,65596
Sandwell Metropolitan Borough Council,http://www.sandwell.gov.uk/info/200202/performance_and_spending/1079/payments_over_500,19-Dec-2023,Individual School Budgets With Inclusion,LEKA HOWE,Individual School Budgets With Inclusion,1089.90,Grant Payments,2324_P09_CR00496,119503
Sandwell Metropolitan Borough Council,http://www.sandwell.gov.uk/info/200202/performance_and_spending/1079/payments_over_500,19-Dec-2023,Individual School Budgets With Inclusion,LILLIPUT LODGE CHILDRENS DAY NURSERY,Individual School Budgets With Inclusion,1349.25,Grant Payments,2324_P09_CR00497,2980
Sandwell Metropolitan Borough Council,http://www.sandwell.gov.uk/info/200202/performance_and_spending/1079/payments_over_500,19-Dec-2023,Individual School Budgets With Inclusion,LITTLE ACADEMY NURSERY,Individual School Budgets With Inclusion,1896.30,Grant Payments,2324_P09_CR00498,81904
Sandwell Metropolitan Borough Council,http://www.sandwell.gov.uk/info/200202/performance_and_spending/1079/payments_over_500,19-Dec-2023,Individual School Budgets With Inclusion,LITTLE ANGELS DAY NURSERY LIMITED,Individual School Budgets With Inclusion,2452.27,Grant Payments,2324_P09_CR00499,10207
Sandwell Metropolitan Borough Council,http://www.sandwell.gov.uk/info/200202/performance_and_spending/1079/payments_over_500,19-Dec-2023,Individual School Budgets With Inclusion,LITTLE EXPLORERS (WEST MIDLANDS) LTD,Individual School Budgets With Inclusion,13351.27,Grant Payments,2324_P09_CR00500,114804
Sandwell Metropolitan Borough Council,http://www.sandwell.gov.uk/info/200202/performance_and_spending/1079/payments_over_500,19-Dec-2023,Individual School Budgets With Inclusion,LITTLE LEARNERS LTD,Individual School Budgets With Inclusion,7978.95,Grant Payments,2324_P09_CR00501,01424133
Sandwell Metropolitan Borough Council,http://www.sandwell.gov.uk/info/200202/performance_and_spending/1079/payments_over_500,19-Dec-2023,Individual School Budgets With Inclusion,LITTLE LEGEND NURSERIES LTD,Individual School Budgets With Inclusion,2126.25,Grant Payments,2324_P09_CR00502,117890
Sandwell Metropolitan Borough Council,http://www.sandwell.gov.uk/info/200202/performance_and_spending/1079/payments_over_500,19-Dec-2023,Individual School Budgets With Inclusion,LITTLE STEPPERS,Individual School Budgets With Inclusion,12672.45,Grant Payments,2324_P09_CR00503,120240
Sandwell Metropolitan Borough Council,http://www.sandwell.gov.uk/info/200202/performance_and_spending/1079/payments_over_500,19-Dec-2023,Individual School Budgets With Inclusion,LITTLE VALERS PRE SCHOOL,Individual School Budgets With Inclusion,9620.10,Grant Payments,2324_P09_CR00504,99107
Sandwell Metropolitan Borough Council,http://www.sandwell.gov.uk/info/200202/performance_and_spending/1079/payments_over_500,19-Dec-2023,Individual School Budgets With Inclusion,LITTLE WENDY HOUSE DAY NURSERY,Individual School Budgets With Inclusion,10360.57,Grant Payments,2324_P09_CR00505,91544
Sandwell Metropolitan Borough Council,http://www.sandwell.gov.uk/info/200202/performance_and_spending/1079/payments_over_500,19-Dec-2023,Individual School Budgets With Inclusion,LOLA BELLES PRIVATE DAY NURSERY,Individual School Budgets With Inclusion,8649.90,Grant Payments,2324_P09_CR00506,89271
Sandwell Metropolitan Borough Council,http://www.sandwell.gov.uk/info/200202/performance_and_spending/1079/payments_over_500,19-Dec-2023,Individual School Budgets With Inclusion,LYNG PRIMARY SCHOOL  ,Individual School Budgets With Inclusion,6035.40,Grant Payments,2324_P09_CR00507,61026
Sandwell Metropolitan Borough Council,http://www.sandwell.gov.uk/info/200202/performance_and_spending/1079/payments_over_500,19-Dec-2023,Individual School Budgets With Inclusion,MICHAELA MOSELEY,Individual School Budgets With Inclusion,1121.40,Grant Payments,2324_P09_CR00508,121672
Sandwell Metropolitan Borough Council,http://www.sandwell.gov.uk/info/200202/performance_and_spending/1079/payments_over_500,19-Dec-2023,Individual School Budgets With Inclusion,MINI MONKEYS LTD,Individual School Budgets With Inclusion,5597.55,Grant Payments,2324_P09_CR00509,114818
Sandwell Metropolitan Borough Council,http://www.sandwell.gov.uk/info/200202/performance_and_spending/1079/payments_over_500,19-Dec-2023,Individual School Budgets With Inclusion,MOAT FARM INFANTS SCHOOL ,Individual School Budgets With Inclusion,13076.70,Grant Payments,2324_P09_CR00510,61031
Sandwell Metropolitan Borough Council,http://www.sandwell.gov.uk/info/200202/performance_and_spending/1079/payments_over_500,19-Dec-2023,Individual School Budgets With Inclusion,MONIQUE BROWN.,Individual School Budgets With Inclusion,560.70,Grant Payments,2324_P09_CR00511,127112
Sandwell Metropolitan Borough Council,http://www.sandwell.gov.uk/info/200202/performance_and_spending/1079/payments_over_500,19-Dec-2023,Individual School Budgets With Inclusion,MOORLANDS LITTLE LEARNERS PLAYGROUP,Individual School Budgets With Inclusion,7634.02,Grant Payments,2324_P09_CR00512,46390
Sandwell Metropolitan Borough Council,http://www.sandwell.gov.uk/info/200202/performance_and_spending/1079/payments_over_500,19-Dec-2023,Individual School Budgets With Inclusion,N & K VARMA LIMITED T/A (KIDDIES PLAYHOUSE TIPTON),Individual School Budgets With Inclusion,10081.57,Grant Payments,2324_P09_CR00513,26124
Sandwell Metropolitan Borough Council,http://www.sandwell.gov.uk/info/200202/performance_and_spending/1079/payments_over_500,19-Dec-2023,Individual School Budgets With Inclusion,NATALIE WESTON,Individual School Budgets With Inclusion,534.45,Grant Payments,2324_P09_CR00514,152056
Sandwell Metropolitan Borough Council,http://www.sandwell.gov.uk/info/200202/performance_and_spending/1079/payments_over_500,19-Dec-2023,Individual School Budgets With Inclusion,NEWTOWN PRIMARY ACADEMY    ,Individual School Budgets With Inclusion,1005.90,Grant Payments,2324_P09_CR00515,61034
Sandwell Metropolitan Borough Council,http://www.sandwell.gov.uk/info/200202/performance_and_spending/1079/payments_over_500,19-Dec-2023,Individual School Budgets With Inclusion,NICOLA DURBER,Individual School Budgets With Inclusion,712.60,Grant Payments,2324_P09_CR00516,124216
Sandwell Metropolitan Borough Council,http://www.sandwell.gov.uk/info/200202/performance_and_spending/1079/payments_over_500,19-Dec-2023,Individual School Budgets With Inclusion,OAKHAM PRIMARY SCHOOL   ,Individual School Budgets With Inclusion,19112.10,Grant Payments,2324_P09_CR00517,61035
Sandwell Metropolitan Borough Council,http://www.sandwell.gov.uk/info/200202/performance_and_spending/1079/payments_over_500,19-Dec-2023,Individual School Budgets With Inclusion,OCKER HILL INFANT SCHOOL   ,Individual School Budgets With Inclusion,19112.10,Grant Payments,2324_P09_CR00518,61036
Sandwell Metropolitan Borough Council,http://www.sandwell.gov.uk/info/200202/performance_and_spending/1079/payments_over_500,19-Dec-2023,Individual School Budgets With Inclusion,OLD HILL PRIMARY SCHOOL  ,Individual School Budgets With Inclusion,7041.30,Grant Payments,2324_P09_CR00519,04014504
Sandwell Metropolitan Borough Council,http://www.sandwell.gov.uk/info/200202/performance_and_spending/1079/payments_over_500,19-Dec-2023,Individual School Budgets With Inclusion,OLD PARK PRIMARY SCHOOL  ,Individual School Budgets With Inclusion,20118.00,Grant Payments,2324_P09_CR00520,61039
Sandwell Metropolitan Borough Council,http://www.sandwell.gov.uk/info/200202/performance_and_spending/1079/payments_over_500,19-Dec-2023,Individual School Budgets With Inclusion,OUR LADY AND ST HUBERTS CATHOLIC PRIMARY SCHOOL ,Individual School Budgets With Inclusion,11855.02,Grant Payments,2324_P09_CR00521,61053
Sandwell Metropolitan Borough Council,http://www.sandwell.gov.uk/info/200202/performance_and_spending/1079/payments_over_500,19-Dec-2023,Individual School Budgets With Inclusion,PARK HILL PRIMARY SCHOOL,Individual School Budgets With Inclusion,9053.10,Grant Payments,2324_P09_CR00522,04017201
Sandwell Metropolitan Borough Council,http://www.sandwell.gov.uk/info/200202/performance_and_spending/1079/payments_over_500,19-Dec-2023,Individual School Budgets With Inclusion,PENNYHILL PRIMARY SCHOOL,Individual School Budgets With Inclusion,3017.70,Grant Payments,2324_P09_CR00523,73032
Sandwell Metropolitan Borough Council,http://www.sandwell.gov.uk/info/200202/performance_and_spending/1079/payments_over_500,19-Dec-2023,Individual School Budgets With Inclusion,PERRYFIELDS PRE SCHOOL,Individual School Budgets With Inclusion,11904.44,Grant Payments,2324_P09_CR00524,18879
Sandwell Metropolitan Borough Council,http://www.sandwell.gov.uk/info/200202/performance_and_spending/1079/payments_over_500,19-Dec-2023,Individual School Budgets With Inclusion,PITTA PATTA DAYCARE,Individual School Budgets With Inclusion,5177.02,Grant Payments,2324_P09_CR00525,114742
Sandwell Metropolitan Borough Council,http://www.sandwell.gov.uk/info/200202/performance_and_spending/1079/payments_over_500,19-Dec-2023,Individual School Budgets With Inclusion,PLAYHOUSE DAY NURSERY,Individual School Budgets With Inclusion,4359.60,Grant Payments,2324_P09_CR00526,01586669
Sandwell Metropolitan Borough Council,http://www.sandwell.gov.uk/info/200202/performance_and_spending/1079/payments_over_500,19-Dec-2023,Individual School Budgets With Inclusion,PRECIOUS TIMES DAY NURSERY,Individual School Budgets With Inclusion,8334.15,Grant Payments,2324_P09_CR00527,165946
Sandwell Metropolitan Borough Council,http://www.sandwell.gov.uk/info/200202/performance_and_spending/1079/payments_over_500,19-Dec-2023,Individual School Budgets With Inclusion,RAK DAY CARE LTD T/A HAPPY VALLEY PRE SCHOOL LTD,Individual School Budgets With Inclusion,12270.82,Grant Payments,2324_P09_CR00528,01572212
Sandwell Metropolitan Borough Council,http://www.sandwell.gov.uk/info/200202/performance_and_spending/1079/payments_over_500,19-Dec-2023,Individual School Budgets With Inclusion,RARE WOOD LIMITED,Individual School Budgets With Inclusion,9588.67,Grant Payments,2324_P09_CR00529,20167
Sandwell Metropolitan Borough Council,http://www.sandwell.gov.uk/info/200202/performance_and_spending/1079/payments_over_500,19-Dec-2023,Individual School Budgets With Inclusion,REDDAL HILL PRIMARY SCHOOL  ,Individual School Budgets With Inclusion,8047.20,Grant Payments,2324_P09_CR00530,61043
Sandwell Metropolitan Borough Council,http://www.sandwell.gov.uk/info/200202/performance_and_spending/1079/payments_over_500,19-Dec-2023,Individual School Budgets With Inclusion,REKA ONWUMELU,Individual School Budgets With Inclusion,2850.40,Grant Payments,2324_P09_CR00531,123887
Sandwell Metropolitan Borough Council,http://www.sandwell.gov.uk/info/200202/performance_and_spending/1079/payments_over_500,19-Dec-2023,Individual School Budgets With Inclusion,ROOTS & SHOOTS PLAYGROUP,Individual School Budgets With Inclusion,1838.02,Grant Payments,2324_P09_CR00532,75502
Sandwell Metropolitan Borough Council,http://www.sandwell.gov.uk/info/200202/performance_and_spending/1079/payments_over_500,19-Dec-2023,Individual School Budgets With Inclusion,ROWLEY HALL PRIMARY SCHOOL  ,Individual School Budgets With Inclusion,10662.54,Grant Payments,2324_P09_CR00533,61046
Sandwell Metropolitan Borough Council,http://www.sandwell.gov.uk/info/200202/performance_and_spending/1079/payments_over_500,19-Dec-2023,Individual School Budgets With Inclusion,ROWLEY VILLAGE DAY NURSERY,Individual School Budgets With Inclusion,8317.57,Grant Payments,2324_P09_CR00534,24228
Sandwell Metropolitan Borough Council,http://www.sandwell.gov.uk/info/200202/performance_and_spending/1079/payments_over_500,19-Dec-2023,Individual School Budgets With Inclusion,RUPINDER KAUR.,Individual School Budgets With Inclusion,1068.90,Grant Payments,2324_P09_CR00535,143707
Sandwell Metropolitan Borough Council,http://www.sandwell.gov.uk/info/200202/performance_and_spending/1079/payments_over_500,19-Dec-2023,Individual School Budgets With Inclusion,SACRED HEART PRIMARY SCHOOL  ,Individual School Budgets With Inclusion,8981.25,Grant Payments,2324_P09_CR00536,61048
Sandwell Metropolitan Borough Council,http://www.sandwell.gov.uk/info/200202/performance_and_spending/1079/payments_over_500,19-Dec-2023,Individual School Budgets With Inclusion,SADWICA DAY NURSERY,Individual School Budgets With Inclusion,3413.02,Grant Payments,2324_P09_CR00537,01667892
Sandwell Metropolitan Borough Council,http://www.sandwell.gov.uk/info/200202/performance_and_spending/1079/payments_over_500,19-Dec-2023,Individual School Budgets With Inclusion,SANDWELL NHS TRUST DAY NURSERY,Individual School Budgets With Inclusion,13078.80,Grant Payments,2324_P09_CR00538,40788
Sandwell Metropolitan Borough Council,http://www.sandwell.gov.uk/info/200202/performance_and_spending/1079/payments_over_500,19-Dec-2023,Individual School Budgets With Inclusion,SANTOS DAY NURSERIES,Individual School Budgets With Inclusion,9006.55,Grant Payments,2324_P09_CR00539,129262
Sandwell Metropolitan Borough Council,http://www.sandwell.gov.uk/info/200202/performance_and_spending/1079/payments_over_500,19-Dec-2023,Individual School Budgets With Inclusion,SARAH WATERS,Individual School Budgets With Inclusion,1525.86,Grant Payments,2324_P09_CR00540,134518
Sandwell Metropolitan Borough Council,http://www.sandwell.gov.uk/info/200202/performance_and_spending/1079/payments_over_500,19-Dec-2023,Individual School Budgets With Inclusion,SATVINDER KAUR,Individual School Budgets With Inclusion,2672.25,Grant Payments,2324_P09_CR00541,131042
Sandwell Metropolitan Borough Council,http://www.sandwell.gov.uk/info/200202/performance_and_spending/1079/payments_over_500,19-Dec-2023,Individual School Budgets With Inclusion,SILVERTREES ACADEMY TRUST,Individual School Budgets With Inclusion,20309.10,Grant Payments,2324_P09_CR00542,113719
Sandwell Metropolitan Borough Council,http://www.sandwell.gov.uk/info/200202/performance_and_spending/1079/payments_over_500,19-Dec-2023,Individual School Budgets With Inclusion,SMARTY PANTS @ LIGHTWOODS HOUSE LTD,Individual School Budgets With Inclusion,7225.05,Grant Payments,2324_P09_CR00543,130645
Sandwell Metropolitan Borough Council,http://www.sandwell.gov.uk/info/200202/performance_and_spending/1079/payments_over_500,19-Dec-2023,Individual School Budgets With Inclusion,SMARTY PANTS PRIVATE DAY NURSERY LTD,Individual School Budgets With Inclusion,12811.05,Grant Payments,2324_P09_CR00544,74037
Sandwell Metropolitan Borough Council,http://www.sandwell.gov.uk/info/200202/performance_and_spending/1079/payments_over_500,19-Dec-2023,Individual School Budgets With Inclusion,SPON LANE DAY NURSERY LIMITED,Individual School Budgets With Inclusion,7358.92,Grant Payments,2324_P09_CR00545,127024
Sandwell Metropolitan Borough Council,http://www.sandwell.gov.uk/info/200202/performance_and_spending/1079/payments_over_500,19-Dec-2023,Individual School Budgets With Inclusion,ST CATHERINE OF SIENA MULTI ACADEMY COMPANY  ,Individual School Budgets With Inclusion,8551.20,Grant Payments,2324_P09_CR00546,61052
Sandwell Metropolitan Borough Council,http://www.sandwell.gov.uk/info/200202/performance_and_spending/1079/payments_over_500,19-Dec-2023,Individual School Budgets With Inclusion,ST FRANCIS XAVIER CATHOLIC PRIMARY,Individual School Budgets With Inclusion,7041.30,Grant Payments,2324_P09_CR00547,61051
Sandwell Metropolitan Borough Council,http://www.sandwell.gov.uk/info/200202/performance_and_spending/1079/payments_over_500,19-Dec-2023,Individual School Budgets With Inclusion,ST HUBERTS PRE-SCHOOL PLAYGROUP 2,Individual School Budgets With Inclusion,12967.50,Grant Payments,2324_P09_CR00548,123074
Sandwell Metropolitan Borough Council,http://www.sandwell.gov.uk/info/200202/performance_and_spending/1079/payments_over_500,19-Dec-2023,Individual School Budgets With Inclusion,ST JAMES C OF E PRIMARY SCHOOL,Individual School Budgets With Inclusion,7482.30,Grant Payments,2324_P09_CR00549,61054
Sandwell Metropolitan Borough Council,http://www.sandwell.gov.uk/info/200202/performance_and_spending/1079/payments_over_500,19-Dec-2023,Individual School Budgets With Inclusion,ST JOHN BOSCO RC PRIMARY SCHOOL   ,Individual School Budgets With Inclusion,5029.50,Grant Payments,2324_P09_CR00550,61055
Sandwell Metropolitan Borough Council,http://www.sandwell.gov.uk/info/200202/performance_and_spending/1079/payments_over_500,19-Dec-2023,Individual School Budgets With Inclusion,ST MARGARETS C OF E PRIMARY SCHOOL,Individual School Budgets With Inclusion,11064.90,Grant Payments,2324_P09_CR00551,61057
Sandwell Metropolitan Borough Council,http://www.sandwell.gov.uk/info/200202/performance_and_spending/1079/payments_over_500,19-Dec-2023,Individual School Budgets With Inclusion,ST MARTINS CE PRIMARY SCHOOL,Individual School Budgets With Inclusion,6035.40,Grant Payments,2324_P09_CR00552,61058
Sandwell Metropolitan Borough Council,http://www.sandwell.gov.uk/info/200202/performance_and_spending/1079/payments_over_500,19-Dec-2023,Individual School Budgets With Inclusion,ST MARY MAGDALENE CE PRIMARY SCHOOL  ,Individual School Budgets With Inclusion,5029.50,Grant Payments,2324_P09_CR00553,61059
Sandwell Metropolitan Borough Council,http://www.sandwell.gov.uk/info/200202/performance_and_spending/1079/payments_over_500,19-Dec-2023,Individual School Budgets With Inclusion,ST MARYS RC PRIMARY SCHOOL      ,Individual School Budgets With Inclusion,7041.30,Grant Payments,2324_P09_CR00554,61060
Sandwell Metropolitan Borough Council,http://www.sandwell.gov.uk/info/200202/performance_and_spending/1079/payments_over_500,19-Dec-2023,Individual School Budgets With Inclusion,ST MATTHEWS CE PRIMARY SCHOOL  ,Individual School Budgets With Inclusion,5029.50,Grant Payments,2324_P09_CR00555,61061
Sandwell Metropolitan Borough Council,http://www.sandwell.gov.uk/info/200202/performance_and_spending/1079/payments_over_500,19-Dec-2023,Individual School Budgets With Inclusion,ST PHILIPS CATHOLIC PRIMARY ,Individual School Budgets With Inclusion,1068.90,Grant Payments,2324_P09_CR00556,61063
Sandwell Metropolitan Borough Council,http://www.sandwell.gov.uk/info/200202/performance_and_spending/1079/payments_over_500,19-Dec-2023,Individual School Budgets With Inclusion,STACEY PARTRIDGE (STEP UP CHILDCARE),Individual School Budgets With Inclusion,534.45,Grant Payments,2324_P09_CR00557,151395
Sandwell Metropolitan Borough Council,http://www.sandwell.gov.uk/info/200202/performance_and_spending/1079/payments_over_500,19-Dec-2023,Individual School Budgets With Inclusion,SUE LEATHERLAND,Individual School Budgets With Inclusion,534.45,Grant Payments,2324_P09_CR00558,130855
Sandwell Metropolitan Borough Council,http://www.sandwell.gov.uk/info/200202/performance_and_spending/1079/payments_over_500,19-Dec-2023,Individual School Budgets With Inclusion,TAKMEEN AKHTAR,Individual School Budgets With Inclusion,2276.40,Grant Payments,2324_P09_CR00559,121084
Sandwell Metropolitan Borough Council,http://www.sandwell.gov.uk/info/200202/performance_and_spending/1079/payments_over_500,19-Dec-2023,Individual School Budgets With Inclusion,TEMPLE MEADOW PRIMARY SCHOOL ,Individual School Budgets With Inclusion,7041.30,Grant Payments,2324_P09_CR00560,61065
Sandwell Metropolitan Borough Council,http://www.sandwell.gov.uk/info/200202/performance_and_spending/1079/payments_over_500,19-Dec-2023,Individual School Budgets With Inclusion,TENDER TROOPS DAY NURSERY AND CHILDREN HUB,Individual School Budgets With Inclusion,5742.45,Grant Payments,2324_P09_CR00561,164824
Sandwell Metropolitan Borough Council,http://www.sandwell.gov.uk/info/200202/performance_and_spending/1079/payments_over_500,19-Dec-2023,Individual School Budgets With Inclusion,THE FAMILY NURSERY COMPANY LTD,Individual School Budgets With Inclusion,6544.12,Grant Payments,2324_P09_CR00562,89879
Sandwell Metropolitan Borough Council,http://www.sandwell.gov.uk/info/200202/performance_and_spending/1079/payments_over_500,19-Dec-2023,Individual School Budgets With Inclusion,THE OLD STATION NURSERY,Individual School Budgets With Inclusion,7649.81,Grant Payments,2324_P09_CR00563,166979
Sandwell Metropolitan Borough Council,http://www.sandwell.gov.uk/info/200202/performance_and_spending/1079/payments_over_500,19-Dec-2023,Individual School Budgets With Inclusion,THE RIVERS MULTI ACADEMY TRUST,Individual School Budgets With Inclusion,25774.87,Grant Payments,2324_P09_CR00564,61014
Sandwell Metropolitan Borough Council,http://www.sandwell.gov.uk/info/200202/performance_and_spending/1079/payments_over_500,19-Dec-2023,Individual School Budgets With Inclusion,THE TODDLER HOUSE LIMITED,Individual School Budgets With Inclusion,3135.82,Grant Payments,2324_P09_CR00565,122166
Sandwell Metropolitan Borough Council,http://www.sandwell.gov.uk/info/200202/performance_and_spending/1079/payments_over_500,19-Dec-2023,Individual School Budgets With Inclusion,THE WONDER YEARS DAY NURSERY LIMITED,Individual School Budgets With Inclusion,16596.09,Grant Payments,2324_P09_CR00566,01647249
Sandwell Metropolitan Borough Council,http://www.sandwell.gov.uk/info/200202/performance_and_spending/1079/payments_over_500,19-Dec-2023,Individual School Budgets With Inclusion,THERESA DEAKIN,Individual School Budgets With Inclusion,534.45,Grant Payments,2324_P09_CR00567,39468
Sandwell Metropolitan Borough Council,http://www.sandwell.gov.uk/info/200202/performance_and_spending/1079/payments_over_500,19-Dec-2023,Individual School Budgets With Inclusion,TICK TOCK DAY NURSERY LTD,Individual School Budgets With Inclusion,8722.66,Grant Payments,2324_P09_CR00568,9391
Sandwell Metropolitan Borough Council,http://www.sandwell.gov.uk/info/200202/performance_and_spending/1079/payments_over_500,19-Dec-2023,Individual School Budgets With Inclusion,TIDDLYWINKS KIDDYS NURSERY LIMITED,Individual School Budgets With Inclusion,12414.15,Grant Payments,2324_P09_CR00569,110667
Sandwell Metropolitan Borough Council,http://www.sandwell.gov.uk/info/200202/performance_and_spending/1079/payments_over_500,19-Dec-2023,Individual School Budgets With Inclusion,TIMBERTREE NEIGHBOURHOOD NURSERY,Individual School Budgets With Inclusion,21746.62,Grant Payments,2324_P09_CR00570,135664
Sandwell Metropolitan Borough Council,http://www.sandwell.gov.uk/info/200202/performance_and_spending/1079/payments_over_500,19-Dec-2023,Individual School Budgets With Inclusion,TINY TOEZ LIMITED,Individual School Budgets With Inclusion,10184.47,Grant Payments,2324_P09_CR00571,23618
Sandwell Metropolitan Borough Council,http://www.sandwell.gov.uk/info/200202/performance_and_spending/1079/payments_over_500,19-Dec-2023,Individual School Budgets With Inclusion,"TINYWOODS PRESCHOOL,",Individual School Budgets With Inclusion,13521.58,Grant Payments,2324_P09_CR00572,91788
Sandwell Metropolitan Borough Council,http://www.sandwell.gov.uk/info/200202/performance_and_spending/1079/payments_over_500,19-Dec-2023,Individual School Budgets With Inclusion,TIP TOP DAY NURSERY WEDNESBURY,Individual School Budgets With Inclusion,11898.67,Grant Payments,2324_P09_CR00573,147082
Sandwell Metropolitan Borough Council,http://www.sandwell.gov.uk/info/200202/performance_and_spending/1079/payments_over_500,19-Dec-2023,Individual School Budgets With Inclusion,TIPTON NURSERY,Individual School Budgets With Inclusion,7311.32,Grant Payments,2324_P09_CR00574,89881
Sandwell Metropolitan Borough Council,http://www.sandwell.gov.uk/info/200202/performance_and_spending/1079/payments_over_500,19-Dec-2023,Individual School Budgets With Inclusion,TIPTON TODDLERS DAY NURSERY,Individual School Budgets With Inclusion,22077.79,Grant Payments,2324_P09_CR00575,4397
Sandwell Metropolitan Borough Council,http://www.sandwell.gov.uk/info/200202/performance_and_spending/1079/payments_over_500,19-Dec-2023,Individual School Budgets With Inclusion,TIVIDALE HALL PRIMARY SCHOOL  ,Individual School Budgets With Inclusion,9053.10,Grant Payments,2324_P09_CR00576,61070
Sandwell Metropolitan Borough Council,http://www.sandwell.gov.uk/info/200202/performance_and_spending/1079/payments_over_500,19-Dec-2023,Individual School Budgets With Inclusion,TRACEY RALLEY,Individual School Budgets With Inclusion,534.45,Grant Payments,2324_P09_CR00577,139205
Sandwell Metropolitan Borough Council,http://www.sandwell.gov.uk/info/200202/performance_and_spending/1079/payments_over_500,19-Dec-2023,Individual School Budgets With Inclusion,TULIP DAY NURSERY LTD,Individual School Budgets With Inclusion,4719.75,Grant Payments,2324_P09_CR00578,152250
Sandwell Metropolitan Borough Council,http://www.sandwell.gov.uk/info/200202/performance_and_spending/1079/payments_over_500,19-Dec-2023,Individual School Budgets With Inclusion,TWO STEPS PRE-SCHOOL,Individual School Budgets With Inclusion,2770.74,Grant Payments,2324_P09_CR00579,109186
Sandwell Metropolitan Borough Council,http://www.sandwell.gov.uk/info/200202/performance_and_spending/1079/payments_over_500,19-Dec-2023,Individual School Budgets With Inclusion,UNICORN DAY NURSERY,Individual School Budgets With Inclusion,18428.70,Grant Payments,2324_P09_CR00580,91543
Sandwell Metropolitan Borough Council,http://www.sandwell.gov.uk/info/200202/performance_and_spending/1079/payments_over_500,19-Dec-2023,Individual School Budgets With Inclusion,UNITED KIDS CHILDCARE,Individual School Budgets With Inclusion,7442.10,Grant Payments,2324_P09_CR00581,134806
Sandwell Metropolitan Borough Council,http://www.sandwell.gov.uk/info/200202/performance_and_spending/1079/payments_over_500,19-Dec-2023,Individual School Budgets With Inclusion,UNITED KIDS LIMITED,Individual School Budgets With Inclusion,6419.70,Grant Payments,2324_P09_CR00582,136360
Sandwell Metropolitan Borough Council,http://www.sandwell.gov.uk/info/200202/performance_and_spending/1079/payments_over_500,19-Dec-2023,Individual School Budgets With Inclusion,UPLANDS MANOR PRIMARY  ,Individual School Budgets With Inclusion,7482.30,Grant Payments,2324_P09_CR00583,61071
Sandwell Metropolitan Borough Council,http://www.sandwell.gov.uk/info/200202/performance_and_spending/1079/payments_over_500,19-Dec-2023,Individual School Budgets With Inclusion,VANESSA BILLINGSLEY,Individual School Budgets With Inclusion,2137.80,Grant Payments,2324_P09_CR00584,125216
Sandwell Metropolitan Borough Council,http://www.sandwell.gov.uk/info/200202/performance_and_spending/1079/payments_over_500,19-Dec-2023,Individual School Budgets With Inclusion,VICTORIA PARK PRIMARY ACADEMY,Individual School Budgets With Inclusion,5029.50,Grant Payments,2324_P09_CR00585,106209
Sandwell Metropolitan Borough Council,http://www.sandwell.gov.uk/info/200202/performance_and_spending/1079/payments_over_500,19-Dec-2023,Individual School Budgets With Inclusion,WENDY MAXWELL,Individual School Budgets With Inclusion,2375.55,Grant Payments,2324_P09_CR00586,37344
Sandwell Metropolitan Borough Council,http://www.sandwell.gov.uk/info/200202/performance_and_spending/1079/payments_over_500,19-Dec-2023,Individual School Budgets With Inclusion,WEST BROMWICH & DISTRICT Y.M.C.A. COMMUNITY ENTERPRISES,Individual School Budgets With Inclusion,26742.24,Grant Payments,2324_P09_CR00587,01088376
Sandwell Metropolitan Borough Council,http://www.sandwell.gov.uk/info/200202/performance_and_spending/1079/payments_over_500,19-Dec-2023,Individual School Budgets With Inclusion,WHITECREST PRIMARY SCHOOL    ,Individual School Budgets With Inclusion,3910.72,Grant Payments,2324_P09_CR00588,38087
Sandwell Metropolitan Borough Council,http://www.sandwell.gov.uk/info/200202/performance_and_spending/1079/payments_over_500,19-Dec-2023,Individual School Budgets With Inclusion,WIGGLES & GIGGLES OLDBURY LTD,Individual School Budgets With Inclusion,17771.32,Grant Payments,2324_P09_CR00589,01674799
Sandwell Metropolitan Borough Council,http://www.sandwell.gov.uk/info/200202/performance_and_spending/1079/payments_over_500,19-Dec-2023,Individual School Budgets With Inclusion,WONDERLAND CHILDRENS DAY NURSERY (UK) LTD,Individual School Budgets With Inclusion,16357.95,Grant Payments,2324_P09_CR00590,50852
Sandwell Metropolitan Borough Council,http://www.sandwell.gov.uk/info/200202/performance_and_spending/1079/payments_over_500,01-Dec-2023,Individual School Budgets With Inclusion,EQUAL EDUCATION LTD,Individual School Budgets With Inclusion,-800.00,Externally Purchased Professional Services ,2324_P09_CR00591,128460
Sandwell Metropolitan Borough Council,http://www.sandwell.gov.uk/info/200202/performance_and_spending/1079/payments_over_500,05-Dec-2023,Individual School Budgets With Inclusion,ALBRIGHT EDUCATION CENTRE,Individual School Budgets With Inclusion,7253.43,Externally Purchased Professional Services ,2324_P09_CR00592,151478
Sandwell Metropolitan Borough Council,http://www.sandwell.gov.uk/info/200202/performance_and_spending/1079/payments_over_500,01-Dec-2023,Individual School Budgets With Inclusion,ASCEND EDUCATION PROVISION LTD,Individual School Budgets With Inclusion,1575.00,Other Establishments,2324_P09_CR00593,136631
Sandwell Metropolitan Borough Council,http://www.sandwell.gov.uk/info/200202/performance_and_spending/1079/payments_over_500,01-Dec-2023,Individual School Budgets With Inclusion,ASCEND EDUCATION PROVISION LTD,Individual School Budgets With Inclusion,3780.00,Other Establishments,2324_P09_CR00594,136631
Sandwell Metropolitan Borough Council,http://www.sandwell.gov.uk/info/200202/performance_and_spending/1079/payments_over_500,01-Dec-2023,Individual School Budgets With Inclusion,B CREATIVE,Individual School Budgets With Inclusion,3388.00,Materials & Consumables,2324_P09_CR00595,163453
Sandwell Metropolitan Borough Council,http://www.sandwell.gov.uk/info/200202/performance_and_spending/1079/payments_over_500,01-Dec-2023,Individual School Budgets With Inclusion,BANANA MOON DAY NURSERY,Individual School Budgets With Inclusion,2250.00,Externally Purchased Professional Services ,2324_P09_CR00596,124220
Sandwell Metropolitan Borough Council,http://www.sandwell.gov.uk/info/200202/performance_and_spending/1079/payments_over_500,01-Dec-2023,Individual School Budgets With Inclusion,BANANA MOON DAY NURSERY,Individual School Budgets With Inclusion,4750.00,Externally Purchased Professional Services ,2324_P09_CR00597,124220
Sandwell Metropolitan Borough Council,http://www.sandwell.gov.uk/info/200202/performance_and_spending/1079/payments_over_500,01-Dec-2023,Individual School Budgets With Inclusion,BRIGHT LIGHTS DAY NURSERY,Individual School Budgets With Inclusion,2398.50,Externally Purchased Professional Services ,2324_P09_CR00598,89877
Sandwell Metropolitan Borough Council,http://www.sandwell.gov.uk/info/200202/performance_and_spending/1079/payments_over_500,01-Dec-2023,Individual School Budgets With Inclusion,CONNEX EDUCATION PARTNERSHIP LTD,Individual School Budgets With Inclusion,532.00,Agency Staff,2324_P09_CR00599,164513
Sandwell Metropolitan Borough Council,http://www.sandwell.gov.uk/info/200202/performance_and_spending/1079/payments_over_500,01-Dec-2023,Individual School Budgets With Inclusion,CONNEX EDUCATION PARTNERSHIP LTD,Individual School Budgets With Inclusion,532.00,Agency Staff,2324_P09_CR00600,164513
Sandwell Metropolitan Borough Council,http://www.sandwell.gov.uk/info/200202/performance_and_spending/1079/payments_over_500,01-Dec-2023,Individual School Budgets With Inclusion,CONNEX EDUCATION PARTNERSHIP LTD,Individual School Budgets With Inclusion,625.00,Agency Staff,2324_P09_CR00601,164513
Sandwell Metropolitan Borough Council,http://www.sandwell.gov.uk/info/200202/performance_and_spending/1079/payments_over_500,01-Dec-2023,Individual School Budgets With Inclusion,CONNEX EDUCATION PARTNERSHIP LTD,Individual School Budgets With Inclusion,665.00,Agency Staff,2324_P09_CR00602,164513
Sandwell Metropolitan Borough Council,http://www.sandwell.gov.uk/info/200202/performance_and_spending/1079/payments_over_500,01-Dec-2023,Individual School Budgets With Inclusion,CONNEX EDUCATION PARTNERSHIP LTD,Individual School Budgets With Inclusion,665.00,Agency Staff,2324_P09_CR00603,164513
Sandwell Metropolitan Borough Council,http://www.sandwell.gov.uk/info/200202/performance_and_spending/1079/payments_over_500,01-Dec-2023,Individual School Budgets With Inclusion,CONNEX EDUCATION PARTNERSHIP LTD,Individual School Budgets With Inclusion,665.00,Agency Staff,2324_P09_CR00604,164513
Sandwell Metropolitan Borough Council,http://www.sandwell.gov.uk/info/200202/performance_and_spending/1079/payments_over_500,06-Dec-2023,Individual School Budgets With Inclusion,ENVIRONMENTS FOR LEARNING SANDWELL PFI ONE LIMITED,Individual School Budgets With Inclusion,843.73,PFI & PPP Schemes,2324_P09_CR00605,98332
Sandwell Metropolitan Borough Council,http://www.sandwell.gov.uk/info/200202/performance_and_spending/1079/payments_over_500,06-Dec-2023,Individual School Budgets With Inclusion,ENVIRONMENTS FOR LEARNING SANDWELL PFI ONE LIMITED,Individual School Budgets With Inclusion,1894.26,PFI & PPP Schemes,2324_P09_CR00606,98332
Sandwell Metropolitan Borough Council,http://www.sandwell.gov.uk/info/200202/performance_and_spending/1079/payments_over_500,01-Dec-2023,Individual School Budgets With Inclusion,ENVIRONMENTS FOR LEARNING SANDWELL PFI ONE LIMITED,Individual School Budgets With Inclusion,3994.05,PFI & PPP Schemes,2324_P09_CR00607,98332
Sandwell Metropolitan Borough Council,http://www.sandwell.gov.uk/info/200202/performance_and_spending/1079/payments_over_500,01-Dec-2023,Individual School Budgets With Inclusion,ENVIRONMENTS FOR LEARNING SANDWELL PFI ONE LIMITED,Individual School Budgets With Inclusion,667325.08,PFI & PPP Schemes,2324_P09_CR00608,98332
Sandwell Metropolitan Borough Council,http://www.sandwell.gov.uk/info/200202/performance_and_spending/1079/payments_over_500,01-Dec-2023,Individual School Budgets With Inclusion,EQUAL EDUCATION LTD,Individual School Budgets With Inclusion,552.00,Externally Purchased Professional Services ,2324_P09_CR00609,128460
Sandwell Metropolitan Borough Council,http://www.sandwell.gov.uk/info/200202/performance_and_spending/1079/payments_over_500,01-Dec-2023,Individual School Budgets With Inclusion,EQUAL EDUCATION LTD,Individual School Budgets With Inclusion,2208.00,Externally Purchased Professional Services ,2324_P09_CR00610,128460
Sandwell Metropolitan Borough Council,http://www.sandwell.gov.uk/info/200202/performance_and_spending/1079/payments_over_500,01-Dec-2023,Individual School Budgets With Inclusion,EQUAL EDUCATION LTD,Individual School Budgets With Inclusion,4880.00,Externally Purchased Professional Services ,2324_P09_CR00611,128460
Sandwell Metropolitan Borough Council,http://www.sandwell.gov.uk/info/200202/performance_and_spending/1079/payments_over_500,15-Dec-2023,Individual School Budgets With Inclusion,HORIZON CARE AND EDUCATION GROUP LIMITED,Individual School Budgets With Inclusion,118923.10,Other Establishments,2324_P09_CR00612,114884
Sandwell Metropolitan Borough Council,http://www.sandwell.gov.uk/info/200202/performance_and_spending/1079/payments_over_500,15-Dec-2023,Individual School Budgets With Inclusion,HORIZON CARE AND EDUCATION GROUP LIMITED,Individual School Budgets With Inclusion,252844.00,Other Establishments,2324_P09_CR00613,114884
Sandwell Metropolitan Borough Council,http://www.sandwell.gov.uk/info/200202/performance_and_spending/1079/payments_over_500,01-Dec-2023,Individual School Budgets With Inclusion,KEYS PCE LTD,Individual School Budgets With Inclusion,3184.00,Other Establishments,2324_P09_CR00614,140986
Sandwell Metropolitan Borough Council,http://www.sandwell.gov.uk/info/200202/performance_and_spending/1079/payments_over_500,01-Dec-2023,Individual School Budgets With Inclusion,KEYS PCE LTD,Individual School Budgets With Inclusion,3781.00,Other Establishments,2324_P09_CR00615,140986
Sandwell Metropolitan Borough Council,http://www.sandwell.gov.uk/info/200202/performance_and_spending/1079/payments_over_500,01-Dec-2023,Individual School Budgets With Inclusion,LITTLE ANGELS DAY NURSERY LIMITED,Individual School Budgets With Inclusion,2850.00,Externally Purchased Professional Services ,2324_P09_CR00616,10207
Sandwell Metropolitan Borough Council,http://www.sandwell.gov.uk/info/200202/performance_and_spending/1079/payments_over_500,01-Dec-2023,Individual School Budgets With Inclusion,NEWBURY SCHOOL LTD,Individual School Budgets With Inclusion,16300.67,Other Establishments,2324_P09_CR00617,153981
Sandwell Metropolitan Borough Council,http://www.sandwell.gov.uk/info/200202/performance_and_spending/1079/payments_over_500,01-Dec-2023,Individual School Budgets With Inclusion,NEWBURY SCHOOL LTD,Individual School Budgets With Inclusion,16300.67,Other Establishments,2324_P09_CR00618,153981
Sandwell Metropolitan Borough Council,http://www.sandwell.gov.uk/info/200202/performance_and_spending/1079/payments_over_500,01-Dec-2023,Individual School Budgets With Inclusion,NEWBURY SCHOOL LTD,Individual School Budgets With Inclusion,16300.67,Other Establishments,2324_P09_CR00619,153981
Sandwell Metropolitan Borough Council,http://www.sandwell.gov.uk/info/200202/performance_and_spending/1079/payments_over_500,01-Dec-2023,Individual School Budgets With Inclusion,NEWBURY SCHOOL LTD,Individual School Budgets With Inclusion,18250.67,Other Establishments,2324_P09_CR00620,153981
Sandwell Metropolitan Borough Council,http://www.sandwell.gov.uk/info/200202/performance_and_spending/1079/payments_over_500,01-Dec-2023,Individual School Budgets With Inclusion,NEWBURY SCHOOL LTD,Individual School Budgets With Inclusion,18250.67,Other Establishments,2324_P09_CR00621,153981
Sandwell Metropolitan Borough Council,http://www.sandwell.gov.uk/info/200202/performance_and_spending/1079/payments_over_500,01-Dec-2023,Individual School Budgets With Inclusion,PERRYFIELDS PRE SCHOOL,Individual School Budgets With Inclusion,3375.00,Externally Purchased Professional Services ,2324_P09_CR00622,18879
Sandwell Metropolitan Borough Council,http://www.sandwell.gov.uk/info/200202/performance_and_spending/1079/payments_over_500,06-Dec-2023,Individual School Budgets With Inclusion,SANDWELL FUTURES LTD,Individual School Budgets With Inclusion,1512.96,Private Contractors,2324_P09_CR00623,88151
Sandwell Metropolitan Borough Council,http://www.sandwell.gov.uk/info/200202/performance_and_spending/1079/payments_over_500,06-Dec-2023,Individual School Budgets With Inclusion,SANDWELL FUTURES LTD,Individual School Budgets With Inclusion,2477.77,Private Contractors,2324_P09_CR00624,88151
Sandwell Metropolitan Borough Council,http://www.sandwell.gov.uk/info/200202/performance_and_spending/1079/payments_over_500,06-Dec-2023,Individual School Budgets With Inclusion,SANDWELL FUTURES LTD,Individual School Budgets With Inclusion,2550.12,Private Contractors,2324_P09_CR00625,88151
Sandwell Metropolitan Borough Council,http://www.sandwell.gov.uk/info/200202/performance_and_spending/1079/payments_over_500,06-Dec-2023,Individual School Budgets With Inclusion,SANDWELL FUTURES LTD,Individual School Budgets With Inclusion,2633.54,Private Contractors,2324_P09_CR00626,88151
Sandwell Metropolitan Borough Council,http://www.sandwell.gov.uk/info/200202/performance_and_spending/1079/payments_over_500,06-Dec-2023,Individual School Budgets With Inclusion,SANDWELL FUTURES LTD,Individual School Budgets With Inclusion,3738.93,Private Contractors,2324_P09_CR00627,88151
Sandwell Metropolitan Borough Council,http://www.sandwell.gov.uk/info/200202/performance_and_spending/1079/payments_over_500,01-Dec-2023,Individual School Budgets With Inclusion,SANDWELL FUTURES LTD,Individual School Budgets With Inclusion,139551.08,Private Contractors,2324_P09_CR00628,88151
Sandwell Metropolitan Borough Council,http://www.sandwell.gov.uk/info/200202/performance_and_spending/1079/payments_over_500,01-Dec-2023,Individual School Budgets With Inclusion,SANDWELL FUTURES LTD,Individual School Budgets With Inclusion,176271.50,Private Contractors,2324_P09_CR00629,88151
Sandwell Metropolitan Borough Council,http://www.sandwell.gov.uk/info/200202/performance_and_spending/1079/payments_over_500,01-Dec-2023,Individual School Budgets With Inclusion,SANDWELL FUTURES LTD,Individual School Budgets With Inclusion,176784.91,Private Contractors,2324_P09_CR00630,88151
Sandwell Metropolitan Borough Council,http://www.sandwell.gov.uk/info/200202/performance_and_spending/1079/payments_over_500,01-Dec-2023,Individual School Budgets With Inclusion,SANDWELL FUTURES LTD,Individual School Budgets With Inclusion,178914.81,Private Contractors,2324_P09_CR00631,88151
Sandwell Metropolitan Borough Council,http://www.sandwell.gov.uk/info/200202/performance_and_spending/1079/payments_over_500,01-Dec-2023,Individual School Budgets With Inclusion,SANDWELL VALLEY SCHOOL,Individual School Budgets With Inclusion,35604.00,Externally Purchased Professional Services ,2324_P09_CR00632,128222
Sandwell Metropolitan Borough Council,http://www.sandwell.gov.uk/info/200202/performance_and_spending/1079/payments_over_500,01-Dec-2023,Individual School Budgets With Inclusion,STAFF SELECT LTD T/A NOVA TRAINING,Individual School Budgets With Inclusion,721.60,Externally Purchased Professional Services ,2324_P09_CR00633,25564
Sandwell Metropolitan Borough Council,http://www.sandwell.gov.uk/info/200202/performance_and_spending/1079/payments_over_500,01-Dec-2023,Individual School Budgets With Inclusion,STAFF SELECT LTD T/A NOVA TRAINING,Individual School Budgets With Inclusion,721.60,Externally Purchased Professional Services ,2324_P09_CR00634,25564
Sandwell Metropolitan Borough Council,http://www.sandwell.gov.uk/info/200202/performance_and_spending/1079/payments_over_500,01-Dec-2023,Individual School Budgets With Inclusion,STAFF SELECT LTD T/A NOVA TRAINING,Individual School Budgets With Inclusion,721.60,Externally Purchased Professional Services ,2324_P09_CR00635,25564
Sandwell Metropolitan Borough Council,http://www.sandwell.gov.uk/info/200202/performance_and_spending/1079/payments_over_500,01-Dec-2023,Individual School Budgets With Inclusion,STAFF SELECT LTD T/A NOVA TRAINING,Individual School Budgets With Inclusion,1099.50,Externally Purchased Professional Services ,2324_P09_CR00636,25564
Sandwell Metropolitan Borough Council,http://www.sandwell.gov.uk/info/200202/performance_and_spending/1079/payments_over_500,01-Dec-2023,Individual School Budgets With Inclusion,STAFF SELECT LTD T/A NOVA TRAINING,Individual School Budgets With Inclusion,1099.50,Externally Purchased Professional Services ,2324_P09_CR00637,25564
Sandwell Metropolitan Borough Council,http://www.sandwell.gov.uk/info/200202/performance_and_spending/1079/payments_over_500,01-Dec-2023,Individual School Budgets With Inclusion,STAFF SELECT LTD T/A NOVA TRAINING,Individual School Budgets With Inclusion,1099.60,Externally Purchased Professional Services ,2324_P09_CR00638,25564
Sandwell Metropolitan Borough Council,http://www.sandwell.gov.uk/info/200202/performance_and_spending/1079/payments_over_500,01-Dec-2023,Individual School Budgets With Inclusion,STAFF SELECT LTD T/A NOVA TRAINING,Individual School Budgets With Inclusion,1099.60,Externally Purchased Professional Services ,2324_P09_CR00639,25564
Sandwell Metropolitan Borough Council,http://www.sandwell.gov.uk/info/200202/performance_and_spending/1079/payments_over_500,01-Dec-2023,Individual School Budgets With Inclusion,STAFF SELECT LTD T/A NOVA TRAINING,Individual School Budgets With Inclusion,1855.60,Externally Purchased Professional Services ,2324_P09_CR00640,25564
Sandwell Metropolitan Borough Council,http://www.sandwell.gov.uk/info/200202/performance_and_spending/1079/payments_over_500,01-Dec-2023,Individual School Budgets With Inclusion,TIPTON GREEN JUNIOR SCHOOL ACADEMY,Individual School Budgets With Inclusion,1083.03,Childcare,2324_P09_CR00641,61068
Sandwell Metropolitan Borough Council,http://www.sandwell.gov.uk/info/200202/performance_and_spending/1079/payments_over_500,04-Dec-2023,Individual School Budgets With Inclusion,TOTAL SCHOOL SOLUTIONS (SANDWELL) LTD,Individual School Budgets With Inclusion,37458.00,PFI & PPP Schemes,2324_P09_CR00642,34284
Sandwell Metropolitan Borough Council,http://www.sandwell.gov.uk/info/200202/performance_and_spending/1079/payments_over_500,04-Dec-2023,Individual School Budgets With Inclusion,TOTAL SCHOOL SOLUTIONS (SANDWELL) LTD,Individual School Budgets With Inclusion,264065.85,PFI & PPP Schemes,2324_P09_CR00643,34284
Sandwell Metropolitan Borough Council,http://www.sandwell.gov.uk/info/200202/performance_and_spending/1079/payments_over_500,01-Dec-2023,Individual School Budgets With Inclusion,UNIVERSITY OF NOTTINGHAM,Individual School Budgets With Inclusion,20960.00,Grant Payments,2324_P09_CR00644,18830
Sandwell Metropolitan Borough Council,http://www.sandwell.gov.uk/info/200202/performance_and_spending/1079/payments_over_500,01-Dec-2023,Individual School Budgets With Inclusion,VENN GROUP LTD,Individual School Budgets With Inclusion,1750.10,Agency Staff,2324_P09_CR00645,49728
Sandwell Metropolitan Borough Council,http://www.sandwell.gov.uk/info/200202/performance_and_spending/1079/payments_over_500,01-Dec-2023,Individual School Budgets With Inclusion,VICTORIA HOUSE NURSERY,Individual School Budgets With Inclusion,2625.00,Externally Purchased Professional Services ,2324_P09_CR00646,104097
Sandwell Metropolitan Borough Council,http://www.sandwell.gov.uk/info/200202/performance_and_spending/1079/payments_over_500,01-Dec-2023,Individual School Budgets With Inclusion,VICTORIA HOUSE NURSERY,Individual School Budgets With Inclusion,3895.50,Externally Purchased Professional Services ,2324_P09_CR00647,104097
Sandwell Metropolitan Borough Council,http://www.sandwell.gov.uk/info/200202/performance_and_spending/1079/payments_over_500,01-Dec-2023,Individual School Budgets With Inclusion,ABBEY JUNIOR SCHOOL    ,Individual School Budgets With Inclusion,1300.00,Grants,2324_P09_CR00648,04031024
Sandwell Metropolitan Borough Council,http://www.sandwell.gov.uk/info/200202/performance_and_spending/1079/payments_over_500,01-Dec-2023,Individual School Budgets With Inclusion,ADELAIDE SCHOOL,Individual School Budgets With Inclusion,650.00,Grants,2324_P09_CR00649,165201
Sandwell Metropolitan Borough Council,http://www.sandwell.gov.uk/info/200202/performance_and_spending/1079/payments_over_500,04-Dec-2023,Individual School Budgets With Inclusion,ALBERT PRITCHARD INFANT SCHOOL,Individual School Budgets With Inclusion,831.60,Grant Payments,2324_P09_CR00650,04015092
Sandwell Metropolitan Borough Council,http://www.sandwell.gov.uk/info/200202/performance_and_spending/1079/payments_over_500,01-Dec-2023,Individual School Budgets With Inclusion,ALDRIDGE SCHOOL,Individual School Budgets With Inclusion,1300.00,Grants,2324_P09_CR00651,7225
Sandwell Metropolitan Borough Council,http://www.sandwell.gov.uk/info/200202/performance_and_spending/1079/payments_over_500,04-Dec-2023,Individual School Budgets With Inclusion,ALL SAINTS CE PRIMARY SCHOOL ,Individual School Budgets With Inclusion,1108.80,Grant Payments,2324_P09_CR00652,60964
Sandwell Metropolitan Borough Council,http://www.sandwell.gov.uk/info/200202/performance_and_spending/1079/payments_over_500,01-Dec-2023,Individual School Budgets With Inclusion,ALVECHURCH C OF E MIDDLE SCHOOL,Individual School Budgets With Inclusion,1300.00,Grants,2324_P09_CR00653,136232
Sandwell Metropolitan Borough Council,http://www.sandwell.gov.uk/info/200202/performance_and_spending/1079/payments_over_500,04-Dec-2023,Individual School Budgets With Inclusion,ANNIE LENNARD INFANT SCHOOL,Individual School Budgets With Inclusion,831.60,Grant Payments,2324_P09_CR00654,60966
Sandwell Metropolitan Borough Council,http://www.sandwell.gov.uk/info/200202/performance_and_spending/1079/payments_over_500,01-Dec-2023,Individual School Budgets With Inclusion,ASTON MANOR ACADEMY,Individual School Budgets With Inclusion,650.00,Grants,2324_P09_CR00655,22023
Sandwell Metropolitan Borough Council,http://www.sandwell.gov.uk/info/200202/performance_and_spending/1079/payments_over_500,01-Dec-2023,Individual School Budgets With Inclusion,BEACON HILL ACADEMY,Individual School Budgets With Inclusion,650.00,Grants,2324_P09_CR00656,146872
Sandwell Metropolitan Borough Council,http://www.sandwell.gov.uk/info/200202/performance_and_spending/1079/payments_over_500,04-Dec-2023,Individual School Budgets With Inclusion,BEARWOOD PRIMARY SCHOOL   ,Individual School Budgets With Inclusion,1108.80,Grant Payments,2324_P09_CR00657,60967
Sandwell Metropolitan Borough Council,http://www.sandwell.gov.uk/info/200202/performance_and_spending/1079/payments_over_500,01-Dec-2023,Individual School Budgets With Inclusion,BEARWOOD PRIMARY SCHOOL   ,Individual School Budgets With Inclusion,3250.00,Grants,2324_P09_CR00658,60967
Sandwell Metropolitan Borough Council,http://www.sandwell.gov.uk/info/200202/performance_and_spending/1079/payments_over_500,01-Dec-2023,Individual School Budgets With Inclusion,BILSTON CE PRIMARY SCHOOL,Individual School Budgets With Inclusion,650.00,Grants,2324_P09_CR00659,137425
Sandwell Metropolitan Borough Council,http://www.sandwell.gov.uk/info/200202/performance_and_spending/1079/payments_over_500,01-Dec-2023,Individual School Budgets With Inclusion,BIRCHFIELD PRIMARY SCHOOL,Individual School Budgets With Inclusion,650.00,Grants,2324_P09_CR00660,165122
Sandwell Metropolitan Borough Council,http://www.sandwell.gov.uk/info/200202/performance_and_spending/1079/payments_over_500,01-Dec-2023,Individual School Budgets With Inclusion,BISHOP WALSH CATHOLIC SCHOOL,Individual School Budgets With Inclusion,1300.00,Grants,2324_P09_CR00661,94758
Sandwell Metropolitan Borough Council,http://www.sandwell.gov.uk/info/200202/performance_and_spending/1079/payments_over_500,01-Dec-2023,Individual School Budgets With Inclusion,BLACKHEATH PRIMARY SCHOOL   ,Individual School Budgets With Inclusion,1950.00,Grants,2324_P09_CR00662,04024198
Sandwell Metropolitan Borough Council,http://www.sandwell.gov.uk/info/200202/performance_and_spending/1079/payments_over_500,04-Dec-2023,Individual School Budgets With Inclusion,BLACKHEATH PRIMARY SCHOOL ,Individual School Budgets With Inclusion,1247.40,Grant Payments,2324_P09_CR00663,60968
Sandwell Metropolitan Borough Council,http://www.sandwell.gov.uk/info/200202/performance_and_spending/1079/payments_over_500,04-Dec-2023,Individual School Budgets With Inclusion,BLEAKHOUSE PRIMARY SCHOOL.,Individual School Budgets With Inclusion,693.00,Grant Payments,2324_P09_CR00664,60969
Sandwell Metropolitan Borough Council,http://www.sandwell.gov.uk/info/200202/performance_and_spending/1079/payments_over_500,01-Dec-2023,Individual School Budgets With Inclusion,BLEAKHOUSE PRIMARY SCHOOL.,Individual School Budgets With Inclusion,1300.00,Grants,2324_P09_CR00665,60969
Sandwell Metropolitan Borough Council,http://www.sandwell.gov.uk/info/200202/performance_and_spending/1079/payments_over_500,01-Dec-2023,Individual School Budgets With Inclusion,BLESSED EDWARD OLDCORNE CATHOLIC COLLEGE,Individual School Budgets With Inclusion,650.00,Grants,2324_P09_CR00666,140198
Sandwell Metropolitan Borough Council,http://www.sandwell.gov.uk/info/200202/performance_and_spending/1079/payments_over_500,01-Dec-2023,Individual School Budgets With Inclusion,BLUE COAT C OF E ACADEMY,Individual School Budgets With Inclusion,2600.00,Grants,2324_P09_CR00667,9007
Sandwell Metropolitan Borough Council,http://www.sandwell.gov.uk/info/200202/performance_and_spending/1079/payments_over_500,01-Dec-2023,Individual School Budgets With Inclusion,BLUE COAT JUNIOR SCHOOL,Individual School Budgets With Inclusion,650.00,Grants,2324_P09_CR00668,127510
Sandwell Metropolitan Borough Council,http://www.sandwell.gov.uk/info/200202/performance_and_spending/1079/payments_over_500,01-Dec-2023,Individual School Budgets With Inclusion,BOURNVILLE JUNIOR SCHOOL,Individual School Budgets With Inclusion,650.00,Grants,2324_P09_CR00669,132675
Sandwell Metropolitan Borough Council,http://www.sandwell.gov.uk/info/200202/performance_and_spending/1079/payments_over_500,01-Dec-2023,Individual School Budgets With Inclusion,BRAMFORD PRIMARY SCHOOL,Individual School Budgets With Inclusion,650.00,Grants,2324_P09_CR00670,140197
Sandwell Metropolitan Borough Council,http://www.sandwell.gov.uk/info/200202/performance_and_spending/1079/payments_over_500,01-Dec-2023,Individual School Budgets With Inclusion,BRANAS SCHOOL,Individual School Budgets With Inclusion,650.00,Grants,2324_P09_CR00671,165602
Sandwell Metropolitan Borough Council,http://www.sandwell.gov.uk/info/200202/performance_and_spending/1079/payments_over_500,01-Dec-2023,Individual School Budgets With Inclusion,BRANDHALL PRIMARY SCHOOL   ,Individual School Budgets With Inclusion,1300.00,Grants,2324_P09_CR00672,60971
Sandwell Metropolitan Borough Council,http://www.sandwell.gov.uk/info/200202/performance_and_spending/1079/payments_over_500,04-Dec-2023,Individual School Budgets With Inclusion,BRANDHALL PRIMARY SCHOOL   ,Individual School Budgets With Inclusion,1663.20,Grant Payments,2324_P09_CR00673,60971
Sandwell Metropolitan Borough Council,http://www.sandwell.gov.uk/info/200202/performance_and_spending/1079/payments_over_500,04-Dec-2023,Individual School Budgets With Inclusion,BRICKHOUSE PRIMARY SCHOOL ,Individual School Budgets With Inclusion,693.00,Grant Payments,2324_P09_CR00674,60973
Sandwell Metropolitan Borough Council,http://www.sandwell.gov.uk/info/200202/performance_and_spending/1079/payments_over_500,01-Dec-2023,Individual School Budgets With Inclusion,BRICKHOUSE PRIMARY SCHOOL ,Individual School Budgets With Inclusion,1300.00,Grants,2324_P09_CR00675,60973
Sandwell Metropolitan Borough Council,http://www.sandwell.gov.uk/info/200202/performance_and_spending/1079/payments_over_500,01-Dec-2023,Individual School Budgets With Inclusion,BRISTNALL HALL ACADEMY,Individual School Budgets With Inclusion,3900.00,Grants,2324_P09_CR00676,107471
Sandwell Metropolitan Borough Council,http://www.sandwell.gov.uk/info/200202/performance_and_spending/1079/payments_over_500,01-Dec-2023,Individual School Budgets With Inclusion,BROOK PRIMARY SCHOOL,Individual School Budgets With Inclusion,1300.00,Grants,2324_P09_CR00677,137600
Sandwell Metropolitan Borough Council,http://www.sandwell.gov.uk/info/200202/performance_and_spending/1079/payments_over_500,01-Dec-2023,Individual School Budgets With Inclusion,BROWNHILLS WEST PRIMARY SCHOOL,Individual School Budgets With Inclusion,1300.00,Grants,2324_P09_CR00678,165183
Sandwell Metropolitan Borough Council,http://www.sandwell.gov.uk/info/200202/performance_and_spending/1079/payments_over_500,01-Dec-2023,Individual School Budgets With Inclusion,BURGHILL COMMUNITY ACADEMY,Individual School Budgets With Inclusion,650.00,Grants,2324_P09_CR00679,165181
Sandwell Metropolitan Borough Council,http://www.sandwell.gov.uk/info/200202/performance_and_spending/1079/payments_over_500,04-Dec-2023,Individual School Budgets With Inclusion,BURNT TREE PRIMARY SCHOOL  ,Individual School Budgets With Inclusion,1108.80,Grant Payments,2324_P09_CR00680,60974
Sandwell Metropolitan Borough Council,http://www.sandwell.gov.uk/info/200202/performance_and_spending/1079/payments_over_500,01-Dec-2023,Individual School Budgets With Inclusion,CANNOCK CHASE HIGH SCHOOL,Individual School Budgets With Inclusion,650.00,Grants,2324_P09_CR00681,148192
Sandwell Metropolitan Borough Council,http://www.sandwell.gov.uk/info/200202/performance_and_spending/1079/payments_over_500,04-Dec-2023,Individual School Budgets With Inclusion,CAPE PRIMARY SCHOOL,Individual School Budgets With Inclusion,693.00,Grant Payments,2324_P09_CR00682,01672537
Sandwell Metropolitan Borough Council,http://www.sandwell.gov.uk/info/200202/performance_and_spending/1079/payments_over_500,01-Dec-2023,Individual School Budgets With Inclusion,CAPE PRIMARY SCHOOL,Individual School Budgets With Inclusion,5850.00,Grants,2324_P09_CR00683,01672537
Sandwell Metropolitan Borough Council,http://www.sandwell.gov.uk/info/200202/performance_and_spending/1079/payments_over_500,01-Dec-2023,Individual School Budgets With Inclusion,CARR GREEN PRIMARY SCHOOL,Individual School Budgets With Inclusion,650.00,Grants,2324_P09_CR00684,157258
Sandwell Metropolitan Borough Council,http://www.sandwell.gov.uk/info/200202/performance_and_spending/1079/payments_over_500,01-Dec-2023,Individual School Budgets With Inclusion,CASTLEWOOD SCHOOL,Individual School Budgets With Inclusion,650.00,Grants,2324_P09_CR00685,165235
Sandwell Metropolitan Borough Council,http://www.sandwell.gov.uk/info/200202/performance_and_spending/1079/payments_over_500,01-Dec-2023,Individual School Budgets With Inclusion,CAUSEWAY GREEN PRIMARY SCHOOL   ,Individual School Budgets With Inclusion,1300.00,Grants,2324_P09_CR00686,60976
Sandwell Metropolitan Borough Council,http://www.sandwell.gov.uk/info/200202/performance_and_spending/1079/payments_over_500,01-Dec-2023,Individual School Budgets With Inclusion,CHANDOS PRIMARY SCHOOL,Individual School Budgets With Inclusion,1300.00,Grants,2324_P09_CR00687,148194
Sandwell Metropolitan Borough Council,http://www.sandwell.gov.uk/info/200202/performance_and_spending/1079/payments_over_500,01-Dec-2023,Individual School Budgets With Inclusion,CHESLYN HAY SPORTS AND COMMUNITY HIGH SCHOOL,Individual School Budgets With Inclusion,650.00,Grants,2324_P09_CR00688,102865
Sandwell Metropolitan Borough Council,http://www.sandwell.gov.uk/info/200202/performance_and_spending/1079/payments_over_500,01-Dec-2023,Individual School Budgets With Inclusion,CHRIST CHURCH C OF E PRIMARY SCHOOL,Individual School Budgets With Inclusion,650.00,Grants,2324_P09_CR00689,1705
Sandwell Metropolitan Borough Council,http://www.sandwell.gov.uk/info/200202/performance_and_spending/1079/payments_over_500,04-Dec-2023,Individual School Budgets With Inclusion,CHRIST CHURCH C OF E PRIMARY SCHOOL,Individual School Budgets With Inclusion,693.00,Grant Payments,2324_P09_CR00690,1705
Sandwell Metropolitan Borough Council,http://www.sandwell.gov.uk/info/200202/performance_and_spending/1079/payments_over_500,01-Dec-2023,Individual School Budgets With Inclusion,CITY OF BIRMINGHAM SCHOOL,Individual School Budgets With Inclusion,650.00,Grants,2324_P09_CR00691,137423
Sandwell Metropolitan Borough Council,http://www.sandwell.gov.uk/info/200202/performance_and_spending/1079/payments_over_500,01-Dec-2023,Individual School Budgets With Inclusion,COLLEY LANE PRIMARY ACADEMY,Individual School Budgets With Inclusion,650.00,Grants,2324_P09_CR00692,165185
Sandwell Metropolitan Borough Council,http://www.sandwell.gov.uk/info/200202/performance_and_spending/1079/payments_over_500,01-Dec-2023,Individual School Budgets With Inclusion,COLMERS SCHOOL & 6TH FORM COLLEGE,Individual School Budgets With Inclusion,1300.00,Grants,2324_P09_CR00693,97250
Sandwell Metropolitan Borough Council,http://www.sandwell.gov.uk/info/200202/performance_and_spending/1079/payments_over_500,01-Dec-2023,Individual School Budgets With Inclusion,COPPICE PERFORMING ARTS SCHOOL,Individual School Budgets With Inclusion,1300.00,Grants,2324_P09_CR00694,136020
Sandwell Metropolitan Borough Council,http://www.sandwell.gov.uk/info/200202/performance_and_spending/1079/payments_over_500,01-Dec-2023,Individual School Budgets With Inclusion,CORE EDUCATION TRUST,Individual School Budgets With Inclusion,1300.00,Grants,2324_P09_CR00695,131761
Sandwell Metropolitan Borough Council,http://www.sandwell.gov.uk/info/200202/performance_and_spending/1079/payments_over_500,01-Dec-2023,Individual School Budgets With Inclusion,CROCKETTS LANE COMMUNITY PRIMARY SCHOOL ,Individual School Budgets With Inclusion,650.00,Grants,2324_P09_CR00696,60980
Sandwell Metropolitan Borough Council,http://www.sandwell.gov.uk/info/200202/performance_and_spending/1079/payments_over_500,04-Dec-2023,Individual School Budgets With Inclusion,CROCKETTS LANE COMMUNITY PRIMARY SCHOOL ,Individual School Budgets With Inclusion,1386.00,Grant Payments,2324_P09_CR00697,60980
Sandwell Metropolitan Borough Council,http://www.sandwell.gov.uk/info/200202/performance_and_spending/1079/payments_over_500,01-Dec-2023,Individual School Budgets With Inclusion,DELVES INFANT & NURSERY SCHOOL,Individual School Budgets With Inclusion,650.00,Grants,2324_P09_CR00698,121408
Sandwell Metropolitan Borough Council,http://www.sandwell.gov.uk/info/200202/performance_and_spending/1079/payments_over_500,04-Dec-2023,Individual School Budgets With Inclusion,DEVONSHIRE INFANTS ACADEMY,Individual School Budgets With Inclusion,1386.00,Grant Payments,2324_P09_CR00699,118366
Sandwell Metropolitan Borough Council,http://www.sandwell.gov.uk/info/200202/performance_and_spending/1079/payments_over_500,01-Dec-2023,Individual School Budgets With Inclusion,DEVONSHIRE JUNIOR ACADEMY,Individual School Budgets With Inclusion,650.00,Grants,2324_P09_CR00700,118367
Sandwell Metropolitan Borough Council,http://www.sandwell.gov.uk/info/200202/performance_and_spending/1079/payments_over_500,01-Dec-2023,Individual School Budgets With Inclusion,DORMSTON SCHOOL,Individual School Budgets With Inclusion,650.00,Grants,2324_P09_CR00701,9013
Sandwell Metropolitan Borough Council,http://www.sandwell.gov.uk/info/200202/performance_and_spending/1079/payments_over_500,01-Dec-2023,Individual School Budgets With Inclusion,DUDLEY MBC,Individual School Budgets With Inclusion,1300.00,Grants,2324_P09_CR00702,01349846
Sandwell Metropolitan Borough Council,http://www.sandwell.gov.uk/info/200202/performance_and_spending/1079/payments_over_500,01-Dec-2023,Individual School Budgets With Inclusion,EAST PARK ACADEMY,Individual School Budgets With Inclusion,1300.00,Grants,2324_P09_CR00703,139885
Sandwell Metropolitan Borough Council,http://www.sandwell.gov.uk/info/200202/performance_and_spending/1079/payments_over_500,01-Dec-2023,Individual School Budgets With Inclusion,EATON VALLEY PRIMARY SCHOOL,Individual School Budgets With Inclusion,650.00,Grants,2324_P09_CR00704,60981
Sandwell Metropolitan Borough Council,http://www.sandwell.gov.uk/info/200202/performance_and_spending/1079/payments_over_500,01-Dec-2023,Individual School Budgets With Inclusion,ELM TREE PRIMARY ACADEMY,Individual School Budgets With Inclusion,650.00,Grants,2324_P09_CR00705,164361
Sandwell Metropolitan Borough Council,http://www.sandwell.gov.uk/info/200202/performance_and_spending/1079/payments_over_500,01-Dec-2023,Individual School Budgets With Inclusion,ELMWOOD SCHOOL,Individual School Budgets With Inclusion,650.00,Grants,2324_P09_CR00706,112970
Sandwell Metropolitan Borough Council,http://www.sandwell.gov.uk/info/200202/performance_and_spending/1079/payments_over_500,01-Dec-2023,Individual School Budgets With Inclusion,ERASMUS DARWIN ACADEMY,Individual School Budgets With Inclusion,650.00,Grants,2324_P09_CR00707,96156
Sandwell Metropolitan Borough Council,http://www.sandwell.gov.uk/info/200202/performance_and_spending/1079/payments_over_500,01-Dec-2023,Individual School Budgets With Inclusion,ETCHINGHILL PRIMARY ACADEMY,Individual School Budgets With Inclusion,650.00,Grants,2324_P09_CR00708,137440
Sandwell Metropolitan Borough Council,http://www.sandwell.gov.uk/info/200202/performance_and_spending/1079/payments_over_500,01-Dec-2023,Individual School Budgets With Inclusion,FAIRFAX SCHOOL,Individual School Budgets With Inclusion,650.00,Grants,2324_P09_CR00709,141382
Sandwell Metropolitan Borough Council,http://www.sandwell.gov.uk/info/200202/performance_and_spending/1079/payments_over_500,04-Dec-2023,Individual School Budgets With Inclusion,FERNDALE PRIMARY SCHOOL      ,Individual School Budgets With Inclusion,693.00,Grant Payments,2324_P09_CR00710,11562
Sandwell Metropolitan Borough Council,http://www.sandwell.gov.uk/info/200202/performance_and_spending/1079/payments_over_500,01-Dec-2023,Individual School Budgets With Inclusion,FIELDS MULTI ACADEMY TRUST - CLIVE CE PRIMARY SCHOOL,Individual School Budgets With Inclusion,1300.00,Grants,2324_P09_CR00711,154900
Sandwell Metropolitan Borough Council,http://www.sandwell.gov.uk/info/200202/performance_and_spending/1079/payments_over_500,21-Dec-2023,Individual School Budgets With Inclusion,FIRST STEPS DAY NURSERY,Individual School Budgets With Inclusion,858.92,Grant Payments,2324_P09_CR00712,51155
